{"text_format":"1","workbook":"xlsx","n_sheets":6,"sheets":["Team Sheets","Match Score Sheet","Calculations","Player Scoring Sheet","Notes","Codes"],"not_rendered":{"charts":0,"images":2,"macros":1,"external_links":0,"defined_names":2,"comments":0,"pivot_tables":0},"unopened":[],"bounds":{"document_bytes":16777216,"sheet_cells":100000,"rows_first":2000,"rows_last":500,"rows_between":2000,"halvings":0,"cell_chars":16384,"cell_head_chars":4096},"cells_cut":0,"cells_raw":0,"read":"whole","date_system":"1900"}

{"sheet":"Team Sheets","index":0,"n_rows":30,"n_cols":6,"rows_kept":30,"cut":false,"hidden":false,"merged":[[0,1,0,5]]}
[null,"Run-on Team List"]
[null,"Home Team:",{"$f":"'Match Score Sheet'!B15","v":0},null,"Away Team",{"$f":"'Match Score Sheet'!B16","v":0}]
[null,1,null,null,1]
[null,2,null,null,2]
[null,3,null,null,3]
[null,4,null,null,4]
[null,5,null,null,5]
[null,6,null,null,6]
[null,7,null,null,7]
[null,8,null,null,8]
[null,9,null,null,9]
[null,10,null,null,10]
[null,11,null,null,11]
[null,12,null,null,12]
[null,13,null,null,13]
[null,14,null,null,14]
[null,15,null,null,15]
[null,16,null,null,16]
[null,17,null,null,17]
[null,18,null,null,18]
[null,19,null,null,19]
[null,20,null,null,20]
[null,21,null,null,21]
[null,22,null,null,22]
[null,23,null,null,23]
[null,24,null,null,24]
[null,25,null,null,25]
[null,26,null,null,26]
[null,27,null,null,27]
[null,28,null,null,28]

{"sheet":"Match Score Sheet","index":1,"n_rows":100,"n_cols":14,"rows_kept":100,"cut":false,"hidden":false,"merged":[[59,4,59,5],[54,4,54,5],[55,4,55,5],[56,4,56,5],[57,4,57,5],[58,4,58,5],[49,4,49,5],[50,4,50,5],[51,4,51,5],[52,4,52,5],[53,4,53,5],[45,4,45,5],[46,4,46,5],[47,4,47,5],[48,4,48,5],[39,4,39,5],[40,4,40,5],[41,4,41,5],[42,4,42,5],[43,4,43,5],[36,4,36,5],[37,4,37,5],[38,4,38,5],[29,4,29,5],[30,4,30,5],[31,4,31,5],[32,4,32,5],[33,4,33,5],[44,4,44,5],[1,7,1,8],[0,0,0,10],[6,0,7,5],[2,7,2,8],[3,7,3,8],[4,7,4,8],[5,7,5,8],[6,7,6,8],[7,7,7,8],[2,1,5,5],[18,4,18,5],[14,1,14,3],[15,1,15,3],[9,1,9,4],[10,1,10,4],[11,1,11,4],[8,7,8,8],[9,7,9,8],[60,4,60,5],[11,7,11,8],[19,4,19,5],[20,4,20,5],[21,4,21,5],[22,4,22,5],[23,4,23,5],[17,0,17,7],[24,4,24,5],[25,4,25,5],[26,4,26,5],[27,4,27,5],[28,4,28,5],[10,7,10,8],[34,4,34,5],[35,4,35,5],[61,4,61,5],[62,4,62,5],[63,4,63,5],[64,4,64,5],[65,4,65,5],[66,4,66,5],[67,4,67,5],[68,4,68,5],[85,4,85,5],[84,4,84,5],[83,4,83,5],[82,4,82,5],[81,4,81,5],[72,4,72,5],[71,4,71,5],[69,4,69,5],[70,4,70,5],[80,4,80,5],[79,4,79,5],[78,4,78,5],[73,4,73,5],[74,4,74,5],[75,4,75,5],[76,4,76,5],[77,4,77,5],[99,4,99,5],[89,4,89,5],[90,4,90,5],[91,4,91,5],[92,4,92,5],[93,4,93,5],[94,4,94,5],[95,4,95,5],[96,4,96,5],[97,4,97,5],[98,4,98,5],[88,4,88,5],[86,4,86,5],[87,4,87,5]]}
["SOUTH AFRICAN RUGBY UNION MATCH SCORE SHEET ver 2025.03"]
[null,null,null,null,null,null,null,"Match Officials Names:"]
["e-mail to:","EddieG@sarugby.co.za; mornen@sarugby.co.za; jaco@evolveav.co.za; Tumi.Leseke@sarugby.co.za; matchcoding@mobii.com; eugenev@sarugby.co.za",null,null,null,null,"Referee :"]
[null,null,null,null,null,null,"TMO:"]
[null,null,null,null,null,null,"AR 1:"]
[null,null,null,null,null,null,"AR 2 :"]
["WhatsApp Halftime score, and immediately after the final whistle this RED BOX to 0824489635, 0826935917, 0763000706, 0677225752",null,null,null,null,null,"RC 4:"]
[null,null,null,null,null,null,"RC 5:"]
[null,null,null,null,null,null,"PMR:"]
["Competition:",null,null,null,null,null,"SLM:"]
["Date:",null,null,null,null,null,"Time K:"]
["Venue:",null,null,null,null,null,"Statistician Name:"]
[]
[null,null,null,null,"Half time score","Full time score","Tries","Conversions","Penalty Tries","Penalties","Drop Goals"]
["Home Team:",null,null,null,{"$f":"Calculations!R86","v":0},{"$f":"((G15*5)+(H15*2)+(I15*7)+(J15*3)+(K15*3))","v":0},{"$f":"Calculations!B86","v":0},{"$f":"Calculations!D86","v":0},{"$f":"Calculations!C86","v":0},{"$f":"Calculations!E86","v":0},{"$f":"Calculations!F86","v":0}]
["Away Team:",null,null,null,{"$f":"Calculations!AL86","v":0},{"$f":"((G16*5)+(H16*2)+(I16*7)+(J16*3)+(K16*3))","v":0},{"$f":"Calculations!X86","v":0},{"$f":"Calculations!Z86","v":0},{"$f":"Calculations!Y86","v":0},{"$f":"Calculations!AA86","v":0},{"$f":"Calculations!AB86","v":0}]
[]
["Scoring Event"]
["Mins","Team","Event","Player #","Player Name",null,"Score Line - Home","Score Line - Away"]
[0,"H","FH-S",null,{"$f":"IF(AND(B20=\"H\",D20<>\"\"),(VLOOKUP(D20,'Team Sheets'!$B$3:$C$30,2,FALSE)),IF(AND(B20=\"A\",D20<>\"\"),(VLOOKUP(D20,'Team Sheets'!$E$3:$F$30,2,FALSE)),\" \"))","v":" "},null,{"$f":"IF(C20=\"FH-E\",Calculations!M4,IF(C20=\"SH-E\",Calculations!U4,IF(Calculations!L4=0,\"\",Calculations!M4)))","v":""},{"$f":"IF(C20=\"FH-E\",Calculations!AI4,IF(C20=\"SH-E\",Calculations!AN4,IF(Calculations!AH4=0,\"\",Calculations!AI4)))","v":""},null,null,null,null,"Eugene de Villiers","0824489635"]
[null,null,null,null,{"$f":"IF(AND(B21=\"H\",D21<>\"\"),(VLOOKUP(D21,'Team Sheets'!$B$3:$C$30,2,FALSE)),IF(AND(B21=\"A\",D21<>\"\"),(VLOOKUP(D21,'Team Sheets'!$E$3:$F$30,2,FALSE)),\" \"))","v":" "},null,{"$f":"IF(C21=\"FH-E\",Calculations!M5,IF(C21=\"SH-E\",Calculations!U5,IF(Calculations!L5=0,\"\",Calculations!M5)))","v":""},{"$f":"IF(C21=\"FH-E\",Calculations!AI5,IF(C21=\"SH-E\",Calculations!AN5,IF(Calculations!AH5=0,\"\",Calculations!AI5)))","v":""},null,null,null,null,"Eddie Grieb","0826935917"]
[null,null,null,null,{"$f":"IF(AND(B22=\"H\",D22<>\"\"),(VLOOKUP(D22,'Team Sheets'!$B$3:$C$30,2,FALSE)),IF(AND(B22=\"A\",D22<>\"\"),(VLOOKUP(D22,'Team Sheets'!$E$3:$F$30,2,FALSE)),\" \"))","v":" "},null,{"$f":"IF(C22=\"FH-E\",Calculations!M6,IF(C22=\"SH-E\",Calculations!U6,IF(Calculations!L6=0,\"\",Calculations!M6)))","v":""},{"$f":"IF(C22=\"FH-E\",Calculations!AI6,IF(C22=\"SH-E\",Calculations!AN6,IF(Calculations!AH6=0,\"\",Calculations!AI6)))","v":""},null,null,null,null,"Morne Nortier","0763000706"]
[null,null,null,null,{"$f":"IF(AND(B23=\"H\",D23<>\"\"),(VLOOKUP(D23,'Team Sheets'!$B$3:$C$30,2,FALSE)),IF(AND(B23=\"A\",D23<>\"\"),(VLOOKUP(D23,'Team Sheets'!$E$3:$F$30,2,FALSE)),\" \"))","v":" "},null,{"$f":"IF(C23=\"FH-E\",Calculations!M7,IF(C23=\"SH-E\",Calculations!U7,IF(Calculations!L7=0,\"\",Calculations!M7)))","v":""},{"$f":"IF(C23=\"FH-E\",Calculations!AI7,IF(C23=\"SH-E\",Calculations!AN7,IF(Calculations!AH7=0,\"\",Calculations!AI7)))","v":""},null,null,null,null,"Tumi Leseke","0677225752"]
[null,null,null,null,{"$f":"IF(AND(B24=\"H\",D24<>\"\"),(VLOOKUP(D24,'Team Sheets'!$B$3:$C$30,2,FALSE)),IF(AND(B24=\"A\",D24<>\"\"),(VLOOKUP(D24,'Team Sheets'!$E$3:$F$30,2,FALSE)),\" \"))","v":" "},null,{"$f":"IF(C24=\"FH-E\",Calculations!M8,IF(C24=\"SH-E\",Calculations!U8,IF(Calculations!L8=0,\"\",Calculations!M8)))","v":""},{"$f":"IF(C24=\"FH-E\",Calculations!AI8,IF(C24=\"SH-E\",Calculations!AN8,IF(Calculations!AH8=0,\"\",Calculations!AI8)))","v":""}]
[null,null,null,null,{"$f":"IF(AND(B25=\"H\",D25<>\"\"),(VLOOKUP(D25,'Team Sheets'!$B$3:$C$30,2,FALSE)),IF(AND(B25=\"A\",D25<>\"\"),(VLOOKUP(D25,'Team Sheets'!$E$3:$F$30,2,FALSE)),\" \"))","v":" "},null,{"$f":"IF(C25=\"FH-E\",Calculations!M9,IF(C25=\"SH-E\",Calculations!U9,IF(Calculations!L9=0,\"\",Calculations!M9)))","v":""},{"$f":"IF(C25=\"FH-E\",Calculations!AI9,IF(C25=\"SH-E\",Calculations!AN9,IF(Calculations!AH9=0,\"\",Calculations!AI9)))","v":""}]
[null,null,null,null,{"$f":"IF(AND(B26=\"H\",D26<>\"\"),(VLOOKUP(D26,'Team Sheets'!$B$3:$C$30,2,FALSE)),IF(AND(B26=\"A\",D26<>\"\"),(VLOOKUP(D26,'Team Sheets'!$E$3:$F$30,2,FALSE)),\" \"))","v":" "},null,{"$f":"IF(C26=\"FH-E\",Calculations!M10,IF(C26=\"SH-E\",Calculations!U10,IF(Calculations!L10=0,\"\",Calculations!M10)))","v":""},{"$f":"IF(C26=\"FH-E\",Calculations!AI10,IF(C26=\"SH-E\",Calculations!AN10,IF(Calculations!AH10=0,\"\",Calculations!AI10)))","v":""}]
[null,null,null,null,{"$f":"IF(AND(B27=\"H\",D27<>\"\"),(VLOOKUP(D27,'Team Sheets'!$B$3:$C$30,2,FALSE)),IF(AND(B27=\"A\",D27<>\"\"),(VLOOKUP(D27,'Team Sheets'!$E$3:$F$30,2,FALSE)),\" \"))","v":" "},null,{"$f":"IF(C27=\"FH-E\",Calculations!M11,IF(C27=\"SH-E\",Calculations!U11,IF(Calculations!L11=0,\"\",Calculations!M11)))","v":""},{"$f":"IF(C27=\"FH-E\",Calculations!AI11,IF(C27=\"SH-E\",Calculations!AN11,IF(Calculations!AH11=0,\"\",Calculations!AI11)))","v":""}]
[null,null,null,null,{"$f":"IF(AND(B28=\"H\",D28<>\"\"),(VLOOKUP(D28,'Team Sheets'!$B$3:$C$30,2,FALSE)),IF(AND(B28=\"A\",D28<>\"\"),(VLOOKUP(D28,'Team Sheets'!$E$3:$F$30,2,FALSE)),\" \"))","v":" "},null,{"$f":"IF(C28=\"FH-E\",Calculations!M12,IF(C28=\"SH-E\",Calculations!U12,IF(Calculations!L12=0,\"\",Calculations!M12)))","v":""},{"$f":"IF(C28=\"FH-E\",Calculations!AI12,IF(C28=\"SH-E\",Calculations!AN12,IF(Calculations!AH12=0,\"\",Calculations!AI12)))","v":""}]
[null,null,null,null,{"$f":"IF(AND(B29=\"H\",D29<>\"\"),(VLOOKUP(D29,'Team Sheets'!$B$3:$C$30,2,FALSE)),IF(AND(B29=\"A\",D29<>\"\"),(VLOOKUP(D29,'Team Sheets'!$E$3:$F$30,2,FALSE)),\" \"))","v":" "},null,{"$f":"IF(C29=\"FH-E\",Calculations!M13,IF(C29=\"SH-E\",Calculations!U13,IF(Calculations!L13=0,\"\",Calculations!M13)))","v":""},{"$f":"IF(C29=\"FH-E\",Calculations!AI13,IF(C29=\"SH-E\",Calculations!AN13,IF(Calculations!AH13=0,\"\",Calculations!AI13)))","v":""}]
[null,null,null,null,{"$f":"IF(AND(B30=\"H\",D30<>\"\"),(VLOOKUP(D30,'Team Sheets'!$B$3:$C$30,2,FALSE)),IF(AND(B30=\"A\",D30<>\"\"),(VLOOKUP(D30,'Team Sheets'!$E$3:$F$30,2,FALSE)),\" \"))","v":" "},null,{"$f":"IF(C30=\"FH-E\",Calculations!M14,IF(C30=\"SH-E\",Calculations!U14,IF(Calculations!L14=0,\"\",Calculations!M14)))","v":""},{"$f":"IF(C30=\"FH-E\",Calculations!AI14,IF(C30=\"SH-E\",Calculations!AN14,IF(Calculations!AH14=0,\"\",Calculations!AI14)))","v":""}]
[null,null,null,null,{"$f":"IF(AND(B31=\"H\",D31<>\"\"),(VLOOKUP(D31,'Team Sheets'!$B$3:$C$30,2,FALSE)),IF(AND(B31=\"A\",D31<>\"\"),(VLOOKUP(D31,'Team Sheets'!$E$3:$F$30,2,FALSE)),\" \"))","v":" "},null,{"$f":"IF(C31=\"FH-E\",Calculations!M15,IF(C31=\"SH-E\",Calculations!U15,IF(Calculations!L15=0,\"\",Calculations!M15)))","v":""},{"$f":"IF(C31=\"FH-E\",Calculations!AI15,IF(C31=\"SH-E\",Calculations!AN15,IF(Calculations!AH15=0,\"\",Calculations!AI15)))","v":""}]
[null,null,null,null,{"$f":"IF(AND(B32=\"H\",D32<>\"\"),(VLOOKUP(D32,'Team Sheets'!$B$3:$C$30,2,FALSE)),IF(AND(B32=\"A\",D32<>\"\"),(VLOOKUP(D32,'Team Sheets'!$E$3:$F$30,2,FALSE)),\" \"))","v":" "},null,{"$f":"IF(C32=\"FH-E\",Calculations!M16,IF(C32=\"SH-E\",Calculations!U16,IF(Calculations!L16=0,\"\",Calculations!M16)))","v":""},{"$f":"IF(C32=\"FH-E\",Calculations!AI16,IF(C32=\"SH-E\",Calculations!AN16,IF(Calculations!AH16=0,\"\",Calculations!AI16)))","v":""}]
[null,null,null,null,{"$f":"IF(AND(B33=\"H\",D33<>\"\"),(VLOOKUP(D33,'Team Sheets'!$B$3:$C$30,2,FALSE)),IF(AND(B33=\"A\",D33<>\"\"),(VLOOKUP(D33,'Team Sheets'!$E$3:$F$30,2,FALSE)),\" \"))","v":" "},null,{"$f":"IF(C33=\"FH-E\",Calculations!M17,IF(C33=\"SH-E\",Calculations!U17,IF(Calculations!L17=0,\"\",Calculations!M17)))","v":""},{"$f":"IF(C33=\"FH-E\",Calculations!AI17,IF(C33=\"SH-E\",Calculations!AN17,IF(Calculations!AH17=0,\"\",Calculations!AI17)))","v":""}]
[null,null,null,null,{"$f":"IF(AND(B34=\"H\",D34<>\"\"),(VLOOKUP(D34,'Team Sheets'!$B$3:$C$30,2,FALSE)),IF(AND(B34=\"A\",D34<>\"\"),(VLOOKUP(D34,'Team Sheets'!$E$3:$F$30,2,FALSE)),\" \"))","v":" "},null,{"$f":"IF(C34=\"FH-E\",Calculations!M18,IF(C34=\"SH-E\",Calculations!U18,IF(Calculations!L18=0,\"\",Calculations!M18)))","v":""},{"$f":"IF(C34=\"FH-E\",Calculations!AI18,IF(C34=\"SH-E\",Calculations!AN18,IF(Calculations!AH18=0,\"\",Calculations!AI18)))","v":""}]
[null,null,null,null,{"$f":"IF(AND(B35=\"H\",D35<>\"\"),(VLOOKUP(D35,'Team Sheets'!$B$3:$C$30,2,FALSE)),IF(AND(B35=\"A\",D35<>\"\"),(VLOOKUP(D35,'Team Sheets'!$E$3:$F$30,2,FALSE)),\" \"))","v":" "},null,{"$f":"IF(C35=\"FH-E\",Calculations!M19,IF(C35=\"SH-E\",Calculations!U19,IF(Calculations!L19=0,\"\",Calculations!M19)))","v":""},{"$f":"IF(C35=\"FH-E\",Calculations!AI19,IF(C35=\"SH-E\",Calculations!AN19,IF(Calculations!AH19=0,\"\",Calculations!AI19)))","v":""}]
[null,null,null,null,{"$f":"IF(AND(B36=\"H\",D36<>\"\"),(VLOOKUP(D36,'Team Sheets'!$B$3:$C$30,2,FALSE)),IF(AND(B36=\"A\",D36<>\"\"),(VLOOKUP(D36,'Team Sheets'!$E$3:$F$30,2,FALSE)),\" \"))","v":" "},null,{"$f":"IF(C36=\"FH-E\",Calculations!M20,IF(C36=\"SH-E\",Calculations!U20,IF(Calculations!L20=0,\"\",Calculations!M20)))","v":""},{"$f":"IF(C36=\"FH-E\",Calculations!AI20,IF(C36=\"SH-E\",Calculations!AN20,IF(Calculations!AH20=0,\"\",Calculations!AI20)))","v":""}]
[null,null,null,null,{"$f":"IF(AND(B37=\"H\",D37<>\"\"),(VLOOKUP(D37,'Team Sheets'!$B$3:$C$30,2,FALSE)),IF(AND(B37=\"A\",D37<>\"\"),(VLOOKUP(D37,'Team Sheets'!$E$3:$F$30,2,FALSE)),\" \"))","v":" "},null,{"$f":"IF(C37=\"FH-E\",Calculations!M21,IF(C37=\"SH-E\",Calculations!U21,IF(Calculations!L21=0,\"\",Calculations!M21)))","v":""},{"$f":"IF(C37=\"FH-E\",Calculations!AI21,IF(C37=\"SH-E\",Calculations!AN21,IF(Calculations!AH21=0,\"\",Calculations!AI21)))","v":""}]
[null,null,null,null,{"$f":"IF(AND(B38=\"H\",D38<>\"\"),(VLOOKUP(D38,'Team Sheets'!$B$3:$C$30,2,FALSE)),IF(AND(B38=\"A\",D38<>\"\"),(VLOOKUP(D38,'Team Sheets'!$E$3:$F$30,2,FALSE)),\" \"))","v":" "},null,{"$f":"IF(C38=\"FH-E\",Calculations!M22,IF(C38=\"SH-E\",Calculations!U22,IF(Calculations!L22=0,\"\",Calculations!M22)))","v":""},{"$f":"IF(C38=\"FH-E\",Calculations!AI22,IF(C38=\"SH-E\",Calculations!AN22,IF(Calculations!AH22=0,\"\",Calculations!AI22)))","v":""}]
[null,null,null,null,{"$f":"IF(AND(B39=\"H\",D39<>\"\"),(VLOOKUP(D39,'Team Sheets'!$B$3:$C$30,2,FALSE)),IF(AND(B39=\"A\",D39<>\"\"),(VLOOKUP(D39,'Team Sheets'!$E$3:$F$30,2,FALSE)),\" \"))","v":" "},null,{"$f":"IF(C39=\"FH-E\",Calculations!M23,IF(C39=\"SH-E\",Calculations!U23,IF(Calculations!L23=0,\"\",Calculations!M23)))","v":""},{"$f":"IF(C39=\"FH-E\",Calculations!AI23,IF(C39=\"SH-E\",Calculations!AN23,IF(Calculations!AH23=0,\"\",Calculations!AI23)))","v":""}]
[null,null,null,null,{"$f":"IF(AND(B40=\"H\",D40<>\"\"),(VLOOKUP(D40,'Team Sheets'!$B$3:$C$30,2,FALSE)),IF(AND(B40=\"A\",D40<>\"\"),(VLOOKUP(D40,'Team Sheets'!$E$3:$F$30,2,FALSE)),\" \"))","v":" "},null,{"$f":"IF(C40=\"FH-E\",Calculations!M24,IF(C40=\"SH-E\",Calculations!U24,IF(Calculations!L24=0,\"\",Calculations!M24)))","v":""},{"$f":"IF(C40=\"FH-E\",Calculations!AI24,IF(C40=\"SH-E\",Calculations!AN24,IF(Calculations!AH24=0,\"\",Calculations!AI24)))","v":""}]
[null,null,null,null,{"$f":"IF(AND(B41=\"H\",D41<>\"\"),(VLOOKUP(D41,'Team Sheets'!$B$3:$C$30,2,FALSE)),IF(AND(B41=\"A\",D41<>\"\"),(VLOOKUP(D41,'Team Sheets'!$E$3:$F$30,2,FALSE)),\" \"))","v":" "},null,{"$f":"IF(C41=\"FH-E\",Calculations!M25,IF(C41=\"SH-E\",Calculations!U25,IF(Calculations!L25=0,\"\",Calculations!M25)))","v":""},{"$f":"IF(C41=\"FH-E\",Calculations!AI25,IF(C41=\"SH-E\",Calculations!AN25,IF(Calculations!AH25=0,\"\",Calculations!AI25)))","v":""}]
[null,null,null,null,{"$f":"IF(AND(B42=\"H\",D42<>\"\"),(VLOOKUP(D42,'Team Sheets'!$B$3:$C$30,2,FALSE)),IF(AND(B42=\"A\",D42<>\"\"),(VLOOKUP(D42,'Team Sheets'!$E$3:$F$30,2,FALSE)),\" \"))","v":" "},null,{"$f":"IF(C42=\"FH-E\",Calculations!M26,IF(C42=\"SH-E\",Calculations!U26,IF(Calculations!L26=0,\"\",Calculations!M26)))","v":""},{"$f":"IF(C42=\"FH-E\",Calculations!AI26,IF(C42=\"SH-E\",Calculations!AN26,IF(Calculations!AH26=0,\"\",Calculations!AI26)))","v":""}]
[null,null,null,null,{"$f":"IF(AND(B43=\"H\",D43<>\"\"),(VLOOKUP(D43,'Team Sheets'!$B$3:$C$30,2,FALSE)),IF(AND(B43=\"A\",D43<>\"\"),(VLOOKUP(D43,'Team Sheets'!$E$3:$F$30,2,FALSE)),\" \"))","v":" "},null,{"$f":"IF(C43=\"FH-E\",Calculations!M27,IF(C43=\"SH-E\",Calculations!U27,IF(Calculations!L27=0,\"\",Calculations!M27)))","v":""},{"$f":"IF(C43=\"FH-E\",Calculations!AI27,IF(C43=\"SH-E\",Calculations!AN27,IF(Calculations!AH27=0,\"\",Calculations!AI27)))","v":""}]
[null,null,null,null,{"$f":"IF(AND(B44=\"H\",D44<>\"\"),(VLOOKUP(D44,'Team Sheets'!$B$3:$C$30,2,FALSE)),IF(AND(B44=\"A\",D44<>\"\"),(VLOOKUP(D44,'Team Sheets'!$E$3:$F$30,2,FALSE)),\" \"))","v":" "},null,{"$f":"IF(C44=\"FH-E\",Calculations!M28,IF(C44=\"SH-E\",Calculations!U28,IF(Calculations!L28=0,\"\",Calculations!M28)))","v":""},{"$f":"IF(C44=\"FH-E\",Calculations!AI28,IF(C44=\"SH-E\",Calculations!AN28,IF(Calculations!AH28=0,\"\",Calculations!AI28)))","v":""}]
[null,null,null,null,{"$f":"IF(AND(B45=\"H\",D45<>\"\"),(VLOOKUP(D45,'Team Sheets'!$B$3:$C$30,2,FALSE)),IF(AND(B45=\"A\",D45<>\"\"),(VLOOKUP(D45,'Team Sheets'!$E$3:$F$30,2,FALSE)),\" \"))","v":" "},null,{"$f":"IF(C45=\"FH-E\",Calculations!M29,IF(C45=\"SH-E\",Calculations!U29,IF(Calculations!L29=0,\"\",Calculations!M29)))","v":""},{"$f":"IF(C45=\"FH-E\",Calculations!AI29,IF(C45=\"SH-E\",Calculations!AN29,IF(Calculations!AH29=0,\"\",Calculations!AI29)))","v":""}]
[null,null,null,null,{"$f":"IF(AND(B46=\"H\",D46<>\"\"),(VLOOKUP(D46,'Team Sheets'!$B$3:$C$30,2,FALSE)),IF(AND(B46=\"A\",D46<>\"\"),(VLOOKUP(D46,'Team Sheets'!$E$3:$F$30,2,FALSE)),\" \"))","v":" "},null,{"$f":"IF(C46=\"FH-E\",Calculations!M30,IF(C46=\"SH-E\",Calculations!U30,IF(Calculations!L30=0,\"\",Calculations!M30)))","v":""},{"$f":"IF(C46=\"FH-E\",Calculations!AI30,IF(C46=\"SH-E\",Calculations!AN30,IF(Calculations!AH30=0,\"\",Calculations!AI30)))","v":""}]
[null,null,null,null,{"$f":"IF(AND(B47=\"H\",D47<>\"\"),(VLOOKUP(D47,'Team Sheets'!$B$3:$C$30,2,FALSE)),IF(AND(B47=\"A\",D47<>\"\"),(VLOOKUP(D47,'Team Sheets'!$E$3:$F$30,2,FALSE)),\" \"))","v":" "},null,{"$f":"IF(C47=\"FH-E\",Calculations!M31,IF(C47=\"SH-E\",Calculations!U31,IF(Calculations!L31=0,\"\",Calculations!M31)))","v":""},{"$f":"IF(C47=\"FH-E\",Calculations!AI31,IF(C47=\"SH-E\",Calculations!AN31,IF(Calculations!AH31=0,\"\",Calculations!AI31)))","v":""}]
[null,null,null,null,{"$f":"IF(AND(B48=\"H\",D48<>\"\"),(VLOOKUP(D48,'Team Sheets'!$B$3:$C$30,2,FALSE)),IF(AND(B48=\"A\",D48<>\"\"),(VLOOKUP(D48,'Team Sheets'!$E$3:$F$30,2,FALSE)),\" \"))","v":" "},null,{"$f":"IF(C48=\"FH-E\",Calculations!M32,IF(C48=\"SH-E\",Calculations!U32,IF(Calculations!L32=0,\"\",Calculations!M32)))","v":""},{"$f":"IF(C48=\"FH-E\",Calculations!AI32,IF(C48=\"SH-E\",Calculations!AN32,IF(Calculations!AH32=0,\"\",Calculations!AI32)))","v":""}]
[null,null,null,null,{"$f":"IF(AND(B49=\"H\",D49<>\"\"),(VLOOKUP(D49,'Team Sheets'!$B$3:$C$30,2,FALSE)),IF(AND(B49=\"A\",D49<>\"\"),(VLOOKUP(D49,'Team Sheets'!$E$3:$F$30,2,FALSE)),\" \"))","v":" "},null,{"$f":"IF(C49=\"FH-E\",Calculations!M33,IF(C49=\"SH-E\",Calculations!U33,IF(Calculations!L33=0,\"\",Calculations!M33)))","v":""},{"$f":"IF(C49=\"FH-E\",Calculations!AI33,IF(C49=\"SH-E\",Calculations!AN33,IF(Calculations!AH33=0,\"\",Calculations!AI33)))","v":""}]
[null,null,null,null,{"$f":"IF(AND(B50=\"H\",D50<>\"\"),(VLOOKUP(D50,'Team Sheets'!$B$3:$C$30,2,FALSE)),IF(AND(B50=\"A\",D50<>\"\"),(VLOOKUP(D50,'Team Sheets'!$E$3:$F$30,2,FALSE)),\" \"))","v":" "},null,{"$f":"IF(C50=\"FH-E\",Calculations!M34,IF(C50=\"SH-E\",Calculations!U34,IF(Calculations!L34=0,\"\",Calculations!M34)))","v":""},{"$f":"IF(C50=\"FH-E\",Calculations!AI34,IF(C50=\"SH-E\",Calculations!AN34,IF(Calculations!AH34=0,\"\",Calculations!AI34)))","v":""}]
[null,null,null,null,{"$f":"IF(AND(B51=\"H\",D51<>\"\"),(VLOOKUP(D51,'Team Sheets'!$B$3:$C$30,2,FALSE)),IF(AND(B51=\"A\",D51<>\"\"),(VLOOKUP(D51,'Team Sheets'!$E$3:$F$30,2,FALSE)),\" \"))","v":" "},null,{"$f":"IF(C51=\"FH-E\",Calculations!M35,IF(C51=\"SH-E\",Calculations!U35,IF(Calculations!L35=0,\"\",Calculations!M35)))","v":""},{"$f":"IF(C51=\"FH-E\",Calculations!AI35,IF(C51=\"SH-E\",Calculations!AN35,IF(Calculations!AH35=0,\"\",Calculations!AI35)))","v":""}]
[null,null,null,null,{"$f":"IF(AND(B52=\"H\",D52<>\"\"),(VLOOKUP(D52,'Team Sheets'!$B$3:$C$30,2,FALSE)),IF(AND(B52=\"A\",D52<>\"\"),(VLOOKUP(D52,'Team Sheets'!$E$3:$F$30,2,FALSE)),\" \"))","v":" "},null,{"$f":"IF(C52=\"FH-E\",Calculations!M36,IF(C52=\"SH-E\",Calculations!U36,IF(Calculations!L36=0,\"\",Calculations!M36)))","v":""},{"$f":"IF(C52=\"FH-E\",Calculations!AI36,IF(C52=\"SH-E\",Calculations!AN36,IF(Calculations!AH36=0,\"\",Calculations!AI36)))","v":""}]
[null,null,null,null,{"$f":"IF(AND(B53=\"H\",D53<>\"\"),(VLOOKUP(D53,'Team Sheets'!$B$3:$C$30,2,FALSE)),IF(AND(B53=\"A\",D53<>\"\"),(VLOOKUP(D53,'Team Sheets'!$E$3:$F$30,2,FALSE)),\" \"))","v":" "},null,{"$f":"IF(C53=\"FH-E\",Calculations!M37,IF(C53=\"SH-E\",Calculations!U37,IF(Calculations!L37=0,\"\",Calculations!M37)))","v":""},{"$f":"IF(C53=\"FH-E\",Calculations!AI37,IF(C53=\"SH-E\",Calculations!AN37,IF(Calculations!AH37=0,\"\",Calculations!AI37)))","v":""}]
[null,null,null,null,{"$f":"IF(AND(B54=\"H\",D54<>\"\"),(VLOOKUP(D54,'Team Sheets'!$B$3:$C$30,2,FALSE)),IF(AND(B54=\"A\",D54<>\"\"),(VLOOKUP(D54,'Team Sheets'!$E$3:$F$30,2,FALSE)),\" \"))","v":" "},null,{"$f":"IF(C54=\"FH-E\",Calculations!M38,IF(C54=\"SH-E\",Calculations!U38,IF(Calculations!L38=0,\"\",Calculations!M38)))","v":""},{"$f":"IF(C54=\"FH-E\",Calculations!AI38,IF(C54=\"SH-E\",Calculations!AN38,IF(Calculations!AH38=0,\"\",Calculations!AI38)))","v":""}]
[null,null,null,null,{"$f":"IF(AND(B55=\"H\",D55<>\"\"),(VLOOKUP(D55,'Team Sheets'!$B$3:$C$30,2,FALSE)),IF(AND(B55=\"A\",D55<>\"\"),(VLOOKUP(D55,'Team Sheets'!$E$3:$F$30,2,FALSE)),\" \"))","v":" "},null,{"$f":"IF(C55=\"FH-E\",Calculations!M39,IF(C55=\"SH-E\",Calculations!U39,IF(Calculations!L39=0,\"\",Calculations!M39)))","v":""},{"$f":"IF(C55=\"FH-E\",Calculations!AI39,IF(C55=\"SH-E\",Calculations!AN39,IF(Calculations!AH39=0,\"\",Calculations!AI39)))","v":""}]
[null,null,null,null,{"$f":"IF(AND(B56=\"H\",D56<>\"\"),(VLOOKUP(D56,'Team Sheets'!$B$3:$C$30,2,FALSE)),IF(AND(B56=\"A\",D56<>\"\"),(VLOOKUP(D56,'Team Sheets'!$E$3:$F$30,2,FALSE)),\" \"))","v":" "},null,{"$f":"IF(C56=\"FH-E\",Calculations!M40,IF(C56=\"SH-E\",Calculations!U40,IF(Calculations!L40=0,\"\",Calculations!M40)))","v":""},{"$f":"IF(C56=\"FH-E\",Calculations!AI40,IF(C56=\"SH-E\",Calculations!AN40,IF(Calculations!AH40=0,\"\",Calculations!AI40)))","v":""}]
[null,null,null,null,{"$f":"IF(AND(B57=\"H\",D57<>\"\"),(VLOOKUP(D57,'Team Sheets'!$B$3:$C$30,2,FALSE)),IF(AND(B57=\"A\",D57<>\"\"),(VLOOKUP(D57,'Team Sheets'!$E$3:$F$30,2,FALSE)),\" \"))","v":" "},null,{"$f":"IF(C57=\"FH-E\",Calculations!M41,IF(C57=\"SH-E\",Calculations!U41,IF(Calculations!L41=0,\"\",Calculations!M41)))","v":""},{"$f":"IF(C57=\"FH-E\",Calculations!AI41,IF(C57=\"SH-E\",Calculations!AN41,IF(Calculations!AH41=0,\"\",Calculations!AI41)))","v":""}]
[null,null,null,null,{"$f":"IF(AND(B58=\"H\",D58<>\"\"),(VLOOKUP(D58,'Team Sheets'!$B$3:$C$30,2,FALSE)),IF(AND(B58=\"A\",D58<>\"\"),(VLOOKUP(D58,'Team Sheets'!$E$3:$F$30,2,FALSE)),\" \"))","v":" "},null,{"$f":"IF(C58=\"FH-E\",Calculations!M42,IF(C58=\"SH-E\",Calculations!U42,IF(Calculations!L42=0,\"\",Calculations!M42)))","v":""},{"$f":"IF(C58=\"FH-E\",Calculations!AI42,IF(C58=\"SH-E\",Calculations!AN42,IF(Calculations!AH42=0,\"\",Calculations!AI42)))","v":""}]
[null,null,null,null,{"$f":"IF(AND(B59=\"H\",D59<>\"\"),(VLOOKUP(D59,'Team Sheets'!$B$3:$C$30,2,FALSE)),IF(AND(B59=\"A\",D59<>\"\"),(VLOOKUP(D59,'Team Sheets'!$E$3:$F$30,2,FALSE)),\" \"))","v":" "},null,{"$f":"IF(C59=\"FH-E\",Calculations!M43,IF(C59=\"SH-E\",Calculations!U43,IF(Calculations!L43=0,\"\",Calculations!M43)))","v":""},{"$f":"IF(C59=\"FH-E\",Calculations!AI43,IF(C59=\"SH-E\",Calculations!AN43,IF(Calculations!AH43=0,\"\",Calculations!AI43)))","v":""}]
[null,null,null,null,{"$f":"IF(AND(B60=\"H\",D60<>\"\"),(VLOOKUP(D60,'Team Sheets'!$B$3:$C$30,2,FALSE)),IF(AND(B60=\"A\",D60<>\"\"),(VLOOKUP(D60,'Team Sheets'!$E$3:$F$30,2,FALSE)),\" \"))","v":" "},null,{"$f":"IF(C60=\"FH-E\",Calculations!M44,IF(C60=\"SH-E\",Calculations!U44,IF(Calculations!L44=0,\"\",Calculations!M44)))","v":""},{"$f":"IF(C60=\"FH-E\",Calculations!AI44,IF(C60=\"SH-E\",Calculations!AN44,IF(Calculations!AH44=0,\"\",Calculations!AI44)))","v":""}]
[null,null,null,null,{"$f":"IF(AND(B61=\"H\",D61<>\"\"),(VLOOKUP(D61,'Team Sheets'!$B$3:$C$30,2,FALSE)),IF(AND(B61=\"A\",D61<>\"\"),(VLOOKUP(D61,'Team Sheets'!$E$3:$F$30,2,FALSE)),\" \"))","v":" "},null,{"$f":"IF(C61=\"FH-E\",Calculations!M45,IF(C61=\"SH-E\",Calculations!U45,IF(Calculations!L45=0,\"\",Calculations!M45)))","v":""},{"$f":"IF(C61=\"FH-E\",Calculations!AI45,IF(C61=\"SH-E\",Calculations!AN45,IF(Calculations!AH45=0,\"\",Calculations!AI45)))","v":""}]
[null,null,null,null,{"$f":"IF(AND(B62=\"H\",D62<>\"\"),(VLOOKUP(D62,'Team Sheets'!$B$3:$C$30,2,FALSE)),IF(AND(B62=\"A\",D62<>\"\"),(VLOOKUP(D62,'Team Sheets'!$E$3:$F$30,2,FALSE)),\" \"))","v":" "},null,{"$f":"IF(C62=\"FH-E\",Calculations!M46,IF(C62=\"SH-E\",Calculations!U46,IF(Calculations!L46=0,\"\",Calculations!M46)))","v":""},{"$f":"IF(C62=\"FH-E\",Calculations!AI46,IF(C62=\"SH-E\",Calculations!AN46,IF(Calculations!AH46=0,\"\",Calculations!AI46)))","v":""}]
[null,null,null,null,{"$f":"IF(AND(B63=\"H\",D63<>\"\"),(VLOOKUP(D63,'Team Sheets'!$B$3:$C$30,2,FALSE)),IF(AND(B63=\"A\",D63<>\"\"),(VLOOKUP(D63,'Team Sheets'!$E$3:$F$30,2,FALSE)),\" \"))","v":" "},null,{"$f":"IF(C63=\"FH-E\",Calculations!M47,IF(C63=\"SH-E\",Calculations!U47,IF(Calculations!L47=0,\"\",Calculations!M47)))","v":""},{"$f":"IF(C63=\"FH-E\",Calculations!AI47,IF(C63=\"SH-E\",Calculations!AN47,IF(Calculations!AH47=0,\"\",Calculations!AI47)))","v":""}]
[null,null,null,null,{"$f":"IF(AND(B64=\"H\",D64<>\"\"),(VLOOKUP(D64,'Team Sheets'!$B$3:$C$30,2,FALSE)),IF(AND(B64=\"A\",D64<>\"\"),(VLOOKUP(D64,'Team Sheets'!$E$3:$F$30,2,FALSE)),\" \"))","v":" "},null,{"$f":"IF(C64=\"FH-E\",Calculations!M48,IF(C64=\"SH-E\",Calculations!U48,IF(Calculations!L48=0,\"\",Calculations!M48)))","v":""},{"$f":"IF(C64=\"FH-E\",Calculations!AI48,IF(C64=\"SH-E\",Calculations!AN48,IF(Calculations!AH48=0,\"\",Calculations!AI48)))","v":""}]
[null,null,null,null,{"$f":"IF(AND(B65=\"H\",D65<>\"\"),(VLOOKUP(D65,'Team Sheets'!$B$3:$C$30,2,FALSE)),IF(AND(B65=\"A\",D65<>\"\"),(VLOOKUP(D65,'Team Sheets'!$E$3:$F$30,2,FALSE)),\" \"))","v":" "},null,{"$f":"IF(C65=\"FH-E\",Calculations!M49,IF(C65=\"SH-E\",Calculations!U49,IF(Calculations!L49=0,\"\",Calculations!M49)))","v":""},{"$f":"IF(C65=\"FH-E\",Calculations!AI49,IF(C65=\"SH-E\",Calculations!AN49,IF(Calculations!AH49=0,\"\",Calculations!AI49)))","v":""}]
[null,null,null,null,{"$f":"IF(AND(B66=\"H\",D66<>\"\"),(VLOOKUP(D66,'Team Sheets'!$B$3:$C$30,2,FALSE)),IF(AND(B66=\"A\",D66<>\"\"),(VLOOKUP(D66,'Team Sheets'!$E$3:$F$30,2,FALSE)),\" \"))","v":" "},null,{"$f":"IF(C66=\"FH-E\",Calculations!M50,IF(C66=\"SH-E\",Calculations!U50,IF(Calculations!L50=0,\"\",Calculations!M50)))","v":""},{"$f":"IF(C66=\"FH-E\",Calculations!AI50,IF(C66=\"SH-E\",Calculations!AN50,IF(Calculations!AH50=0,\"\",Calculations!AI50)))","v":""}]
[null,null,null,null,{"$f":"IF(AND(B67=\"H\",D67<>\"\"),(VLOOKUP(D67,'Team Sheets'!$B$3:$C$30,2,FALSE)),IF(AND(B67=\"A\",D67<>\"\"),(VLOOKUP(D67,'Team Sheets'!$E$3:$F$30,2,FALSE)),\" \"))","v":" "},null,{"$f":"IF(C67=\"FH-E\",Calculations!M51,IF(C67=\"SH-E\",Calculations!U51,IF(Calculations!L51=0,\"\",Calculations!M51)))","v":""},{"$f":"IF(C67=\"FH-E\",Calculations!AI51,IF(C67=\"SH-E\",Calculations!AN51,IF(Calculations!AH51=0,\"\",Calculations!AI51)))","v":""}]
[null,null,null,null,{"$f":"IF(AND(B68=\"H\",D68<>\"\"),(VLOOKUP(D68,'Team Sheets'!$B$3:$C$30,2,FALSE)),IF(AND(B68=\"A\",D68<>\"\"),(VLOOKUP(D68,'Team Sheets'!$E$3:$F$30,2,FALSE)),\" \"))","v":" "},null,{"$f":"IF(C68=\"FH-E\",Calculations!M52,IF(C68=\"SH-E\",Calculations!U52,IF(Calculations!L52=0,\"\",Calculations!M52)))","v":""},{"$f":"IF(C68=\"FH-E\",Calculations!AI52,IF(C68=\"SH-E\",Calculations!AN52,IF(Calculations!AH52=0,\"\",Calculations!AI52)))","v":""}]
[null,null,null,null,{"$f":"IF(AND(B69=\"H\",D69<>\"\"),(VLOOKUP(D69,'Team Sheets'!$B$3:$C$30,2,FALSE)),IF(AND(B69=\"A\",D69<>\"\"),(VLOOKUP(D69,'Team Sheets'!$E$3:$F$30,2,FALSE)),\" \"))","v":" "},null,{"$f":"IF(C69=\"FH-E\",Calculations!M53,IF(C69=\"SH-E\",Calculations!U53,IF(Calculations!L53=0,\"\",Calculations!M53)))","v":""},{"$f":"IF(C69=\"FH-E\",Calculations!AI53,IF(C69=\"SH-E\",Calculations!AN53,IF(Calculations!AH53=0,\"\",Calculations!AI53)))","v":""}]
[null,null,null,null,{"$f":"IF(AND(B70=\"H\",D70<>\"\"),(VLOOKUP(D70,'Team Sheets'!$B$3:$C$30,2,FALSE)),IF(AND(B70=\"A\",D70<>\"\"),(VLOOKUP(D70,'Team Sheets'!$E$3:$F$30,2,FALSE)),\" \"))","v":" "},null,{"$f":"IF(C70=\"FH-E\",Calculations!M54,IF(C70=\"SH-E\",Calculations!U54,IF(Calculations!L54=0,\"\",Calculations!M54)))","v":""},{"$f":"IF(C70=\"FH-E\",Calculations!AI54,IF(C70=\"SH-E\",Calculations!AN54,IF(Calculations!AH54=0,\"\",Calculations!AI54)))","v":""}]
[null,null,null,null,{"$f":"IF(AND(B71=\"H\",D71<>\"\"),(VLOOKUP(D71,'Team Sheets'!$B$3:$C$30,2,FALSE)),IF(AND(B71=\"A\",D71<>\"\"),(VLOOKUP(D71,'Team Sheets'!$E$3:$F$30,2,FALSE)),\" \"))","v":" "},null,{"$f":"IF(C71=\"FH-E\",Calculations!M55,IF(C71=\"SH-E\",Calculations!U55,IF(Calculations!L55=0,\"\",Calculations!M55)))","v":""},{"$f":"IF(C71=\"FH-E\",Calculations!AI55,IF(C71=\"SH-E\",Calculations!AN55,IF(Calculations!AH55=0,\"\",Calculations!AI55)))","v":""}]
[null,null,null,null,{"$f":"IF(AND(B72=\"H\",D72<>\"\"),(VLOOKUP(D72,'Team Sheets'!$B$3:$C$30,2,FALSE)),IF(AND(B72=\"A\",D72<>\"\"),(VLOOKUP(D72,'Team Sheets'!$E$3:$F$30,2,FALSE)),\" \"))","v":" "},null,{"$f":"IF(C72=\"FH-E\",Calculations!M56,IF(C72=\"SH-E\",Calculations!U56,IF(Calculations!L56=0,\"\",Calculations!M56)))","v":""},{"$f":"IF(C72=\"FH-E\",Calculations!AI56,IF(C72=\"SH-E\",Calculations!AN56,IF(Calculations!AH56=0,\"\",Calculations!AI56)))","v":""}]
[null,null,null,null,{"$f":"IF(AND(B73=\"H\",D73<>\"\"),(VLOOKUP(D73,'Team Sheets'!$B$3:$C$30,2,FALSE)),IF(AND(B73=\"A\",D73<>\"\"),(VLOOKUP(D73,'Team Sheets'!$E$3:$F$30,2,FALSE)),\" \"))","v":" "},null,{"$f":"IF(C73=\"FH-E\",Calculations!M57,IF(C73=\"SH-E\",Calculations!U57,IF(Calculations!L57=0,\"\",Calculations!M57)))","v":""},{"$f":"IF(C73=\"FH-E\",Calculations!AI57,IF(C73=\"SH-E\",Calculations!AN57,IF(Calculations!AH57=0,\"\",Calculations!AI57)))","v":""}]
[null,null,null,null,{"$f":"IF(AND(B74=\"H\",D74<>\"\"),(VLOOKUP(D74,'Team Sheets'!$B$3:$C$30,2,FALSE)),IF(AND(B74=\"A\",D74<>\"\"),(VLOOKUP(D74,'Team Sheets'!$E$3:$F$30,2,FALSE)),\" \"))","v":" "},null,{"$f":"IF(C74=\"FH-E\",Calculations!M58,IF(C74=\"SH-E\",Calculations!U58,IF(Calculations!L58=0,\"\",Calculations!M58)))","v":""},{"$f":"IF(C74=\"FH-E\",Calculations!AI58,IF(C74=\"SH-E\",Calculations!AN58,IF(Calculations!AH58=0,\"\",Calculations!AI58)))","v":""}]
[null,null,null,null,{"$f":"IF(AND(B75=\"H\",D75<>\"\"),(VLOOKUP(D75,'Team Sheets'!$B$3:$C$30,2,FALSE)),IF(AND(B75=\"A\",D75<>\"\"),(VLOOKUP(D75,'Team Sheets'!$E$3:$F$30,2,FALSE)),\" \"))","v":" "},null,{"$f":"IF(C75=\"FH-E\",Calculations!M59,IF(C75=\"SH-E\",Calculations!U59,IF(Calculations!L59=0,\"\",Calculations!M59)))","v":""},{"$f":"IF(C75=\"FH-E\",Calculations!AI59,IF(C75=\"SH-E\",Calculations!AN59,IF(Calculations!AH59=0,\"\",Calculations!AI59)))","v":""}]
[null,null,null,null,{"$f":"IF(AND(B76=\"H\",D76<>\"\"),(VLOOKUP(D76,'Team Sheets'!$B$3:$C$30,2,FALSE)),IF(AND(B76=\"A\",D76<>\"\"),(VLOOKUP(D76,'Team Sheets'!$E$3:$F$30,2,FALSE)),\" \"))","v":" "},null,{"$f":"IF(C76=\"FH-E\",Calculations!M60,IF(C76=\"SH-E\",Calculations!U60,IF(Calculations!L60=0,\"\",Calculations!M60)))","v":""},{"$f":"IF(C76=\"FH-E\",Calculations!AI60,IF(C76=\"SH-E\",Calculations!AN60,IF(Calculations!AH60=0,\"\",Calculations!AI60)))","v":""}]
[null,null,null,null,{"$f":"IF(AND(B77=\"H\",D77<>\"\"),(VLOOKUP(D77,'Team Sheets'!$B$3:$C$30,2,FALSE)),IF(AND(B77=\"A\",D77<>\"\"),(VLOOKUP(D77,'Team Sheets'!$E$3:$F$30,2,FALSE)),\" \"))","v":" "},null,{"$f":"IF(C77=\"FH-E\",Calculations!M61,IF(C77=\"SH-E\",Calculations!U61,IF(Calculations!L61=0,\"\",Calculations!M61)))","v":""},{"$f":"IF(C77=\"FH-E\",Calculations!AI61,IF(C77=\"SH-E\",Calculations!AN61,IF(Calculations!AH61=0,\"\",Calculations!AI61)))","v":""}]
[null,null,null,null,{"$f":"IF(AND(B78=\"H\",D78<>\"\"),(VLOOKUP(D78,'Team Sheets'!$B$3:$C$30,2,FALSE)),IF(AND(B78=\"A\",D78<>\"\"),(VLOOKUP(D78,'Team Sheets'!$E$3:$F$30,2,FALSE)),\" \"))","v":" "},null,{"$f":"IF(C78=\"FH-E\",Calculations!M62,IF(C78=\"SH-E\",Calculations!U62,IF(Calculations!L62=0,\"\",Calculations!M62)))","v":""},{"$f":"IF(C78=\"FH-E\",Calculations!AI62,IF(C78=\"SH-E\",Calculations!AN62,IF(Calculations!AH62=0,\"\",Calculations!AI62)))","v":""}]
[null,null,null,null,{"$f":"IF(AND(B79=\"H\",D79<>\"\"),(VLOOKUP(D79,'Team Sheets'!$B$3:$C$30,2,FALSE)),IF(AND(B79=\"A\",D79<>\"\"),(VLOOKUP(D79,'Team Sheets'!$E$3:$F$30,2,FALSE)),\" \"))","v":" "},null,{"$f":"IF(C79=\"FH-E\",Calculations!M63,IF(C79=\"SH-E\",Calculations!U63,IF(Calculations!L63=0,\"\",Calculations!M63)))","v":""},{"$f":"IF(C79=\"FH-E\",Calculations!AI63,IF(C79=\"SH-E\",Calculations!AN63,IF(Calculations!AH63=0,\"\",Calculations!AI63)))","v":""}]
[null,null,null,null,{"$f":"IF(AND(B80=\"H\",D80<>\"\"),(VLOOKUP(D80,'Team Sheets'!$B$3:$C$30,2,FALSE)),IF(AND(B80=\"A\",D80<>\"\"),(VLOOKUP(D80,'Team Sheets'!$E$3:$F$30,2,FALSE)),\" \"))","v":" "},null,{"$f":"IF(C80=\"FH-E\",Calculations!M64,IF(C80=\"SH-E\",Calculations!U64,IF(Calculations!L64=0,\"\",Calculations!M64)))","v":""},{"$f":"IF(C80=\"FH-E\",Calculations!AI64,IF(C80=\"SH-E\",Calculations!AN64,IF(Calculations!AH64=0,\"\",Calculations!AI64)))","v":""}]
[null,null,null,null,{"$f":"IF(AND(B81=\"H\",D81<>\"\"),(VLOOKUP(D81,'Team Sheets'!$B$3:$C$30,2,FALSE)),IF(AND(B81=\"A\",D81<>\"\"),(VLOOKUP(D81,'Team Sheets'!$E$3:$F$30,2,FALSE)),\" \"))","v":" "},null,{"$f":"IF(C81=\"FH-E\",Calculations!M65,IF(C81=\"SH-E\",Calculations!U65,IF(Calculations!L65=0,\"\",Calculations!M65)))","v":""},{"$f":"IF(C81=\"FH-E\",Calculations!AI65,IF(C81=\"SH-E\",Calculations!AN65,IF(Calculations!AH65=0,\"\",Calculations!AI65)))","v":""}]
[null,null,null,null,{"$f":"IF(AND(B82=\"H\",D82<>\"\"),(VLOOKUP(D82,'Team Sheets'!$B$3:$C$30,2,FALSE)),IF(AND(B82=\"A\",D82<>\"\"),(VLOOKUP(D82,'Team Sheets'!$E$3:$F$30,2,FALSE)),\" \"))","v":" "},null,{"$f":"IF(C82=\"FH-E\",Calculations!M66,IF(C82=\"SH-E\",Calculations!U66,IF(Calculations!L66=0,\"\",Calculations!M66)))","v":""},{"$f":"IF(C82=\"FH-E\",Calculations!AI66,IF(C82=\"SH-E\",Calculations!AN66,IF(Calculations!AH66=0,\"\",Calculations!AI66)))","v":""}]
[null,null,null,null,{"$f":"IF(AND(B83=\"H\",D83<>\"\"),(VLOOKUP(D83,'Team Sheets'!$B$3:$C$30,2,FALSE)),IF(AND(B83=\"A\",D83<>\"\"),(VLOOKUP(D83,'Team Sheets'!$E$3:$F$30,2,FALSE)),\" \"))","v":" "},null,{"$f":"IF(C83=\"FH-E\",Calculations!M67,IF(C83=\"SH-E\",Calculations!U67,IF(Calculations!L67=0,\"\",Calculations!M67)))","v":""},{"$f":"IF(C83=\"FH-E\",Calculations!AI67,IF(C83=\"SH-E\",Calculations!AN67,IF(Calculations!AH67=0,\"\",Calculations!AI67)))","v":""}]
[null,null,null,null,{"$f":"IF(AND(B84=\"H\",D84<>\"\"),(VLOOKUP(D84,'Team Sheets'!$B$3:$C$30,2,FALSE)),IF(AND(B84=\"A\",D84<>\"\"),(VLOOKUP(D84,'Team Sheets'!$E$3:$F$30,2,FALSE)),\" \"))","v":" "},null,{"$f":"IF(C84=\"FH-E\",Calculations!M68,IF(C84=\"SH-E\",Calculations!U68,IF(Calculations!L68=0,\"\",Calculations!M68)))","v":""},{"$f":"IF(C84=\"FH-E\",Calculations!AI68,IF(C84=\"SH-E\",Calculations!AN68,IF(Calculations!AH68=0,\"\",Calculations!AI68)))","v":""}]
[null,null,null,null,{"$f":"IF(AND(B85=\"H\",D85<>\"\"),(VLOOKUP(D85,'Team Sheets'!$B$3:$C$30,2,FALSE)),IF(AND(B85=\"A\",D85<>\"\"),(VLOOKUP(D85,'Team Sheets'!$E$3:$F$30,2,FALSE)),\" \"))","v":" "},null,{"$f":"IF(C85=\"FH-E\",Calculations!M69,IF(C85=\"SH-E\",Calculations!U69,IF(Calculations!L69=0,\"\",Calculations!M69)))","v":""},{"$f":"IF(C85=\"FH-E\",Calculations!AI69,IF(C85=\"SH-E\",Calculations!AN69,IF(Calculations!AH69=0,\"\",Calculations!AI69)))","v":""}]
[null,null,null,null,{"$f":"IF(AND(B86=\"H\",D86<>\"\"),(VLOOKUP(D86,'Team Sheets'!$B$3:$C$30,2,FALSE)),IF(AND(B86=\"A\",D86<>\"\"),(VLOOKUP(D86,'Team Sheets'!$E$3:$F$30,2,FALSE)),\" \"))","v":" "},null,{"$f":"IF(C86=\"FH-E\",Calculations!M70,IF(C86=\"SH-E\",Calculations!U70,IF(Calculations!L70=0,\"\",Calculations!M70)))","v":""},{"$f":"IF(C86=\"FH-E\",Calculations!AI70,IF(C86=\"SH-E\",Calculations!AN70,IF(Calculations!AH70=0,\"\",Calculations!AI70)))","v":""}]
[null,null,null,null,{"$f":"IF(AND(B87=\"H\",D87<>\"\"),(VLOOKUP(D87,'Team Sheets'!$B$3:$C$30,2,FALSE)),IF(AND(B87=\"A\",D87<>\"\"),(VLOOKUP(D87,'Team Sheets'!$E$3:$F$30,2,FALSE)),\" \"))","v":" "},null,{"$f":"IF(C87=\"FH-E\",Calculations!M71,IF(C87=\"SH-E\",Calculations!U71,IF(Calculations!L71=0,\"\",Calculations!M71)))","v":""},{"$f":"IF(C87=\"FH-E\",Calculations!AI71,IF(C87=\"SH-E\",Calculations!AN71,IF(Calculations!AH71=0,\"\",Calculations!AI71)))","v":""}]
[null,null,null,null,{"$f":"IF(AND(B88=\"H\",D88<>\"\"),(VLOOKUP(D88,'Team Sheets'!$B$3:$C$30,2,FALSE)),IF(AND(B88=\"A\",D88<>\"\"),(VLOOKUP(D88,'Team Sheets'!$E$3:$F$30,2,FALSE)),\" \"))","v":" "},null,{"$f":"IF(C88=\"FH-E\",Calculations!M72,IF(C88=\"SH-E\",Calculations!U72,IF(Calculations!L72=0,\"\",Calculations!M72)))","v":""},{"$f":"IF(C88=\"FH-E\",Calculations!AI72,IF(C88=\"SH-E\",Calculations!AN72,IF(Calculations!AH72=0,\"\",Calculations!AI72)))","v":""}]
[null,null,null,null,{"$f":"IF(AND(B89=\"H\",D89<>\"\"),(VLOOKUP(D89,'Team Sheets'!$B$3:$C$30,2,FALSE)),IF(AND(B89=\"A\",D89<>\"\"),(VLOOKUP(D89,'Team Sheets'!$E$3:$F$30,2,FALSE)),\" \"))","v":" "},null,{"$f":"IF(C89=\"FH-E\",Calculations!M73,IF(C89=\"SH-E\",Calculations!U73,IF(Calculations!L73=0,\"\",Calculations!M73)))","v":""},{"$f":"IF(C89=\"FH-E\",Calculations!AI73,IF(C89=\"SH-E\",Calculations!AN73,IF(Calculations!AH73=0,\"\",Calculations!AI73)))","v":""}]
[null,null,null,null,{"$f":"IF(AND(B90=\"H\",D90<>\"\"),(VLOOKUP(D90,'Team Sheets'!$B$3:$C$30,2,FALSE)),IF(AND(B90=\"A\",D90<>\"\"),(VLOOKUP(D90,'Team Sheets'!$E$3:$F$30,2,FALSE)),\" \"))","v":" "},null,{"$f":"IF(C90=\"FH-E\",Calculations!M74,IF(C90=\"SH-E\",Calculations!U74,IF(Calculations!L74=0,\"\",Calculations!M74)))","v":""},{"$f":"IF(C90=\"FH-E\",Calculations!AI74,IF(C90=\"SH-E\",Calculations!AN74,IF(Calculations!AH74=0,\"\",Calculations!AI74)))","v":""}]
[null,null,null,null,{"$f":"IF(AND(B91=\"H\",D91<>\"\"),(VLOOKUP(D91,'Team Sheets'!$B$3:$C$30,2,FALSE)),IF(AND(B91=\"A\",D91<>\"\"),(VLOOKUP(D91,'Team Sheets'!$E$3:$F$30,2,FALSE)),\" \"))","v":" "},null,{"$f":"IF(C91=\"FH-E\",Calculations!M75,IF(C91=\"SH-E\",Calculations!U75,IF(Calculations!L75=0,\"\",Calculations!M75)))","v":""},{"$f":"IF(C91=\"FH-E\",Calculations!AI75,IF(C91=\"SH-E\",Calculations!AN75,IF(Calculations!AH75=0,\"\",Calculations!AI75)))","v":""}]
[null,null,null,null,{"$f":"IF(AND(B92=\"H\",D92<>\"\"),(VLOOKUP(D92,'Team Sheets'!$B$3:$C$30,2,FALSE)),IF(AND(B92=\"A\",D92<>\"\"),(VLOOKUP(D92,'Team Sheets'!$E$3:$F$30,2,FALSE)),\" \"))","v":" "},null,{"$f":"IF(C92=\"FH-E\",Calculations!M76,IF(C92=\"SH-E\",Calculations!U76,IF(Calculations!L76=0,\"\",Calculations!M76)))","v":""},{"$f":"IF(C92=\"FH-E\",Calculations!AI76,IF(C92=\"SH-E\",Calculations!AN76,IF(Calculations!AH76=0,\"\",Calculations!AI76)))","v":""}]
[null,null,null,null,{"$f":"IF(AND(B93=\"H\",D93<>\"\"),(VLOOKUP(D93,'Team Sheets'!$B$3:$C$30,2,FALSE)),IF(AND(B93=\"A\",D93<>\"\"),(VLOOKUP(D93,'Team Sheets'!$E$3:$F$30,2,FALSE)),\" \"))","v":" "},null,{"$f":"IF(C93=\"FH-E\",Calculations!M77,IF(C93=\"SH-E\",Calculations!U77,IF(Calculations!L77=0,\"\",Calculations!M77)))","v":""},{"$f":"IF(C93=\"FH-E\",Calculations!AI77,IF(C93=\"SH-E\",Calculations!AN77,IF(Calculations!AH77=0,\"\",Calculations!AI77)))","v":""}]
[null,null,null,null,{"$f":"IF(AND(B94=\"H\",D94<>\"\"),(VLOOKUP(D94,'Team Sheets'!$B$3:$C$30,2,FALSE)),IF(AND(B94=\"A\",D94<>\"\"),(VLOOKUP(D94,'Team Sheets'!$E$3:$F$30,2,FALSE)),\" \"))","v":" "},null,{"$f":"IF(C94=\"FH-E\",Calculations!M78,IF(C94=\"SH-E\",Calculations!U78,IF(Calculations!L78=0,\"\",Calculations!M78)))","v":""},{"$f":"IF(C94=\"FH-E\",Calculations!AI78,IF(C94=\"SH-E\",Calculations!AN78,IF(Calculations!AH78=0,\"\",Calculations!AI78)))","v":""}]
[null,null,null,null,{"$f":"IF(AND(B95=\"H\",D95<>\"\"),(VLOOKUP(D95,'Team Sheets'!$B$3:$C$30,2,FALSE)),IF(AND(B95=\"A\",D95<>\"\"),(VLOOKUP(D95,'Team Sheets'!$E$3:$F$30,2,FALSE)),\" \"))","v":" "},null,{"$f":"IF(C95=\"FH-E\",Calculations!M79,IF(C95=\"SH-E\",Calculations!U79,IF(Calculations!L79=0,\"\",Calculations!M79)))","v":""},{"$f":"IF(C95=\"FH-E\",Calculations!AI79,IF(C95=\"SH-E\",Calculations!AN79,IF(Calculations!AH79=0,\"\",Calculations!AI79)))","v":""}]
[null,null,null,null,{"$f":"IF(AND(B96=\"H\",D96<>\"\"),(VLOOKUP(D96,'Team Sheets'!$B$3:$C$30,2,FALSE)),IF(AND(B96=\"A\",D96<>\"\"),(VLOOKUP(D96,'Team Sheets'!$E$3:$F$30,2,FALSE)),\" \"))","v":" "},null,{"$f":"IF(C96=\"FH-E\",Calculations!M80,IF(C96=\"SH-E\",Calculations!U80,IF(Calculations!L80=0,\"\",Calculations!M80)))","v":""},{"$f":"IF(C96=\"FH-E\",Calculations!AI80,IF(C96=\"SH-E\",Calculations!AN80,IF(Calculations!AH80=0,\"\",Calculations!AI80)))","v":""}]
[null,null,null,null,{"$f":"IF(AND(B97=\"H\",D97<>\"\"),(VLOOKUP(D97,'Team Sheets'!$B$3:$C$30,2,FALSE)),IF(AND(B97=\"A\",D97<>\"\"),(VLOOKUP(D97,'Team Sheets'!$E$3:$F$30,2,FALSE)),\" \"))","v":" "},null,{"$f":"IF(C97=\"FH-E\",Calculations!M81,IF(C97=\"SH-E\",Calculations!U81,IF(Calculations!L81=0,\"\",Calculations!M81)))","v":""},{"$f":"IF(C97=\"FH-E\",Calculations!AI81,IF(C97=\"SH-E\",Calculations!AN81,IF(Calculations!AH81=0,\"\",Calculations!AI81)))","v":""}]
[null,null,null,null,{"$f":"IF(AND(B98=\"H\",D98<>\"\"),(VLOOKUP(D98,'Team Sheets'!$B$3:$C$30,2,FALSE)),IF(AND(B98=\"A\",D98<>\"\"),(VLOOKUP(D98,'Team Sheets'!$E$3:$F$30,2,FALSE)),\" \"))","v":" "},null,{"$f":"IF(C98=\"FH-E\",Calculations!M82,IF(C98=\"SH-E\",Calculations!U82,IF(Calculations!L82=0,\"\",Calculations!M82)))","v":""},{"$f":"IF(C98=\"FH-E\",Calculations!AI82,IF(C98=\"SH-E\",Calculations!AN82,IF(Calculations!AH82=0,\"\",Calculations!AI82)))","v":""}]
[null,null,null,null,{"$f":"IF(AND(B99=\"H\",D99<>\"\"),(VLOOKUP(D99,'Team Sheets'!$B$3:$C$30,2,FALSE)),IF(AND(B99=\"A\",D99<>\"\"),(VLOOKUP(D99,'Team Sheets'!$E$3:$F$30,2,FALSE)),\" \"))","v":" "},null,{"$f":"IF(C99=\"FH-E\",Calculations!M83,IF(C99=\"SH-E\",Calculations!U83,IF(Calculations!L83=0,\"\",Calculations!M83)))","v":""},{"$f":"IF(C99=\"FH-E\",Calculations!AI83,IF(C99=\"SH-E\",Calculations!AN83,IF(Calculations!AH83=0,\"\",Calculations!AI83)))","v":""}]
[null,null,null,null,{"$f":"IF(AND(B100=\"H\",D100<>\"\"),(VLOOKUP(D100,'Team Sheets'!$B$3:$C$30,2,FALSE)),IF(AND(B100=\"A\",D100<>\"\"),(VLOOKUP(D100,'Team Sheets'!$E$3:$F$30,2,FALSE)),\" \"))","v":" "},null,{"$f":"IF(C100=\"FH-E\",Calculations!M84,IF(C100=\"SH-E\",Calculations!U84,IF(Calculations!L84=0,\"\",Calculations!M84)))","v":""},{"$f":"IF(C100=\"FH-E\",Calculations!AI84,IF(C100=\"SH-E\",Calculations!AN84,IF(Calculations!AH84=0,\"\",Calculations!AI84)))","v":""}]

{"sheet":"Calculations","index":2,"n_rows":86,"n_cols":40,"rows_kept":86,"cut":false,"hidden":true,"merged":[[85,35,85,36],[85,15,85,16],[0,1,0,5],[0,22,0,24],[0,25,0,29]]}
["Home Team:",{"$f":"'Match Score Sheet'!B15","v":0},null,null,null,null,null,null,null,null,null,null,null,null,null,null,null,null,null,null,null,null,"Away Team:",null,null,{"$f":"'Match Score Sheet'!B16","v":0}]
[]
[null,"Try","Penalty Try","Conversion","Penalty","Drop Goal","try","PT","con","Pen","Drop",null,"Points",null,null,null,"Halftime Score",null,null,"Full Time Score",null,null,null,"Try","Penalty Try","Conversion","Penalty","Drop Goal","Try","PT","Con","Pen","Drop",null,"Points",null,"Halftime Score",null,"Full Time Score"]
[null,{"$f":"AND('Match Score Sheet'!B20 = \"h\",'Match Score Sheet'!C20 = \"t\")","v":false},{"$f":"AND('Match Score Sheet'!B20 = \"h\",'Match Score Sheet'!C20 = \"pt\")","v":false},{"$f":"AND('Match Score Sheet'!B20 = \"h\",'Match Score Sheet'!C20 = \"c\")","v":false},{"$f":"AND('Match Score Sheet'!B20 = \"h\",'Match Score Sheet'!C20 = \"p\")","v":false},{"$f":"AND('Match Score Sheet'!B20 = \"h\",'Match Score Sheet'!C20 = \"dg\")","v":false},{"$f":"IF(B4 = TRUE,5,0)","v":0},{"$f":"IF(C4 = TRUE,7,0)","v":0},{"$f":"IF(D4 = TRUE,2,0)","v":0},{"$f":"IF(E4 = TRUE,3,0)","v":0},{"$f":"IF(F4 = TRUE,3,0)","v":0},{"$f":"SUM(G4:K4)","v":0},{"$f":"L4","v":0},null,null,null,{"$f":"AND('Match Score Sheet'!B20 = \"\",'Match Score Sheet'!C20 = \"fh-e\")","v":false},{"$f":"IF(Q4=TRUE,M4,\"\")","v":""},null,{"$f":"AND('Match Score Sheet'!B20 = \"\",'Match Score Sheet'!C20 = \"sh-e\")","v":false},{"$f":"IF(T4=TRUE,M4,\"\")","v":""},null,null,{"$f":"AND('Match Score Sheet'!B20 = \"a\",'Match Score Sheet'!C20 = \"t\")","v":false},{"$f":"AND('Match Score Sheet'!B20 = \"a\",'Match Score Sheet'!C20 = \"pt\")","v":false},{"$f":"AND('Match Score Sheet'!B20 = \"a\",'Match Score Sheet'!C20 = \"c\")","v":false},{"$f":"AND('Match Score Sheet'!B20 = \"a\",'Match Score Sheet'!C20 = \"p\")","v":false},{"$f":"AND('Match Score Sheet'!B20 = \"a\",'Match Score Sheet'!C20 = \"dg\")","v":false},{"$f":"IF(X4 = TRUE,5,0)","v":0},{"$f":"IF(Y4 = TRUE,7,0)","v":0},{"$f":"IF(Z4 = TRUE,2,0)","v":0},{"$f":"IF(AA4 = TRUE,3,0)","v":0},{"$f":"IF(AB4 = TRUE,3,0)","v":0},{"$f":"SUM(AC4:AG4)","v":0},{"$f":"AH4","v":0},null,{"$f":"AND('Match Score Sheet'!B20 = \"\",'Match Score Sheet'!C20 = \"fh-e\")","v":false},{"$f":"IF(AK4=TRUE,AI4,\"\")","v":""},{"$f":"AND('Match Score Sheet'!B20 = \"\",'Match Score Sheet'!C20 = \"sh-e\")","v":false},{"$f":"IF(AM4=TRUE,AI4,\"\")","v":""}]
[null,{"$f":"AND('Match Score Sheet'!B21 = \"h\",'Match Score Sheet'!C21 = \"t\")","v":false},{"$f":"AND('Match Score Sheet'!B21 = \"h\",'Match Score Sheet'!C21 = \"pt\")","v":false},{"$f":"AND('Match Score Sheet'!B21 = \"h\",'Match Score Sheet'!C21 = \"c\")","v":false},{"$f":"AND('Match Score Sheet'!B21 = \"h\",'Match Score Sheet'!C21 = \"p\")","v":false},{"$f":"AND('Match Score Sheet'!B21 = \"h\",'Match Score Sheet'!C21 = \"dg\")","v":false},{"$f":"IF(B5 = TRUE,5,0)","v":0},{"$f":"IF(C5 = TRUE,7,0)","v":0},{"$f":"IF(D5 = TRUE,2,0)","v":0},{"$f":"IF(E5 = TRUE,3,0)","v":0},{"$f":"IF(F5 = TRUE,3,0)","v":0},{"$f":"SUM(G5:K5)","v":0},{"$f":"M4+L5","v":0},null,null,null,{"$f":"AND('Match Score Sheet'!B21 = \"\",'Match Score Sheet'!C21 = \"fh-e\")","v":false},"",null,{"$f":"AND('Match Score Sheet'!B21 = \"\",'Match Score Sheet'!C21 = \"sh-e\")","v":false},{"$f":"IF(T5=TRUE,M5,\"\")","v":""},null,null,{"$f":"AND('Match Score Sheet'!B21 = \"a\",'Match Score Sheet'!C21 = \"t\")","v":false},{"$f":"AND('Match Score Sheet'!B21 = \"a\",'Match Score Sheet'!C21 = \"pt\")","v":false},{"$f":"AND('Match Score Sheet'!B21 = \"a\",'Match Score Sheet'!C21 = \"c\")","v":false},{"$f":"AND('Match Score Sheet'!B21 = \"a\",'Match Score Sheet'!C21 = \"p\")","v":false},{"$f":"AND('Match Score Sheet'!B21 = \"a\",'Match Score Sheet'!C21 = \"dg\")","v":false},{"$f":"IF(X5 = TRUE,5,0)","v":0},{"$f":"IF(Y5 = TRUE,7,0)","v":0},{"$f":"IF(Z5 = TRUE,2,0)","v":0},{"$f":"IF(AA5 = TRUE,3,0)","v":0},{"$f":"IF(AB5 = TRUE,3,0)","v":0},{"$f":"SUM(AC5:AG5)","v":0},{"$f":"AI4+AH5","v":0},null,{"$f":"AND('Match Score Sheet'!B21 = \"\",'Match Score Sheet'!C21 = \"fh-e\")","v":false},"",{"$f":"AND('Match Score Sheet'!B21 = \"\",'Match Score Sheet'!C21 = \"sh-e\")","v":false},{"$f":"IF(AM5=TRUE,AI5,\"\")","v":""}]
[null,{"$f":"AND('Match Score Sheet'!B22 = \"h\",'Match Score Sheet'!C22 = \"t\")","v":false},{"$f":"AND('Match Score Sheet'!B22 = \"h\",'Match Score Sheet'!C22 = \"pt\")","v":false},{"$f":"AND('Match Score Sheet'!B22 = \"h\",'Match Score Sheet'!C22 = \"c\")","v":false},{"$f":"AND('Match Score Sheet'!B22 = \"h\",'Match Score Sheet'!C22 = \"p\")","v":false},{"$f":"AND('Match Score Sheet'!B22 = \"h\",'Match Score Sheet'!C22 = \"dg\")","v":false},0,0,0,0,0,0,{"$f":"M5+L6","v":0},null,null,null,{"$f":"AND('Match Score Sheet'!B22 = \"\",'Match Score Sheet'!C22 = \"fh-e\")","v":false},"",null,{"$f":"AND('Match Score Sheet'!B22 = \"\",'Match Score Sheet'!C22 = \"sh-e\")","v":false},"",null,null,{"$f":"AND('Match Score Sheet'!B22 = \"a\",'Match Score Sheet'!C22 = \"t\")","v":false},{"$f":"AND('Match Score Sheet'!B22 = \"a\",'Match Score Sheet'!C22 = \"pt\")","v":false},{"$f":"AND('Match Score Sheet'!B22 = \"a\",'Match Score Sheet'!C22 = \"c\")","v":false},{"$f":"AND('Match Score Sheet'!B22 = \"a\",'Match Score Sheet'!C22 = \"p\")","v":false},{"$f":"AND('Match Score Sheet'!B22 = \"a\",'Match Score Sheet'!C22 = \"dg\")","v":false},0,0,0,0,0,0,{"$f":"AI5+AH6","v":0},null,{"$f":"AND('Match Score Sheet'!B22 = \"\",'Match Score Sheet'!C22 = \"fh-e\")","v":false},"",{"$f":"AND('Match Score Sheet'!B22 = \"\",'Match Score Sheet'!C22 = \"sh-e\")","v":false},""]
[null,{"$f":"AND('Match Score Sheet'!B23 = \"h\",'Match Score Sheet'!C23 = \"t\")","v":false},{"$f":"AND('Match Score Sheet'!B23 = \"h\",'Match Score Sheet'!C23 = \"pt\")","v":false},{"$f":"AND('Match Score Sheet'!B23 = \"h\",'Match Score Sheet'!C23 = \"c\")","v":false},{"$f":"AND('Match Score Sheet'!B23 = \"h\",'Match Score Sheet'!C23 = \"p\")","v":false},{"$f":"AND('Match Score Sheet'!B23 = \"h\",'Match Score Sheet'!C23 = \"dg\")","v":false},0,0,0,0,0,0,{"$f":"M6+L7","v":0},null,null,null,{"$f":"AND('Match Score Sheet'!B23 = \"\",'Match Score Sheet'!C23 = \"fh-e\")","v":false},"",null,{"$f":"AND('Match Score Sheet'!B23 = \"\",'Match Score Sheet'!C23 = \"sh-e\")","v":false},"",null,null,{"$f":"AND('Match Score Sheet'!B23 = \"a\",'Match Score Sheet'!C23 = \"t\")","v":false},{"$f":"AND('Match Score Sheet'!B23 = \"a\",'Match Score Sheet'!C23 = \"pt\")","v":false},{"$f":"AND('Match Score Sheet'!B23 = \"a\",'Match Score Sheet'!C23 = \"c\")","v":false},{"$f":"AND('Match Score Sheet'!B23 = \"a\",'Match Score Sheet'!C23 = \"p\")","v":false},{"$f":"AND('Match Score Sheet'!B23 = \"a\",'Match Score Sheet'!C23 = \"dg\")","v":false},0,0,0,0,0,0,0,null,{"$f":"AND('Match Score Sheet'!B23 = \"\",'Match Score Sheet'!C23 = \"fh-e\")","v":false},"",{"$f":"AND('Match Score Sheet'!B23 = \"\",'Match Score Sheet'!C23 = \"sh-e\")","v":false},""]
[null,{"$f":"AND('Match Score Sheet'!B24 = \"h\",'Match Score Sheet'!C24 = \"t\")","v":false},{"$f":"AND('Match Score Sheet'!B24 = \"h\",'Match Score Sheet'!C24 = \"pt\")","v":false},{"$f":"AND('Match Score Sheet'!B24 = \"h\",'Match Score Sheet'!C24 = \"c\")","v":false},{"$f":"AND('Match Score Sheet'!B24 = \"h\",'Match Score Sheet'!C24 = \"p\")","v":false},{"$f":"AND('Match Score Sheet'!B24 = \"h\",'Match Score Sheet'!C24 = \"dg\")","v":false},0,0,0,0,0,0,0,null,null,null,{"$f":"AND('Match Score Sheet'!B24 = \"\",'Match Score Sheet'!C24 = \"fh-e\")","v":false},"",null,{"$f":"AND('Match Score Sheet'!B24 = \"\",'Match Score Sheet'!C24 = \"sh-e\")","v":false},"",null,null,{"$f":"AND('Match Score Sheet'!B24 = \"a\",'Match Score Sheet'!C24 = \"t\")","v":false},{"$f":"AND('Match Score Sheet'!B24 = \"a\",'Match Score Sheet'!C24 = \"pt\")","v":false},{"$f":"AND('Match Score Sheet'!B24 = \"a\",'Match Score Sheet'!C24 = \"c\")","v":false},{"$f":"AND('Match Score Sheet'!B24 = \"a\",'Match Score Sheet'!C24 = \"p\")","v":false},{"$f":"AND('Match Score Sheet'!B24 = \"a\",'Match Score Sheet'!C24 = \"dg\")","v":false},0,0,0,0,0,0,0,null,{"$f":"AND('Match Score Sheet'!B24 = \"\",'Match Score Sheet'!C24 = \"fh-e\")","v":false},"",{"$f":"AND('Match Score Sheet'!B24 = \"\",'Match Score Sheet'!C24 = \"sh-e\")","v":false},""]
[null,{"$f":"AND('Match Score Sheet'!B25 = \"h\",'Match Score Sheet'!C25 = \"t\")","v":false},{"$f":"AND('Match Score Sheet'!B25 = \"h\",'Match Score Sheet'!C25 = \"pt\")","v":false},{"$f":"AND('Match Score Sheet'!B25 = \"h\",'Match Score Sheet'!C25 = \"c\")","v":false},{"$f":"AND('Match Score Sheet'!B25 = \"h\",'Match Score Sheet'!C25 = \"p\")","v":false},{"$f":"AND('Match Score Sheet'!B25 = \"h\",'Match Score Sheet'!C25 = \"dg\")","v":false},0,0,0,0,0,0,0,null,null,null,{"$f":"AND('Match Score Sheet'!B25 = \"\",'Match Score Sheet'!C25 = \"fh-e\")","v":false},"",null,{"$f":"AND('Match Score Sheet'!B25 = \"\",'Match Score Sheet'!C25 = \"sh-e\")","v":false},"",null,null,{"$f":"AND('Match Score Sheet'!B25 = \"a\",'Match Score Sheet'!C25 = \"t\")","v":false},{"$f":"AND('Match Score Sheet'!B25 = \"a\",'Match Score Sheet'!C25 = \"pt\")","v":false},{"$f":"AND('Match Score Sheet'!B25 = \"a\",'Match Score Sheet'!C25 = \"c\")","v":false},{"$f":"AND('Match Score Sheet'!B25 = \"a\",'Match Score Sheet'!C25 = \"p\")","v":false},{"$f":"AND('Match Score Sheet'!B25 = \"a\",'Match Score Sheet'!C25 = \"dg\")","v":false},0,0,0,0,0,0,0,null,{"$f":"AND('Match Score Sheet'!B25 = \"\",'Match Score Sheet'!C25 = \"fh-e\")","v":false},"",{"$f":"AND('Match Score Sheet'!B25 = \"\",'Match Score Sheet'!C25 = \"sh-e\")","v":false},""]
[null,{"$f":"AND('Match Score Sheet'!B26 = \"h\",'Match Score Sheet'!C26 = \"t\")","v":false},{"$f":"AND('Match Score Sheet'!B26 = \"h\",'Match Score Sheet'!C26 = \"pt\")","v":false},{"$f":"AND('Match Score Sheet'!B26 = \"h\",'Match Score Sheet'!C26 = \"c\")","v":false},{"$f":"AND('Match Score Sheet'!B26 = \"h\",'Match Score Sheet'!C26 = \"p\")","v":false},{"$f":"AND('Match Score Sheet'!B26 = \"h\",'Match Score Sheet'!C26 = \"dg\")","v":false},0,0,0,0,0,0,0,null,null,null,{"$f":"AND('Match Score Sheet'!B26 = \"\",'Match Score Sheet'!C26 = \"fh-e\")","v":false},"",null,{"$f":"AND('Match Score Sheet'!B26 = \"\",'Match Score Sheet'!C26 = \"sh-e\")","v":false},"",null,null,{"$f":"AND('Match Score Sheet'!B26 = \"a\",'Match Score Sheet'!C26 = \"t\")","v":false},{"$f":"AND('Match Score Sheet'!B26 = \"a\",'Match Score Sheet'!C26 = \"pt\")","v":false},{"$f":"AND('Match Score Sheet'!B26 = \"a\",'Match Score Sheet'!C26 = \"c\")","v":false},{"$f":"AND('Match Score Sheet'!B26 = \"a\",'Match Score Sheet'!C26 = \"p\")","v":false},{"$f":"AND('Match Score Sheet'!B26 = \"a\",'Match Score Sheet'!C26 = \"dg\")","v":false},0,0,0,0,0,0,0,null,{"$f":"AND('Match Score Sheet'!B26 = \"\",'Match Score Sheet'!C26 = \"fh-e\")","v":false},"",{"$f":"AND('Match Score Sheet'!B26 = \"\",'Match Score Sheet'!C26 = \"sh-e\")","v":false},""]
[null,{"$f":"AND('Match Score Sheet'!B27 = \"h\",'Match Score Sheet'!C27 = \"t\")","v":false},{"$f":"AND('Match Score Sheet'!B27 = \"h\",'Match Score Sheet'!C27 = \"pt\")","v":false},{"$f":"AND('Match Score Sheet'!B27 = \"h\",'Match Score Sheet'!C27 = \"c\")","v":false},{"$f":"AND('Match Score Sheet'!B27 = \"h\",'Match Score Sheet'!C27 = \"p\")","v":false},{"$f":"AND('Match Score Sheet'!B27 = \"h\",'Match Score Sheet'!C27 = \"dg\")","v":false},0,0,0,0,0,0,0,null,null,null,{"$f":"AND('Match Score Sheet'!B27 = \"\",'Match Score Sheet'!C27 = \"fh-e\")","v":false},"",null,{"$f":"AND('Match Score Sheet'!B27 = \"\",'Match Score Sheet'!C27 = \"sh-e\")","v":false},"",null,null,{"$f":"AND('Match Score Sheet'!B27 = \"a\",'Match Score Sheet'!C27 = \"t\")","v":false},{"$f":"AND('Match Score Sheet'!B27 = \"a\",'Match Score Sheet'!C27 = \"pt\")","v":false},{"$f":"AND('Match Score Sheet'!B27 = \"a\",'Match Score Sheet'!C27 = \"c\")","v":false},{"$f":"AND('Match Score Sheet'!B27 = \"a\",'Match Score Sheet'!C27 = \"p\")","v":false},{"$f":"AND('Match Score Sheet'!B27 = \"a\",'Match Score Sheet'!C27 = \"dg\")","v":false},0,0,0,0,0,0,0,null,{"$f":"AND('Match Score Sheet'!B27 = \"\",'Match Score Sheet'!C27 = \"fh-e\")","v":false},"",{"$f":"AND('Match Score Sheet'!B27 = \"\",'Match Score Sheet'!C27 = \"sh-e\")","v":false},""]
[null,{"$f":"AND('Match Score Sheet'!B28 = \"h\",'Match Score Sheet'!C28 = \"t\")","v":false},{"$f":"AND('Match Score Sheet'!B28 = \"h\",'Match Score Sheet'!C28 = \"pt\")","v":false},{"$f":"AND('Match Score Sheet'!B28 = \"h\",'Match Score Sheet'!C28 = \"c\")","v":false},{"$f":"AND('Match Score Sheet'!B28 = \"h\",'Match Score Sheet'!C28 = \"p\")","v":false},{"$f":"AND('Match Score Sheet'!B28 = \"h\",'Match Score Sheet'!C28 = \"dg\")","v":false},0,0,0,0,0,0,0,null,null,null,{"$f":"AND('Match Score Sheet'!B28 = \"\",'Match Score Sheet'!C28 = \"fh-e\")","v":false},"",null,{"$f":"AND('Match Score Sheet'!B28 = \"\",'Match Score Sheet'!C28 = \"sh-e\")","v":false},"",null,null,{"$f":"AND('Match Score Sheet'!B28 = \"a\",'Match Score Sheet'!C28 = \"t\")","v":false},{"$f":"AND('Match Score Sheet'!B28 = \"a\",'Match Score Sheet'!C28 = \"pt\")","v":false},{"$f":"AND('Match Score Sheet'!B28 = \"a\",'Match Score Sheet'!C28 = \"c\")","v":false},{"$f":"AND('Match Score Sheet'!B28 = \"a\",'Match Score Sheet'!C28 = \"p\")","v":false},{"$f":"AND('Match Score Sheet'!B28 = \"a\",'Match Score Sheet'!C28 = \"dg\")","v":false},0,0,0,0,0,0,0,null,{"$f":"AND('Match Score Sheet'!B28 = \"\",'Match Score Sheet'!C28 = \"fh-e\")","v":false},"",{"$f":"AND('Match Score Sheet'!B28 = \"\",'Match Score Sheet'!C28 = \"sh-e\")","v":false},""]
[null,{"$f":"AND('Match Score Sheet'!B29 = \"h\",'Match Score Sheet'!C29 = \"t\")","v":false},{"$f":"AND('Match Score Sheet'!B29 = \"h\",'Match Score Sheet'!C29 = \"pt\")","v":false},{"$f":"AND('Match Score Sheet'!B29 = \"h\",'Match Score Sheet'!C29 = \"c\")","v":false},{"$f":"AND('Match Score Sheet'!B29 = \"h\",'Match Score Sheet'!C29 = \"p\")","v":false},{"$f":"AND('Match Score Sheet'!B29 = \"h\",'Match Score Sheet'!C29 = \"dg\")","v":false},0,0,0,0,0,0,0,null,null,null,{"$f":"AND('Match Score Sheet'!B29 = \"\",'Match Score Sheet'!C29 = \"fh-e\")","v":false},"",null,{"$f":"AND('Match Score Sheet'!B29 = \"\",'Match Score Sheet'!C29 = \"sh-e\")","v":false},"",null,null,{"$f":"AND('Match Score Sheet'!B29 = \"a\",'Match Score Sheet'!C29 = \"t\")","v":false},{"$f":"AND('Match Score Sheet'!B29 = \"a\",'Match Score Sheet'!C29 = \"pt\")","v":false},{"$f":"AND('Match Score Sheet'!B29 = \"a\",'Match Score Sheet'!C29 = \"c\")","v":false},{"$f":"AND('Match Score Sheet'!B29 = \"a\",'Match Score Sheet'!C29 = \"p\")","v":false},{"$f":"AND('Match Score Sheet'!B29 = \"a\",'Match Score Sheet'!C29 = \"dg\")","v":false},0,0,0,0,0,0,0,null,{"$f":"AND('Match Score Sheet'!B29 = \"\",'Match Score Sheet'!C29 = \"fh-e\")","v":false},"",{"$f":"AND('Match Score Sheet'!B29 = \"\",'Match Score Sheet'!C29 = \"sh-e\")","v":false},""]
[null,{"$f":"AND('Match Score Sheet'!B30 = \"h\",'Match Score Sheet'!C30 = \"t\")","v":false},{"$f":"AND('Match Score Sheet'!B30 = \"h\",'Match Score Sheet'!C30 = \"pt\")","v":false},{"$f":"AND('Match Score Sheet'!B30 = \"h\",'Match Score Sheet'!C30 = \"c\")","v":false},{"$f":"AND('Match Score Sheet'!B30 = \"h\",'Match Score Sheet'!C30 = \"p\")","v":false},{"$f":"AND('Match Score Sheet'!B30 = \"h\",'Match Score Sheet'!C30 = \"dg\")","v":false},0,0,0,0,0,0,0,null,null,null,{"$f":"AND('Match Score Sheet'!B30 = \"\",'Match Score Sheet'!C30 = \"fh-e\")","v":false},"",null,{"$f":"AND('Match Score Sheet'!B30 = \"\",'Match Score Sheet'!C30 = \"sh-e\")","v":false},"",null,null,{"$f":"AND('Match Score Sheet'!B30 = \"a\",'Match Score Sheet'!C30 = \"t\")","v":false},{"$f":"AND('Match Score Sheet'!B30 = \"a\",'Match Score Sheet'!C30 = \"pt\")","v":false},{"$f":"AND('Match Score Sheet'!B30 = \"a\",'Match Score Sheet'!C30 = \"c\")","v":false},{"$f":"AND('Match Score Sheet'!B30 = \"a\",'Match Score Sheet'!C30 = \"p\")","v":false},{"$f":"AND('Match Score Sheet'!B30 = \"a\",'Match Score Sheet'!C30 = \"dg\")","v":false},0,0,0,0,0,0,0,null,{"$f":"AND('Match Score Sheet'!B30 = \"\",'Match Score Sheet'!C30 = \"fh-e\")","v":false},"",{"$f":"AND('Match Score Sheet'!B30 = \"\",'Match Score Sheet'!C30 = \"sh-e\")","v":false},""]
[null,{"$f":"AND('Match Score Sheet'!B31 = \"h\",'Match Score Sheet'!C31 = \"t\")","v":false},{"$f":"AND('Match Score Sheet'!B31 = \"h\",'Match Score Sheet'!C31 = \"pt\")","v":false},{"$f":"AND('Match Score Sheet'!B31 = \"h\",'Match Score Sheet'!C31 = \"c\")","v":false},{"$f":"AND('Match Score Sheet'!B31 = \"h\",'Match Score Sheet'!C31 = \"p\")","v":false},{"$f":"AND('Match Score Sheet'!B31 = \"h\",'Match Score Sheet'!C31 = \"dg\")","v":false},0,0,0,0,0,0,0,null,null,null,{"$f":"AND('Match Score Sheet'!B31 = \"\",'Match Score Sheet'!C31 = \"fh-e\")","v":false},"",null,{"$f":"AND('Match Score Sheet'!B31 = \"\",'Match Score Sheet'!C31 = \"sh-e\")","v":false},"",null,null,{"$f":"AND('Match Score Sheet'!B31 = \"a\",'Match Score Sheet'!C31 = \"t\")","v":false},{"$f":"AND('Match Score Sheet'!B31 = \"a\",'Match Score Sheet'!C31 = \"pt\")","v":false},{"$f":"AND('Match Score Sheet'!B31 = \"a\",'Match Score Sheet'!C31 = \"c\")","v":false},{"$f":"AND('Match Score Sheet'!B31 = \"a\",'Match Score Sheet'!C31 = \"p\")","v":false},{"$f":"AND('Match Score Sheet'!B31 = \"a\",'Match Score Sheet'!C31 = \"dg\")","v":false},0,0,0,0,0,0,0,null,{"$f":"AND('Match Score Sheet'!B31 = \"\",'Match Score Sheet'!C31 = \"fh-e\")","v":false},"",{"$f":"AND('Match Score Sheet'!B31 = \"\",'Match Score Sheet'!C31 = \"sh-e\")","v":false},""]
[null,{"$f":"AND('Match Score Sheet'!B32 = \"h\",'Match Score Sheet'!C32 = \"t\")","v":false},{"$f":"AND('Match Score Sheet'!B32 = \"h\",'Match Score Sheet'!C32 = \"pt\")","v":false},{"$f":"AND('Match Score Sheet'!B32 = \"h\",'Match Score Sheet'!C32 = \"c\")","v":false},{"$f":"AND('Match Score Sheet'!B32 = \"h\",'Match Score Sheet'!C32 = \"p\")","v":false},{"$f":"AND('Match Score Sheet'!B32 = \"h\",'Match Score Sheet'!C32 = \"dg\")","v":false},0,0,0,0,0,0,0,null,null,null,{"$f":"AND('Match Score Sheet'!B32 = \"\",'Match Score Sheet'!C32 = \"fh-e\")","v":false},"",null,{"$f":"AND('Match Score Sheet'!B32 = \"\",'Match Score Sheet'!C32 = \"sh-e\")","v":false},"",null,null,{"$f":"AND('Match Score Sheet'!B32 = \"a\",'Match Score Sheet'!C32 = \"t\")","v":false},{"$f":"AND('Match Score Sheet'!B32 = \"a\",'Match Score Sheet'!C32 = \"pt\")","v":false},{"$f":"AND('Match Score Sheet'!B32 = \"a\",'Match Score Sheet'!C32 = \"c\")","v":false},{"$f":"AND('Match Score Sheet'!B32 = \"a\",'Match Score Sheet'!C32 = \"p\")","v":false},{"$f":"AND('Match Score Sheet'!B32 = \"a\",'Match Score Sheet'!C32 = \"dg\")","v":false},0,0,0,0,0,0,0,null,{"$f":"AND('Match Score Sheet'!B32 = \"\",'Match Score Sheet'!C32 = \"fh-e\")","v":false},"",{"$f":"AND('Match Score Sheet'!B32 = \"\",'Match Score Sheet'!C32 = \"sh-e\")","v":false},""]
[null,{"$f":"AND('Match Score Sheet'!B33 = \"h\",'Match Score Sheet'!C33 = \"t\")","v":false},{"$f":"AND('Match Score Sheet'!B33 = \"h\",'Match Score Sheet'!C33 = \"pt\")","v":false},{"$f":"AND('Match Score Sheet'!B33 = \"h\",'Match Score Sheet'!C33 = \"c\")","v":false},{"$f":"AND('Match Score Sheet'!B33 = \"h\",'Match Score Sheet'!C33 = \"p\")","v":false},{"$f":"AND('Match Score Sheet'!B33 = \"h\",'Match Score Sheet'!C33 = \"dg\")","v":false},0,0,0,0,0,0,0,null,null,null,{"$f":"AND('Match Score Sheet'!B33 = \"\",'Match Score Sheet'!C33 = \"fh-e\")","v":false},"",null,{"$f":"AND('Match Score Sheet'!B33 = \"\",'Match Score Sheet'!C33 = \"sh-e\")","v":false},"",null,null,{"$f":"AND('Match Score Sheet'!B33 = \"a\",'Match Score Sheet'!C33 = \"t\")","v":false},{"$f":"AND('Match Score Sheet'!B33 = \"a\",'Match Score Sheet'!C33 = \"pt\")","v":false},{"$f":"AND('Match Score Sheet'!B33 = \"a\",'Match Score Sheet'!C33 = \"c\")","v":false},{"$f":"AND('Match Score Sheet'!B33 = \"a\",'Match Score Sheet'!C33 = \"p\")","v":false},{"$f":"AND('Match Score Sheet'!B33 = \"a\",'Match Score Sheet'!C33 = \"dg\")","v":false},0,0,0,0,0,0,0,null,{"$f":"AND('Match Score Sheet'!B33 = \"\",'Match Score Sheet'!C33 = \"fh-e\")","v":false},"",{"$f":"AND('Match Score Sheet'!B33 = \"\",'Match Score Sheet'!C33 = \"sh-e\")","v":false},""]
[null,{"$f":"AND('Match Score Sheet'!B34 = \"h\",'Match Score Sheet'!C34 = \"t\")","v":false},{"$f":"AND('Match Score Sheet'!B34 = \"h\",'Match Score Sheet'!C34 = \"pt\")","v":false},{"$f":"AND('Match Score Sheet'!B34 = \"h\",'Match Score Sheet'!C34 = \"c\")","v":false},{"$f":"AND('Match Score Sheet'!B34 = \"h\",'Match Score Sheet'!C34 = \"p\")","v":false},{"$f":"AND('Match Score Sheet'!B34 = \"h\",'Match Score Sheet'!C34 = \"dg\")","v":false},0,0,0,0,0,0,0,null,null,null,{"$f":"AND('Match Score Sheet'!B34 = \"\",'Match Score Sheet'!C34 = \"fh-e\")","v":false},"",null,{"$f":"AND('Match Score Sheet'!B34 = \"\",'Match Score Sheet'!C34 = \"sh-e\")","v":false},"",null,null,{"$f":"AND('Match Score Sheet'!B34 = \"a\",'Match Score Sheet'!C34 = \"t\")","v":false},{"$f":"AND('Match Score Sheet'!B34 = \"a\",'Match Score Sheet'!C34 = \"pt\")","v":false},{"$f":"AND('Match Score Sheet'!B34 = \"a\",'Match Score Sheet'!C34 = \"c\")","v":false},{"$f":"AND('Match Score Sheet'!B34 = \"a\",'Match Score Sheet'!C34 = \"p\")","v":false},{"$f":"AND('Match Score Sheet'!B34 = \"a\",'Match Score Sheet'!C34 = \"dg\")","v":false},0,0,0,0,0,0,0,null,{"$f":"AND('Match Score Sheet'!B34 = \"\",'Match Score Sheet'!C34 = \"fh-e\")","v":false},"",{"$f":"AND('Match Score Sheet'!B34 = \"\",'Match Score Sheet'!C34 = \"sh-e\")","v":false},""]
[null,{"$f":"AND('Match Score Sheet'!B35 = \"h\",'Match Score Sheet'!C35 = \"t\")","v":false},{"$f":"AND('Match Score Sheet'!B35 = \"h\",'Match Score Sheet'!C35 = \"pt\")","v":false},{"$f":"AND('Match Score Sheet'!B35 = \"h\",'Match Score Sheet'!C35 = \"c\")","v":false},{"$f":"AND('Match Score Sheet'!B35 = \"h\",'Match Score Sheet'!C35 = \"p\")","v":false},{"$f":"AND('Match Score Sheet'!B35 = \"h\",'Match Score Sheet'!C35 = \"dg\")","v":false},0,0,0,0,0,0,0,null,null,null,{"$f":"AND('Match Score Sheet'!B35 = \"\",'Match Score Sheet'!C35 = \"fh-e\")","v":false},"",null,{"$f":"AND('Match Score Sheet'!B35 = \"\",'Match Score Sheet'!C35 = \"sh-e\")","v":false},"",null,null,{"$f":"AND('Match Score Sheet'!B35 = \"a\",'Match Score Sheet'!C35 = \"t\")","v":false},{"$f":"AND('Match Score Sheet'!B35 = \"a\",'Match Score Sheet'!C35 = \"pt\")","v":false},{"$f":"AND('Match Score Sheet'!B35 = \"a\",'Match Score Sheet'!C35 = \"c\")","v":false},{"$f":"AND('Match Score Sheet'!B35 = \"a\",'Match Score Sheet'!C35 = \"p\")","v":false},{"$f":"AND('Match Score Sheet'!B35 = \"a\",'Match Score Sheet'!C35 = \"dg\")","v":false},0,0,0,0,0,0,0,null,{"$f":"AND('Match Score Sheet'!B35 = \"\",'Match Score Sheet'!C35 = \"fh-e\")","v":false},"",{"$f":"AND('Match Score Sheet'!B35 = \"\",'Match Score Sheet'!C35 = \"sh-e\")","v":false},""]
[null,{"$f":"AND('Match Score Sheet'!B36 = \"h\",'Match Score Sheet'!C36 = \"t\")","v":false},{"$f":"AND('Match Score Sheet'!B36 = \"h\",'Match Score Sheet'!C36 = \"pt\")","v":false},{"$f":"AND('Match Score Sheet'!B36 = \"h\",'Match Score Sheet'!C36 = \"c\")","v":false},{"$f":"AND('Match Score Sheet'!B36 = \"h\",'Match Score Sheet'!C36 = \"p\")","v":false},{"$f":"AND('Match Score Sheet'!B36 = \"h\",'Match Score Sheet'!C36 = \"dg\")","v":false},0,0,0,0,0,0,0,null,null,null,{"$f":"AND('Match Score Sheet'!B36 = \"\",'Match Score Sheet'!C36 = \"fh-e\")","v":false},"",null,{"$f":"AND('Match Score Sheet'!B36 = \"\",'Match Score Sheet'!C36 = \"sh-e\")","v":false},"",null,null,{"$f":"AND('Match Score Sheet'!B36 = \"a\",'Match Score Sheet'!C36 = \"t\")","v":false},{"$f":"AND('Match Score Sheet'!B36 = \"a\",'Match Score Sheet'!C36 = \"pt\")","v":false},{"$f":"AND('Match Score Sheet'!B36 = \"a\",'Match Score Sheet'!C36 = \"c\")","v":false},{"$f":"AND('Match Score Sheet'!B36 = \"a\",'Match Score Sheet'!C36 = \"p\")","v":false},{"$f":"AND('Match Score Sheet'!B36 = \"a\",'Match Score Sheet'!C36 = \"dg\")","v":false},0,0,0,0,0,0,0,null,{"$f":"AND('Match Score Sheet'!B36 = \"\",'Match Score Sheet'!C36 = \"fh-e\")","v":false},"",{"$f":"AND('Match Score Sheet'!B36 = \"\",'Match Score Sheet'!C36 = \"sh-e\")","v":false},""]
[null,{"$f":"AND('Match Score Sheet'!B37 = \"h\",'Match Score Sheet'!C37 = \"t\")","v":false},{"$f":"AND('Match Score Sheet'!B37 = \"h\",'Match Score Sheet'!C37 = \"pt\")","v":false},{"$f":"AND('Match Score Sheet'!B37 = \"h\",'Match Score Sheet'!C37 = \"c\")","v":false},{"$f":"AND('Match Score Sheet'!B37 = \"h\",'Match Score Sheet'!C37 = \"p\")","v":false},{"$f":"AND('Match Score Sheet'!B37 = \"h\",'Match Score Sheet'!C37 = \"dg\")","v":false},0,0,0,0,0,0,0,null,null,null,{"$f":"AND('Match Score Sheet'!B37 = \"\",'Match Score Sheet'!C37 = \"fh-e\")","v":false},"",null,{"$f":"AND('Match Score Sheet'!B37 = \"\",'Match Score Sheet'!C37 = \"sh-e\")","v":false},"",null,null,{"$f":"AND('Match Score Sheet'!B37 = \"a\",'Match Score Sheet'!C37 = \"t\")","v":false},{"$f":"AND('Match Score Sheet'!B37 = \"a\",'Match Score Sheet'!C37 = \"pt\")","v":false},{"$f":"AND('Match Score Sheet'!B37 = \"a\",'Match Score Sheet'!C37 = \"c\")","v":false},{"$f":"AND('Match Score Sheet'!B37 = \"a\",'Match Score Sheet'!C37 = \"p\")","v":false},{"$f":"AND('Match Score Sheet'!B37 = \"a\",'Match Score Sheet'!C37 = \"dg\")","v":false},0,0,0,0,0,0,0,null,{"$f":"AND('Match Score Sheet'!B37 = \"\",'Match Score Sheet'!C37 = \"fh-e\")","v":false},"",{"$f":"AND('Match Score Sheet'!B37 = \"\",'Match Score Sheet'!C37 = \"sh-e\")","v":false},""]
[null,{"$f":"AND('Match Score Sheet'!B38 = \"h\",'Match Score Sheet'!C38 = \"t\")","v":false},{"$f":"AND('Match Score Sheet'!B38 = \"h\",'Match Score Sheet'!C38 = \"pt\")","v":false},{"$f":"AND('Match Score Sheet'!B38 = \"h\",'Match Score Sheet'!C38 = \"c\")","v":false},{"$f":"AND('Match Score Sheet'!B38 = \"h\",'Match Score Sheet'!C38 = \"p\")","v":false},{"$f":"AND('Match Score Sheet'!B38 = \"h\",'Match Score Sheet'!C38 = \"dg\")","v":false},0,0,0,0,0,0,0,null,null,null,{"$f":"AND('Match Score Sheet'!B38 = \"\",'Match Score Sheet'!C38 = \"fh-e\")","v":false},"",null,{"$f":"AND('Match Score Sheet'!B38 = \"\",'Match Score Sheet'!C38 = \"sh-e\")","v":false},"",null,null,{"$f":"AND('Match Score Sheet'!B38 = \"a\",'Match Score Sheet'!C38 = \"t\")","v":false},{"$f":"AND('Match Score Sheet'!B38 = \"a\",'Match Score Sheet'!C38 = \"pt\")","v":false},{"$f":"AND('Match Score Sheet'!B38 = \"a\",'Match Score Sheet'!C38 = \"c\")","v":false},{"$f":"AND('Match Score Sheet'!B38 = \"a\",'Match Score Sheet'!C38 = \"p\")","v":false},{"$f":"AND('Match Score Sheet'!B38 = \"a\",'Match Score Sheet'!C38 = \"dg\")","v":false},0,0,0,0,0,0,0,null,{"$f":"AND('Match Score Sheet'!B38 = \"\",'Match Score Sheet'!C38 = \"fh-e\")","v":false},"",{"$f":"AND('Match Score Sheet'!B38 = \"\",'Match Score Sheet'!C38 = \"sh-e\")","v":false},""]
[null,{"$f":"AND('Match Score Sheet'!B39 = \"h\",'Match Score Sheet'!C39 = \"t\")","v":false},{"$f":"AND('Match Score Sheet'!B39 = \"h\",'Match Score Sheet'!C39 = \"pt\")","v":false},{"$f":"AND('Match Score Sheet'!B39 = \"h\",'Match Score Sheet'!C39 = \"c\")","v":false},{"$f":"AND('Match Score Sheet'!B39 = \"h\",'Match Score Sheet'!C39 = \"p\")","v":false},{"$f":"AND('Match Score Sheet'!B39 = \"h\",'Match Score Sheet'!C39 = \"dg\")","v":false},0,0,0,0,0,0,0,null,null,null,{"$f":"AND('Match Score Sheet'!B39 = \"\",'Match Score Sheet'!C39 = \"fh-e\")","v":false},"",null,{"$f":"AND('Match Score Sheet'!B39 = \"\",'Match Score Sheet'!C39 = \"sh-e\")","v":false},"",null,null,{"$f":"AND('Match Score Sheet'!B39 = \"a\",'Match Score Sheet'!C39 = \"t\")","v":false},{"$f":"AND('Match Score Sheet'!B39 = \"a\",'Match Score Sheet'!C39 = \"pt\")","v":false},{"$f":"AND('Match Score Sheet'!B39 = \"a\",'Match Score Sheet'!C39 = \"c\")","v":false},{"$f":"AND('Match Score Sheet'!B39 = \"a\",'Match Score Sheet'!C39 = \"p\")","v":false},{"$f":"AND('Match Score Sheet'!B39 = \"a\",'Match Score Sheet'!C39 = \"dg\")","v":false},0,0,0,0,0,0,0,null,{"$f":"AND('Match Score Sheet'!B39 = \"\",'Match Score Sheet'!C39 = \"fh-e\")","v":false},"",{"$f":"AND('Match Score Sheet'!B39 = \"\",'Match Score Sheet'!C39 = \"sh-e\")","v":false},""]
[null,{"$f":"AND('Match Score Sheet'!B40 = \"h\",'Match Score Sheet'!C40 = \"t\")","v":false},{"$f":"AND('Match Score Sheet'!B40 = \"h\",'Match Score Sheet'!C40 = \"pt\")","v":false},{"$f":"AND('Match Score Sheet'!B40 = \"h\",'Match Score Sheet'!C40 = \"c\")","v":false},{"$f":"AND('Match Score Sheet'!B40 = \"h\",'Match Score Sheet'!C40 = \"p\")","v":false},{"$f":"AND('Match Score Sheet'!B40 = \"h\",'Match Score Sheet'!C40 = \"dg\")","v":false},0,0,0,0,0,0,0,null,null,null,{"$f":"AND('Match Score Sheet'!B40 = \"\",'Match Score Sheet'!C40 = \"fh-e\")","v":false},"",null,{"$f":"AND('Match Score Sheet'!B40 = \"\",'Match Score Sheet'!C40 = \"sh-e\")","v":false},"",null,null,{"$f":"AND('Match Score Sheet'!B40 = \"a\",'Match Score Sheet'!C40 = \"t\")","v":false},{"$f":"AND('Match Score Sheet'!B40 = \"a\",'Match Score Sheet'!C40 = \"pt\")","v":false},{"$f":"AND('Match Score Sheet'!B40 = \"a\",'Match Score Sheet'!C40 = \"c\")","v":false},{"$f":"AND('Match Score Sheet'!B40 = \"a\",'Match Score Sheet'!C40 = \"p\")","v":false},{"$f":"AND('Match Score Sheet'!B40 = \"a\",'Match Score Sheet'!C40 = \"dg\")","v":false},0,0,0,0,0,0,0,null,{"$f":"AND('Match Score Sheet'!B40 = \"\",'Match Score Sheet'!C40 = \"fh-e\")","v":false},"",{"$f":"AND('Match Score Sheet'!B40 = \"\",'Match Score Sheet'!C40 = \"sh-e\")","v":false},""]
[null,{"$f":"AND('Match Score Sheet'!B41 = \"h\",'Match Score Sheet'!C41 = \"t\")","v":false},{"$f":"AND('Match Score Sheet'!B41 = \"h\",'Match Score Sheet'!C41 = \"pt\")","v":false},{"$f":"AND('Match Score Sheet'!B41 = \"h\",'Match Score Sheet'!C41 = \"c\")","v":false},{"$f":"AND('Match Score Sheet'!B41 = \"h\",'Match Score Sheet'!C41 = \"p\")","v":false},{"$f":"AND('Match Score Sheet'!B41 = \"h\",'Match Score Sheet'!C41 = \"dg\")","v":false},0,0,0,0,0,0,0,null,null,null,{"$f":"AND('Match Score Sheet'!B41 = \"\",'Match Score Sheet'!C41 = \"fh-e\")","v":false},"",null,{"$f":"AND('Match Score Sheet'!B41 = \"\",'Match Score Sheet'!C41 = \"sh-e\")","v":false},"",null,null,{"$f":"AND('Match Score Sheet'!B41 = \"a\",'Match Score Sheet'!C41 = \"t\")","v":false},{"$f":"AND('Match Score Sheet'!B41 = \"a\",'Match Score Sheet'!C41 = \"pt\")","v":false},{"$f":"AND('Match Score Sheet'!B41 = \"a\",'Match Score Sheet'!C41 = \"c\")","v":false},{"$f":"AND('Match Score Sheet'!B41 = \"a\",'Match Score Sheet'!C41 = \"p\")","v":false},{"$f":"AND('Match Score Sheet'!B41 = \"a\",'Match Score Sheet'!C41 = \"dg\")","v":false},0,0,0,0,0,0,0,null,{"$f":"AND('Match Score Sheet'!B41 = \"\",'Match Score Sheet'!C41 = \"fh-e\")","v":false},"",{"$f":"AND('Match Score Sheet'!B41 = \"\",'Match Score Sheet'!C41 = \"sh-e\")","v":false},""]
[null,{"$f":"AND('Match Score Sheet'!B42 = \"h\",'Match Score Sheet'!C42 = \"t\")","v":false},{"$f":"AND('Match Score Sheet'!B42 = \"h\",'Match Score Sheet'!C42 = \"pt\")","v":false},{"$f":"AND('Match Score Sheet'!B42 = \"h\",'Match Score Sheet'!C42 = \"c\")","v":false},{"$f":"AND('Match Score Sheet'!B42 = \"h\",'Match Score Sheet'!C42 = \"p\")","v":false},{"$f":"AND('Match Score Sheet'!B42 = \"h\",'Match Score Sheet'!C42 = \"dg\")","v":false},0,0,0,0,0,0,0,null,null,null,{"$f":"AND('Match Score Sheet'!B42 = \"\",'Match Score Sheet'!C42 = \"fh-e\")","v":false},"",null,{"$f":"AND('Match Score Sheet'!B42 = \"\",'Match Score Sheet'!C42 = \"sh-e\")","v":false},"",null,null,{"$f":"AND('Match Score Sheet'!B42 = \"a\",'Match Score Sheet'!C42 = \"t\")","v":false},{"$f":"AND('Match Score Sheet'!B42 = \"a\",'Match Score Sheet'!C42 = \"pt\")","v":false},{"$f":"AND('Match Score Sheet'!B42 = \"a\",'Match Score Sheet'!C42 = \"c\")","v":false},{"$f":"AND('Match Score Sheet'!B42 = \"a\",'Match Score Sheet'!C42 = \"p\")","v":false},{"$f":"AND('Match Score Sheet'!B42 = \"a\",'Match Score Sheet'!C42 = \"dg\")","v":false},0,0,0,0,0,0,0,null,{"$f":"AND('Match Score Sheet'!B42 = \"\",'Match Score Sheet'!C42 = \"fh-e\")","v":false},"",{"$f":"AND('Match Score Sheet'!B42 = \"\",'Match Score Sheet'!C42 = \"sh-e\")","v":false},""]
[null,{"$f":"AND('Match Score Sheet'!B43 = \"h\",'Match Score Sheet'!C43 = \"t\")","v":false},{"$f":"AND('Match Score Sheet'!B43 = \"h\",'Match Score Sheet'!C43 = \"pt\")","v":false},{"$f":"AND('Match Score Sheet'!B43 = \"h\",'Match Score Sheet'!C43 = \"c\")","v":false},{"$f":"AND('Match Score Sheet'!B43 = \"h\",'Match Score Sheet'!C43 = \"p\")","v":false},{"$f":"AND('Match Score Sheet'!B43 = \"h\",'Match Score Sheet'!C43 = \"dg\")","v":false},0,0,0,0,0,0,0,null,null,null,{"$f":"AND('Match Score Sheet'!B43 = \"\",'Match Score Sheet'!C43 = \"fh-e\")","v":false},"",null,{"$f":"AND('Match Score Sheet'!B43 = \"\",'Match Score Sheet'!C43 = \"sh-e\")","v":false},"",null,null,{"$f":"AND('Match Score Sheet'!B43 = \"a\",'Match Score Sheet'!C43 = \"t\")","v":false},{"$f":"AND('Match Score Sheet'!B43 = \"a\",'Match Score Sheet'!C43 = \"pt\")","v":false},{"$f":"AND('Match Score Sheet'!B43 = \"a\",'Match Score Sheet'!C43 = \"c\")","v":false},{"$f":"AND('Match Score Sheet'!B43 = \"a\",'Match Score Sheet'!C43 = \"p\")","v":false},{"$f":"AND('Match Score Sheet'!B43 = \"a\",'Match Score Sheet'!C43 = \"dg\")","v":false},0,0,0,0,0,0,0,null,{"$f":"AND('Match Score Sheet'!B43 = \"\",'Match Score Sheet'!C43 = \"fh-e\")","v":false},"",{"$f":"AND('Match Score Sheet'!B43 = \"\",'Match Score Sheet'!C43 = \"sh-e\")","v":false},""]
[null,{"$f":"AND('Match Score Sheet'!B44 = \"h\",'Match Score Sheet'!C44 = \"t\")","v":false},{"$f":"AND('Match Score Sheet'!B44 = \"h\",'Match Score Sheet'!C44 = \"pt\")","v":false},{"$f":"AND('Match Score Sheet'!B44 = \"h\",'Match Score Sheet'!C44 = \"c\")","v":false},{"$f":"AND('Match Score Sheet'!B44 = \"h\",'Match Score Sheet'!C44 = \"p\")","v":false},{"$f":"AND('Match Score Sheet'!B44 = \"h\",'Match Score Sheet'!C44 = \"dg\")","v":false},0,0,0,0,0,0,0,null,null,null,{"$f":"AND('Match Score Sheet'!B44 = \"\",'Match Score Sheet'!C44 = \"fh-e\")","v":false},"",null,{"$f":"AND('Match Score Sheet'!B44 = \"\",'Match Score Sheet'!C44 = \"sh-e\")","v":false},"",null,null,{"$f":"AND('Match Score Sheet'!B44 = \"a\",'Match Score Sheet'!C44 = \"t\")","v":false},{"$f":"AND('Match Score Sheet'!B44 = \"a\",'Match Score Sheet'!C44 = \"pt\")","v":false},{"$f":"AND('Match Score Sheet'!B44 = \"a\",'Match Score Sheet'!C44 = \"c\")","v":false},{"$f":"AND('Match Score Sheet'!B44 = \"a\",'Match Score Sheet'!C44 = \"p\")","v":false},{"$f":"AND('Match Score Sheet'!B44 = \"a\",'Match Score Sheet'!C44 = \"dg\")","v":false},0,0,0,0,0,0,0,null,{"$f":"AND('Match Score Sheet'!B44 = \"\",'Match Score Sheet'!C44 = \"fh-e\")","v":false},"",{"$f":"AND('Match Score Sheet'!B44 = \"\",'Match Score Sheet'!C44 = \"sh-e\")","v":false},""]
[null,{"$f":"AND('Match Score Sheet'!B45 = \"h\",'Match Score Sheet'!C45 = \"t\")","v":false},{"$f":"AND('Match Score Sheet'!B45 = \"h\",'Match Score Sheet'!C45 = \"pt\")","v":false},{"$f":"AND('Match Score Sheet'!B45 = \"h\",'Match Score Sheet'!C45 = \"c\")","v":false},{"$f":"AND('Match Score Sheet'!B45 = \"h\",'Match Score Sheet'!C45 = \"p\")","v":false},{"$f":"AND('Match Score Sheet'!B45 = \"h\",'Match Score Sheet'!C45 = \"dg\")","v":false},0,0,0,0,0,0,0,null,null,null,{"$f":"AND('Match Score Sheet'!B45 = \"\",'Match Score Sheet'!C45 = \"fh-e\")","v":false},"",null,{"$f":"AND('Match Score Sheet'!B45 = \"\",'Match Score Sheet'!C45 = \"sh-e\")","v":false},"",null,null,{"$f":"AND('Match Score Sheet'!B45 = \"a\",'Match Score Sheet'!C45 = \"t\")","v":false},{"$f":"AND('Match Score Sheet'!B45 = \"a\",'Match Score Sheet'!C45 = \"pt\")","v":false},{"$f":"AND('Match Score Sheet'!B45 = \"a\",'Match Score Sheet'!C45 = \"c\")","v":false},{"$f":"AND('Match Score Sheet'!B45 = \"a\",'Match Score Sheet'!C45 = \"p\")","v":false},{"$f":"AND('Match Score Sheet'!B45 = \"a\",'Match Score Sheet'!C45 = \"dg\")","v":false},0,0,0,0,0,0,0,null,{"$f":"AND('Match Score Sheet'!B45 = \"\",'Match Score Sheet'!C45 = \"fh-e\")","v":false},"",{"$f":"AND('Match Score Sheet'!B45 = \"\",'Match Score Sheet'!C45 = \"sh-e\")","v":false},""]
[null,{"$f":"AND('Match Score Sheet'!B46 = \"h\",'Match Score Sheet'!C46 = \"t\")","v":false},{"$f":"AND('Match Score Sheet'!B46 = \"h\",'Match Score Sheet'!C46 = \"pt\")","v":false},{"$f":"AND('Match Score Sheet'!B46 = \"h\",'Match Score Sheet'!C46 = \"c\")","v":false},{"$f":"AND('Match Score Sheet'!B46 = \"h\",'Match Score Sheet'!C46 = \"p\")","v":false},{"$f":"AND('Match Score Sheet'!B46 = \"h\",'Match Score Sheet'!C46 = \"dg\")","v":false},0,0,0,0,0,0,0,null,null,null,{"$f":"AND('Match Score Sheet'!B46 = \"\",'Match Score Sheet'!C46 = \"fh-e\")","v":false},"",null,{"$f":"AND('Match Score Sheet'!B46 = \"\",'Match Score Sheet'!C46 = \"sh-e\")","v":false},"",null,null,{"$f":"AND('Match Score Sheet'!B46 = \"a\",'Match Score Sheet'!C46 = \"t\")","v":false},{"$f":"AND('Match Score Sheet'!B46 = \"a\",'Match Score Sheet'!C46 = \"pt\")","v":false},{"$f":"AND('Match Score Sheet'!B46 = \"a\",'Match Score Sheet'!C46 = \"c\")","v":false},{"$f":"AND('Match Score Sheet'!B46 = \"a\",'Match Score Sheet'!C46 = \"p\")","v":false},{"$f":"AND('Match Score Sheet'!B46 = \"a\",'Match Score Sheet'!C46 = \"dg\")","v":false},0,0,0,0,0,0,0,null,{"$f":"AND('Match Score Sheet'!B46 = \"\",'Match Score Sheet'!C46 = \"fh-e\")","v":false},"",{"$f":"AND('Match Score Sheet'!B46 = \"\",'Match Score Sheet'!C46 = \"sh-e\")","v":false},""]
[null,{"$f":"AND('Match Score Sheet'!B47 = \"h\",'Match Score Sheet'!C47 = \"t\")","v":false},{"$f":"AND('Match Score Sheet'!B47 = \"h\",'Match Score Sheet'!C47 = \"pt\")","v":false},{"$f":"AND('Match Score Sheet'!B47 = \"h\",'Match Score Sheet'!C47 = \"c\")","v":false},{"$f":"AND('Match Score Sheet'!B47 = \"h\",'Match Score Sheet'!C47 = \"p\")","v":false},{"$f":"AND('Match Score Sheet'!B47 = \"h\",'Match Score Sheet'!C47 = \"dg\")","v":false},0,0,0,0,0,0,0,null,null,null,{"$f":"AND('Match Score Sheet'!B47 = \"\",'Match Score Sheet'!C47 = \"fh-e\")","v":false},"",null,{"$f":"AND('Match Score Sheet'!B47 = \"\",'Match Score Sheet'!C47 = \"sh-e\")","v":false},"",null,null,{"$f":"AND('Match Score Sheet'!B47 = \"a\",'Match Score Sheet'!C47 = \"t\")","v":false},{"$f":"AND('Match Score Sheet'!B47 = \"a\",'Match Score Sheet'!C47 = \"pt\")","v":false},{"$f":"AND('Match Score Sheet'!B47 = \"a\",'Match Score Sheet'!C47 = \"c\")","v":false},{"$f":"AND('Match Score Sheet'!B47 = \"a\",'Match Score Sheet'!C47 = \"p\")","v":false},{"$f":"AND('Match Score Sheet'!B47 = \"a\",'Match Score Sheet'!C47 = \"dg\")","v":false},0,0,0,0,0,0,0,null,{"$f":"AND('Match Score Sheet'!B47 = \"\",'Match Score Sheet'!C47 = \"fh-e\")","v":false},"",{"$f":"AND('Match Score Sheet'!B47 = \"\",'Match Score Sheet'!C47 = \"sh-e\")","v":false},""]
[null,{"$f":"AND('Match Score Sheet'!B48 = \"h\",'Match Score Sheet'!C48 = \"t\")","v":false},{"$f":"AND('Match Score Sheet'!B48 = \"h\",'Match Score Sheet'!C48 = \"pt\")","v":false},{"$f":"AND('Match Score Sheet'!B48 = \"h\",'Match Score Sheet'!C48 = \"c\")","v":false},{"$f":"AND('Match Score Sheet'!B48 = \"h\",'Match Score Sheet'!C48 = \"p\")","v":false},{"$f":"AND('Match Score Sheet'!B48 = \"h\",'Match Score Sheet'!C48 = \"dg\")","v":false},0,0,0,0,0,0,0,null,null,null,{"$f":"AND('Match Score Sheet'!B48 = \"\",'Match Score Sheet'!C48 = \"fh-e\")","v":false},"",null,{"$f":"AND('Match Score Sheet'!B48 = \"\",'Match Score Sheet'!C48 = \"sh-e\")","v":false},"",null,null,{"$f":"AND('Match Score Sheet'!B48 = \"a\",'Match Score Sheet'!C48 = \"t\")","v":false},{"$f":"AND('Match Score Sheet'!B48 = \"a\",'Match Score Sheet'!C48 = \"pt\")","v":false},{"$f":"AND('Match Score Sheet'!B48 = \"a\",'Match Score Sheet'!C48 = \"c\")","v":false},{"$f":"AND('Match Score Sheet'!B48 = \"a\",'Match Score Sheet'!C48 = \"p\")","v":false},{"$f":"AND('Match Score Sheet'!B48 = \"a\",'Match Score Sheet'!C48 = \"dg\")","v":false},0,0,0,0,0,0,0,null,{"$f":"AND('Match Score Sheet'!B48 = \"\",'Match Score Sheet'!C48 = \"fh-e\")","v":false},"",{"$f":"AND('Match Score Sheet'!B48 = \"\",'Match Score Sheet'!C48 = \"sh-e\")","v":false},""]
[null,{"$f":"AND('Match Score Sheet'!B49 = \"h\",'Match Score Sheet'!C49 = \"t\")","v":false},{"$f":"AND('Match Score Sheet'!B49 = \"h\",'Match Score Sheet'!C49 = \"pt\")","v":false},{"$f":"AND('Match Score Sheet'!B49 = \"h\",'Match Score Sheet'!C49 = \"c\")","v":false},{"$f":"AND('Match Score Sheet'!B49 = \"h\",'Match Score Sheet'!C49 = \"p\")","v":false},{"$f":"AND('Match Score Sheet'!B49 = \"h\",'Match Score Sheet'!C49 = \"dg\")","v":false},0,0,0,0,0,0,0,null,null,null,{"$f":"AND('Match Score Sheet'!B49 = \"\",'Match Score Sheet'!C49 = \"fh-e\")","v":false},"",null,{"$f":"AND('Match Score Sheet'!B49 = \"\",'Match Score Sheet'!C49 = \"sh-e\")","v":false},"",null,null,{"$f":"AND('Match Score Sheet'!B49 = \"a\",'Match Score Sheet'!C49 = \"t\")","v":false},{"$f":"AND('Match Score Sheet'!B49 = \"a\",'Match Score Sheet'!C49 = \"pt\")","v":false},{"$f":"AND('Match Score Sheet'!B49 = \"a\",'Match Score Sheet'!C49 = \"c\")","v":false},{"$f":"AND('Match Score Sheet'!B49 = \"a\",'Match Score Sheet'!C49 = \"p\")","v":false},{"$f":"AND('Match Score Sheet'!B49 = \"a\",'Match Score Sheet'!C49 = \"dg\")","v":false},0,0,0,0,0,0,0,null,{"$f":"AND('Match Score Sheet'!B49 = \"\",'Match Score Sheet'!C49 = \"fh-e\")","v":false},"",{"$f":"AND('Match Score Sheet'!B49 = \"\",'Match Score Sheet'!C49 = \"sh-e\")","v":false},""]
[null,{"$f":"AND('Match Score Sheet'!B50 = \"h\",'Match Score Sheet'!C50 = \"t\")","v":false},{"$f":"AND('Match Score Sheet'!B50 = \"h\",'Match Score Sheet'!C50 = \"pt\")","v":false},{"$f":"AND('Match Score Sheet'!B50 = \"h\",'Match Score Sheet'!C50 = \"c\")","v":false},{"$f":"AND('Match Score Sheet'!B50 = \"h\",'Match Score Sheet'!C50 = \"p\")","v":false},{"$f":"AND('Match Score Sheet'!B50 = \"h\",'Match Score Sheet'!C50 = \"dg\")","v":false},0,0,0,0,0,0,0,null,null,null,{"$f":"AND('Match Score Sheet'!B50 = \"\",'Match Score Sheet'!C50 = \"fh-e\")","v":false},"",null,{"$f":"AND('Match Score Sheet'!B50 = \"\",'Match Score Sheet'!C50 = \"sh-e\")","v":false},"",null,null,{"$f":"AND('Match Score Sheet'!B50 = \"a\",'Match Score Sheet'!C50 = \"t\")","v":false},{"$f":"AND('Match Score Sheet'!B50 = \"a\",'Match Score Sheet'!C50 = \"pt\")","v":false},{"$f":"AND('Match Score Sheet'!B50 = \"a\",'Match Score Sheet'!C50 = \"c\")","v":false},{"$f":"AND('Match Score Sheet'!B50 = \"a\",'Match Score Sheet'!C50 = \"p\")","v":false},{"$f":"AND('Match Score Sheet'!B50 = \"a\",'Match Score Sheet'!C50 = \"dg\")","v":false},0,0,0,0,0,0,0,null,{"$f":"AND('Match Score Sheet'!B50 = \"\",'Match Score Sheet'!C50 = \"fh-e\")","v":false},"",{"$f":"AND('Match Score Sheet'!B50 = \"\",'Match Score Sheet'!C50 = \"sh-e\")","v":false},""]
[null,{"$f":"AND('Match Score Sheet'!B51 = \"h\",'Match Score Sheet'!C51 = \"t\")","v":false},{"$f":"AND('Match Score Sheet'!B51 = \"h\",'Match Score Sheet'!C51 = \"pt\")","v":false},{"$f":"AND('Match Score Sheet'!B51 = \"h\",'Match Score Sheet'!C51 = \"c\")","v":false},{"$f":"AND('Match Score Sheet'!B51 = \"h\",'Match Score Sheet'!C51 = \"p\")","v":false},{"$f":"AND('Match Score Sheet'!B51 = \"h\",'Match Score Sheet'!C51 = \"dg\")","v":false},0,0,0,0,0,0,0,null,null,null,{"$f":"AND('Match Score Sheet'!B51 = \"\",'Match Score Sheet'!C51 = \"fh-e\")","v":false},"",null,{"$f":"AND('Match Score Sheet'!B51 = \"\",'Match Score Sheet'!C51 = \"sh-e\")","v":false},"",null,null,{"$f":"AND('Match Score Sheet'!B51 = \"a\",'Match Score Sheet'!C51 = \"t\")","v":false},{"$f":"AND('Match Score Sheet'!B51 = \"a\",'Match Score Sheet'!C51 = \"pt\")","v":false},{"$f":"AND('Match Score Sheet'!B51 = \"a\",'Match Score Sheet'!C51 = \"c\")","v":false},{"$f":"AND('Match Score Sheet'!B51 = \"a\",'Match Score Sheet'!C51 = \"p\")","v":false},{"$f":"AND('Match Score Sheet'!B51 = \"a\",'Match Score Sheet'!C51 = \"dg\")","v":false},0,0,0,0,0,0,0,null,{"$f":"AND('Match Score Sheet'!B51 = \"\",'Match Score Sheet'!C51 = \"fh-e\")","v":false},"",{"$f":"AND('Match Score Sheet'!B51 = \"\",'Match Score Sheet'!C51 = \"sh-e\")","v":false},""]
[null,{"$f":"AND('Match Score Sheet'!B52 = \"h\",'Match Score Sheet'!C52 = \"t\")","v":false},{"$f":"AND('Match Score Sheet'!B52 = \"h\",'Match Score Sheet'!C52 = \"pt\")","v":false},{"$f":"AND('Match Score Sheet'!B52 = \"h\",'Match Score Sheet'!C52 = \"c\")","v":false},{"$f":"AND('Match Score Sheet'!B52 = \"h\",'Match Score Sheet'!C52 = \"p\")","v":false},{"$f":"AND('Match Score Sheet'!B52 = \"h\",'Match Score Sheet'!C52 = \"dg\")","v":false},0,0,0,0,0,0,0,null,null,null,{"$f":"AND('Match Score Sheet'!B52 = \"\",'Match Score Sheet'!C52 = \"fh-e\")","v":false},{"$f":"IF(Q36=TRUE,M36,\"\")","v":""},null,{"$f":"AND('Match Score Sheet'!B52 = \"\",'Match Score Sheet'!C52 = \"sh-e\")","v":false},"",null,null,{"$f":"AND('Match Score Sheet'!B52 = \"a\",'Match Score Sheet'!C52 = \"t\")","v":false},{"$f":"AND('Match Score Sheet'!B52 = \"a\",'Match Score Sheet'!C52 = \"pt\")","v":false},{"$f":"AND('Match Score Sheet'!B52 = \"a\",'Match Score Sheet'!C52 = \"c\")","v":false},{"$f":"AND('Match Score Sheet'!B52 = \"a\",'Match Score Sheet'!C52 = \"p\")","v":false},{"$f":"AND('Match Score Sheet'!B52 = \"a\",'Match Score Sheet'!C52 = \"dg\")","v":false},0,0,0,0,0,0,0,null,{"$f":"AND('Match Score Sheet'!B52 = \"\",'Match Score Sheet'!C52 = \"fh-e\")","v":false},{"$f":"IF(AK36=TRUE,AI36,\"\")","v":""},{"$f":"AND('Match Score Sheet'!B52 = \"\",'Match Score Sheet'!C52 = \"sh-e\")","v":false},""]
[null,{"$f":"AND('Match Score Sheet'!B53 = \"h\",'Match Score Sheet'!C53 = \"t\")","v":false},{"$f":"AND('Match Score Sheet'!B53 = \"h\",'Match Score Sheet'!C53 = \"pt\")","v":false},{"$f":"AND('Match Score Sheet'!B53 = \"h\",'Match Score Sheet'!C53 = \"c\")","v":false},{"$f":"AND('Match Score Sheet'!B53 = \"h\",'Match Score Sheet'!C53 = \"p\")","v":false},{"$f":"AND('Match Score Sheet'!B53 = \"h\",'Match Score Sheet'!C53 = \"dg\")","v":false},0,0,0,0,0,0,0,null,null,null,{"$f":"AND('Match Score Sheet'!B53 = \"\",'Match Score Sheet'!C53 = \"fh-e\")","v":false},"",null,{"$f":"AND('Match Score Sheet'!B53 = \"\",'Match Score Sheet'!C53 = \"sh-e\")","v":false},"",null,null,{"$f":"AND('Match Score Sheet'!B53 = \"a\",'Match Score Sheet'!C53 = \"t\")","v":false},{"$f":"AND('Match Score Sheet'!B53 = \"a\",'Match Score Sheet'!C53 = \"pt\")","v":false},{"$f":"AND('Match Score Sheet'!B53 = \"a\",'Match Score Sheet'!C53 = \"c\")","v":false},{"$f":"AND('Match Score Sheet'!B53 = \"a\",'Match Score Sheet'!C53 = \"p\")","v":false},{"$f":"AND('Match Score Sheet'!B53 = \"a\",'Match Score Sheet'!C53 = \"dg\")","v":false},0,0,0,0,0,0,0,null,{"$f":"AND('Match Score Sheet'!B53 = \"\",'Match Score Sheet'!C53 = \"fh-e\")","v":false},"",{"$f":"AND('Match Score Sheet'!B53 = \"\",'Match Score Sheet'!C53 = \"sh-e\")","v":false},""]
[null,{"$f":"AND('Match Score Sheet'!B54 = \"h\",'Match Score Sheet'!C54 = \"t\")","v":false},{"$f":"AND('Match Score Sheet'!B54 = \"h\",'Match Score Sheet'!C54 = \"pt\")","v":false},{"$f":"AND('Match Score Sheet'!B54 = \"h\",'Match Score Sheet'!C54 = \"c\")","v":false},{"$f":"AND('Match Score Sheet'!B54 = \"h\",'Match Score Sheet'!C54 = \"p\")","v":false},{"$f":"AND('Match Score Sheet'!B54 = \"h\",'Match Score Sheet'!C54 = \"dg\")","v":false},0,0,0,0,0,0,0,null,null,null,{"$f":"AND('Match Score Sheet'!B54 = \"\",'Match Score Sheet'!C54 = \"fh-e\")","v":false},"",null,{"$f":"AND('Match Score Sheet'!B54 = \"\",'Match Score Sheet'!C54 = \"sh-e\")","v":false},"",null,null,{"$f":"AND('Match Score Sheet'!B54 = \"a\",'Match Score Sheet'!C54 = \"t\")","v":false},{"$f":"AND('Match Score Sheet'!B54 = \"a\",'Match Score Sheet'!C54 = \"pt\")","v":false},{"$f":"AND('Match Score Sheet'!B54 = \"a\",'Match Score Sheet'!C54 = \"c\")","v":false},{"$f":"AND('Match Score Sheet'!B54 = \"a\",'Match Score Sheet'!C54 = \"p\")","v":false},{"$f":"AND('Match Score Sheet'!B54 = \"a\",'Match Score Sheet'!C54 = \"dg\")","v":false},0,0,0,0,0,0,0,null,{"$f":"AND('Match Score Sheet'!B54 = \"\",'Match Score Sheet'!C54 = \"fh-e\")","v":false},"",{"$f":"AND('Match Score Sheet'!B54 = \"\",'Match Score Sheet'!C54 = \"sh-e\")","v":false},""]
[null,{"$f":"AND('Match Score Sheet'!B55 = \"h\",'Match Score Sheet'!C55 = \"t\")","v":false},{"$f":"AND('Match Score Sheet'!B55 = \"h\",'Match Score Sheet'!C55 = \"pt\")","v":false},{"$f":"AND('Match Score Sheet'!B55 = \"h\",'Match Score Sheet'!C55 = \"c\")","v":false},{"$f":"AND('Match Score Sheet'!B55 = \"h\",'Match Score Sheet'!C55 = \"p\")","v":false},{"$f":"AND('Match Score Sheet'!B55 = \"h\",'Match Score Sheet'!C55 = \"dg\")","v":false},0,0,0,0,0,0,0,null,null,null,{"$f":"AND('Match Score Sheet'!B55 = \"\",'Match Score Sheet'!C55 = \"fh-e\")","v":false},"",null,{"$f":"AND('Match Score Sheet'!B55 = \"\",'Match Score Sheet'!C55 = \"sh-e\")","v":false},"",null,null,{"$f":"AND('Match Score Sheet'!B55 = \"a\",'Match Score Sheet'!C55 = \"t\")","v":false},{"$f":"AND('Match Score Sheet'!B55 = \"a\",'Match Score Sheet'!C55 = \"pt\")","v":false},{"$f":"AND('Match Score Sheet'!B55 = \"a\",'Match Score Sheet'!C55 = \"c\")","v":false},{"$f":"AND('Match Score Sheet'!B55 = \"a\",'Match Score Sheet'!C55 = \"p\")","v":false},{"$f":"AND('Match Score Sheet'!B55 = \"a\",'Match Score Sheet'!C55 = \"dg\")","v":false},0,0,0,0,0,0,0,null,{"$f":"AND('Match Score Sheet'!B55 = \"\",'Match Score Sheet'!C55 = \"fh-e\")","v":false},"",{"$f":"AND('Match Score Sheet'!B55 = \"\",'Match Score Sheet'!C55 = \"sh-e\")","v":false},""]
[null,{"$f":"AND('Match Score Sheet'!B56 = \"h\",'Match Score Sheet'!C56 = \"t\")","v":false},{"$f":"AND('Match Score Sheet'!B56 = \"h\",'Match Score Sheet'!C56 = \"pt\")","v":false},{"$f":"AND('Match Score Sheet'!B56 = \"h\",'Match Score Sheet'!C56 = \"c\")","v":false},{"$f":"AND('Match Score Sheet'!B56 = \"h\",'Match Score Sheet'!C56 = \"p\")","v":false},{"$f":"AND('Match Score Sheet'!B56 = \"h\",'Match Score Sheet'!C56 = \"dg\")","v":false},0,0,0,0,0,0,0,null,null,null,{"$f":"AND('Match Score Sheet'!B56 = \"\",'Match Score Sheet'!C56 = \"fh-e\")","v":false},"",null,{"$f":"AND('Match Score Sheet'!B56 = \"\",'Match Score Sheet'!C56 = \"sh-e\")","v":false},"",null,null,{"$f":"AND('Match Score Sheet'!B56 = \"a\",'Match Score Sheet'!C56 = \"t\")","v":false},{"$f":"AND('Match Score Sheet'!B56 = \"a\",'Match Score Sheet'!C56 = \"pt\")","v":false},{"$f":"AND('Match Score Sheet'!B56 = \"a\",'Match Score Sheet'!C56 = \"c\")","v":false},{"$f":"AND('Match Score Sheet'!B56 = \"a\",'Match Score Sheet'!C56 = \"p\")","v":false},{"$f":"AND('Match Score Sheet'!B56 = \"a\",'Match Score Sheet'!C56 = \"dg\")","v":false},0,0,0,0,0,0,0,null,{"$f":"AND('Match Score Sheet'!B56 = \"\",'Match Score Sheet'!C56 = \"fh-e\")","v":false},"",{"$f":"AND('Match Score Sheet'!B56 = \"\",'Match Score Sheet'!C56 = \"sh-e\")","v":false},""]
[null,{"$f":"AND('Match Score Sheet'!B57 = \"h\",'Match Score Sheet'!C57 = \"t\")","v":false},{"$f":"AND('Match Score Sheet'!B57 = \"h\",'Match Score Sheet'!C57 = \"pt\")","v":false},{"$f":"AND('Match Score Sheet'!B57 = \"h\",'Match Score Sheet'!C57 = \"c\")","v":false},{"$f":"AND('Match Score Sheet'!B57 = \"h\",'Match Score Sheet'!C57 = \"p\")","v":false},{"$f":"AND('Match Score Sheet'!B57 = \"h\",'Match Score Sheet'!C57 = \"dg\")","v":false},0,0,0,0,0,0,0,null,null,null,{"$f":"AND('Match Score Sheet'!B57 = \"\",'Match Score Sheet'!C57 = \"fh-e\")","v":false},"",null,{"$f":"AND('Match Score Sheet'!B57 = \"\",'Match Score Sheet'!C57 = \"sh-e\")","v":false},"",null,null,{"$f":"AND('Match Score Sheet'!B57 = \"a\",'Match Score Sheet'!C57 = \"t\")","v":false},{"$f":"AND('Match Score Sheet'!B57 = \"a\",'Match Score Sheet'!C57 = \"pt\")","v":false},{"$f":"AND('Match Score Sheet'!B57 = \"a\",'Match Score Sheet'!C57 = \"c\")","v":false},{"$f":"AND('Match Score Sheet'!B57 = \"a\",'Match Score Sheet'!C57 = \"p\")","v":false},{"$f":"AND('Match Score Sheet'!B57 = \"a\",'Match Score Sheet'!C57 = \"dg\")","v":false},0,0,0,0,0,0,0,null,{"$f":"AND('Match Score Sheet'!B57 = \"\",'Match Score Sheet'!C57 = \"fh-e\")","v":false},"",{"$f":"AND('Match Score Sheet'!B57 = \"\",'Match Score Sheet'!C57 = \"sh-e\")","v":false},""]
[null,{"$f":"AND('Match Score Sheet'!B58 = \"h\",'Match Score Sheet'!C58 = \"t\")","v":false},{"$f":"AND('Match Score Sheet'!B58 = \"h\",'Match Score Sheet'!C58 = \"pt\")","v":false},{"$f":"AND('Match Score Sheet'!B58 = \"h\",'Match Score Sheet'!C58 = \"c\")","v":false},{"$f":"AND('Match Score Sheet'!B58 = \"h\",'Match Score Sheet'!C58 = \"p\")","v":false},{"$f":"AND('Match Score Sheet'!B58 = \"h\",'Match Score Sheet'!C58 = \"dg\")","v":false},0,0,0,0,0,0,0,null,null,null,{"$f":"AND('Match Score Sheet'!B58 = \"\",'Match Score Sheet'!C58 = \"fh-e\")","v":false},"",null,{"$f":"AND('Match Score Sheet'!B58 = \"\",'Match Score Sheet'!C58 = \"sh-e\")","v":false},"",null,null,{"$f":"AND('Match Score Sheet'!B58 = \"a\",'Match Score Sheet'!C58 = \"t\")","v":false},{"$f":"AND('Match Score Sheet'!B58 = \"a\",'Match Score Sheet'!C58 = \"pt\")","v":false},{"$f":"AND('Match Score Sheet'!B58 = \"a\",'Match Score Sheet'!C58 = \"c\")","v":false},{"$f":"AND('Match Score Sheet'!B58 = \"a\",'Match Score Sheet'!C58 = \"p\")","v":false},{"$f":"AND('Match Score Sheet'!B58 = \"a\",'Match Score Sheet'!C58 = \"dg\")","v":false},0,0,0,0,0,0,0,null,{"$f":"AND('Match Score Sheet'!B58 = \"\",'Match Score Sheet'!C58 = \"fh-e\")","v":false},"",{"$f":"AND('Match Score Sheet'!B58 = \"\",'Match Score Sheet'!C58 = \"sh-e\")","v":false},""]
[null,{"$f":"AND('Match Score Sheet'!B59 = \"h\",'Match Score Sheet'!C59 = \"t\")","v":false},{"$f":"AND('Match Score Sheet'!B59 = \"h\",'Match Score Sheet'!C59 = \"pt\")","v":false},{"$f":"AND('Match Score Sheet'!B59 = \"h\",'Match Score Sheet'!C59 = \"c\")","v":false},{"$f":"AND('Match Score Sheet'!B59 = \"h\",'Match Score Sheet'!C59 = \"p\")","v":false},{"$f":"AND('Match Score Sheet'!B59 = \"h\",'Match Score Sheet'!C59 = \"dg\")","v":false},0,0,0,0,0,0,0,null,null,null,{"$f":"AND('Match Score Sheet'!B59 = \"\",'Match Score Sheet'!C59 = \"fh-e\")","v":false},"",null,{"$f":"AND('Match Score Sheet'!B59 = \"\",'Match Score Sheet'!C59 = \"sh-e\")","v":false},"",null,null,{"$f":"AND('Match Score Sheet'!B59 = \"a\",'Match Score Sheet'!C59 = \"t\")","v":false},{"$f":"AND('Match Score Sheet'!B59 = \"a\",'Match Score Sheet'!C59 = \"pt\")","v":false},{"$f":"AND('Match Score Sheet'!B59 = \"a\",'Match Score Sheet'!C59 = \"c\")","v":false},{"$f":"AND('Match Score Sheet'!B59 = \"a\",'Match Score Sheet'!C59 = \"p\")","v":false},{"$f":"AND('Match Score Sheet'!B59 = \"a\",'Match Score Sheet'!C59 = \"dg\")","v":false},0,0,0,0,0,0,0,null,{"$f":"AND('Match Score Sheet'!B59 = \"\",'Match Score Sheet'!C59 = \"fh-e\")","v":false},"",{"$f":"AND('Match Score Sheet'!B59 = \"\",'Match Score Sheet'!C59 = \"sh-e\")","v":false},""]
[null,{"$f":"AND('Match Score Sheet'!B60 = \"h\",'Match Score Sheet'!C60 = \"t\")","v":false},{"$f":"AND('Match Score Sheet'!B60 = \"h\",'Match Score Sheet'!C60 = \"pt\")","v":false},{"$f":"AND('Match Score Sheet'!B60 = \"h\",'Match Score Sheet'!C60 = \"c\")","v":false},{"$f":"AND('Match Score Sheet'!B60 = \"h\",'Match Score Sheet'!C60 = \"p\")","v":false},{"$f":"AND('Match Score Sheet'!B60 = \"h\",'Match Score Sheet'!C60 = \"dg\")","v":false},0,0,0,0,0,0,0,null,null,null,{"$f":"AND('Match Score Sheet'!B60 = \"\",'Match Score Sheet'!C60 = \"fh-e\")","v":false},"",null,{"$f":"AND('Match Score Sheet'!B60 = \"\",'Match Score Sheet'!C60 = \"sh-e\")","v":false},"",null,null,{"$f":"AND('Match Score Sheet'!B60 = \"a\",'Match Score Sheet'!C60 = \"t\")","v":false},{"$f":"AND('Match Score Sheet'!B60 = \"a\",'Match Score Sheet'!C60 = \"pt\")","v":false},{"$f":"AND('Match Score Sheet'!B60 = \"a\",'Match Score Sheet'!C60 = \"c\")","v":false},{"$f":"AND('Match Score Sheet'!B60 = \"a\",'Match Score Sheet'!C60 = \"p\")","v":false},{"$f":"AND('Match Score Sheet'!B60 = \"a\",'Match Score Sheet'!C60 = \"dg\")","v":false},0,0,0,0,0,0,0,null,{"$f":"AND('Match Score Sheet'!B60 = \"\",'Match Score Sheet'!C60 = \"fh-e\")","v":false},"",{"$f":"AND('Match Score Sheet'!B60 = \"\",'Match Score Sheet'!C60 = \"sh-e\")","v":false},""]
[null,{"$f":"AND('Match Score Sheet'!B61 = \"h\",'Match Score Sheet'!C61 = \"t\")","v":false},{"$f":"AND('Match Score Sheet'!B61 = \"h\",'Match Score Sheet'!C61 = \"pt\")","v":false},{"$f":"AND('Match Score Sheet'!B61 = \"h\",'Match Score Sheet'!C61 = \"c\")","v":false},{"$f":"AND('Match Score Sheet'!B61 = \"h\",'Match Score Sheet'!C61 = \"p\")","v":false},{"$f":"AND('Match Score Sheet'!B61 = \"h\",'Match Score Sheet'!C61 = \"dg\")","v":false},0,0,0,0,0,0,0,null,null,null,{"$f":"AND('Match Score Sheet'!B61 = \"\",'Match Score Sheet'!C61 = \"fh-e\")","v":false},"",null,{"$f":"AND('Match Score Sheet'!B61 = \"\",'Match Score Sheet'!C61 = \"sh-e\")","v":false},"",null,null,{"$f":"AND('Match Score Sheet'!B61 = \"a\",'Match Score Sheet'!C61 = \"t\")","v":false},{"$f":"AND('Match Score Sheet'!B61 = \"a\",'Match Score Sheet'!C61 = \"pt\")","v":false},{"$f":"AND('Match Score Sheet'!B61 = \"a\",'Match Score Sheet'!C61 = \"c\")","v":false},{"$f":"AND('Match Score Sheet'!B61 = \"a\",'Match Score Sheet'!C61 = \"p\")","v":false},{"$f":"AND('Match Score Sheet'!B61 = \"a\",'Match Score Sheet'!C61 = \"dg\")","v":false},0,0,0,0,0,0,0,null,{"$f":"AND('Match Score Sheet'!B61 = \"\",'Match Score Sheet'!C61 = \"fh-e\")","v":false},"",{"$f":"AND('Match Score Sheet'!B61 = \"\",'Match Score Sheet'!C61 = \"sh-e\")","v":false},""]
[null,{"$f":"AND('Match Score Sheet'!B62 = \"h\",'Match Score Sheet'!C62 = \"t\")","v":false},{"$f":"AND('Match Score Sheet'!B62 = \"h\",'Match Score Sheet'!C62 = \"pt\")","v":false},{"$f":"AND('Match Score Sheet'!B62 = \"h\",'Match Score Sheet'!C62 = \"c\")","v":false},{"$f":"AND('Match Score Sheet'!B62 = \"h\",'Match Score Sheet'!C62 = \"p\")","v":false},{"$f":"AND('Match Score Sheet'!B62 = \"h\",'Match Score Sheet'!C62 = \"dg\")","v":false},0,0,0,0,0,0,0,null,null,null,{"$f":"AND('Match Score Sheet'!B62 = \"\",'Match Score Sheet'!C62 = \"fh-e\")","v":false},"",null,{"$f":"AND('Match Score Sheet'!B62 = \"\",'Match Score Sheet'!C62 = \"sh-e\")","v":false},"",null,null,{"$f":"AND('Match Score Sheet'!B62 = \"a\",'Match Score Sheet'!C62 = \"t\")","v":false},{"$f":"AND('Match Score Sheet'!B62 = \"a\",'Match Score Sheet'!C62 = \"pt\")","v":false},{"$f":"AND('Match Score Sheet'!B62 = \"a\",'Match Score Sheet'!C62 = \"c\")","v":false},{"$f":"AND('Match Score Sheet'!B62 = \"a\",'Match Score Sheet'!C62 = \"p\")","v":false},{"$f":"AND('Match Score Sheet'!B62 = \"a\",'Match Score Sheet'!C62 = \"dg\")","v":false},0,0,0,0,0,0,0,null,{"$f":"AND('Match Score Sheet'!B62 = \"\",'Match Score Sheet'!C62 = \"fh-e\")","v":false},"",{"$f":"AND('Match Score Sheet'!B62 = \"\",'Match Score Sheet'!C62 = \"sh-e\")","v":false},""]
[null,{"$f":"AND('Match Score Sheet'!B63 = \"h\",'Match Score Sheet'!C63 = \"t\")","v":false},{"$f":"AND('Match Score Sheet'!B63 = \"h\",'Match Score Sheet'!C63 = \"pt\")","v":false},{"$f":"AND('Match Score Sheet'!B63 = \"h\",'Match Score Sheet'!C63 = \"c\")","v":false},{"$f":"AND('Match Score Sheet'!B63 = \"h\",'Match Score Sheet'!C63 = \"p\")","v":false},{"$f":"AND('Match Score Sheet'!B63 = \"h\",'Match Score Sheet'!C63 = \"dg\")","v":false},0,0,0,0,0,0,0,null,null,null,{"$f":"AND('Match Score Sheet'!B63 = \"\",'Match Score Sheet'!C63 = \"fh-e\")","v":false},"",null,{"$f":"AND('Match Score Sheet'!B63 = \"\",'Match Score Sheet'!C63 = \"sh-e\")","v":false},"",null,null,{"$f":"AND('Match Score Sheet'!B63 = \"a\",'Match Score Sheet'!C63 = \"t\")","v":false},{"$f":"AND('Match Score Sheet'!B63 = \"a\",'Match Score Sheet'!C63 = \"pt\")","v":false},{"$f":"AND('Match Score Sheet'!B63 = \"a\",'Match Score Sheet'!C63 = \"c\")","v":false},{"$f":"AND('Match Score Sheet'!B63 = \"a\",'Match Score Sheet'!C63 = \"p\")","v":false},{"$f":"AND('Match Score Sheet'!B63 = \"a\",'Match Score Sheet'!C63 = \"dg\")","v":false},0,0,0,0,0,0,0,null,{"$f":"AND('Match Score Sheet'!B63 = \"\",'Match Score Sheet'!C63 = \"fh-e\")","v":false},"",{"$f":"AND('Match Score Sheet'!B63 = \"\",'Match Score Sheet'!C63 = \"sh-e\")","v":false},""]
[null,{"$f":"AND('Match Score Sheet'!B64 = \"h\",'Match Score Sheet'!C64 = \"t\")","v":false},{"$f":"AND('Match Score Sheet'!B64 = \"h\",'Match Score Sheet'!C64 = \"pt\")","v":false},{"$f":"AND('Match Score Sheet'!B64 = \"h\",'Match Score Sheet'!C64 = \"c\")","v":false},{"$f":"AND('Match Score Sheet'!B64 = \"h\",'Match Score Sheet'!C64 = \"p\")","v":false},{"$f":"AND('Match Score Sheet'!B64 = \"h\",'Match Score Sheet'!C64 = \"dg\")","v":false},0,0,0,0,0,0,0,null,null,null,{"$f":"AND('Match Score Sheet'!B64 = \"\",'Match Score Sheet'!C64 = \"fh-e\")","v":false},"",null,{"$f":"AND('Match Score Sheet'!B64 = \"\",'Match Score Sheet'!C64 = \"sh-e\")","v":false},"",null,null,{"$f":"AND('Match Score Sheet'!B64 = \"a\",'Match Score Sheet'!C64 = \"t\")","v":false},{"$f":"AND('Match Score Sheet'!B64 = \"a\",'Match Score Sheet'!C64 = \"pt\")","v":false},{"$f":"AND('Match Score Sheet'!B64 = \"a\",'Match Score Sheet'!C64 = \"c\")","v":false},{"$f":"AND('Match Score Sheet'!B64 = \"a\",'Match Score Sheet'!C64 = \"p\")","v":false},{"$f":"AND('Match Score Sheet'!B64 = \"a\",'Match Score Sheet'!C64 = \"dg\")","v":false},0,0,0,0,0,0,0,null,{"$f":"AND('Match Score Sheet'!B64 = \"\",'Match Score Sheet'!C64 = \"fh-e\")","v":false},"",{"$f":"AND('Match Score Sheet'!B64 = \"\",'Match Score Sheet'!C64 = \"sh-e\")","v":false},""]
[null,{"$f":"AND('Match Score Sheet'!B65 = \"h\",'Match Score Sheet'!C65 = \"t\")","v":false},{"$f":"AND('Match Score Sheet'!B65 = \"h\",'Match Score Sheet'!C65 = \"pt\")","v":false},{"$f":"AND('Match Score Sheet'!B65 = \"h\",'Match Score Sheet'!C65 = \"c\")","v":false},{"$f":"AND('Match Score Sheet'!B65 = \"h\",'Match Score Sheet'!C65 = \"p\")","v":false},{"$f":"AND('Match Score Sheet'!B65 = \"h\",'Match Score Sheet'!C65 = \"dg\")","v":false},0,0,0,0,0,0,0,null,null,null,{"$f":"AND('Match Score Sheet'!B65 = \"\",'Match Score Sheet'!C65 = \"fh-e\")","v":false},"",null,{"$f":"AND('Match Score Sheet'!B65 = \"\",'Match Score Sheet'!C65 = \"sh-e\")","v":false},"",null,null,{"$f":"AND('Match Score Sheet'!B65 = \"a\",'Match Score Sheet'!C65 = \"t\")","v":false},{"$f":"AND('Match Score Sheet'!B65 = \"a\",'Match Score Sheet'!C65 = \"pt\")","v":false},{"$f":"AND('Match Score Sheet'!B65 = \"a\",'Match Score Sheet'!C65 = \"c\")","v":false},{"$f":"AND('Match Score Sheet'!B65 = \"a\",'Match Score Sheet'!C65 = \"p\")","v":false},{"$f":"AND('Match Score Sheet'!B65 = \"a\",'Match Score Sheet'!C65 = \"dg\")","v":false},0,0,0,0,0,0,0,null,{"$f":"AND('Match Score Sheet'!B65 = \"\",'Match Score Sheet'!C65 = \"fh-e\")","v":false},"",{"$f":"AND('Match Score Sheet'!B65 = \"\",'Match Score Sheet'!C65 = \"sh-e\")","v":false},""]
[null,{"$f":"AND('Match Score Sheet'!B66 = \"h\",'Match Score Sheet'!C66 = \"t\")","v":false},{"$f":"AND('Match Score Sheet'!B66 = \"h\",'Match Score Sheet'!C66 = \"pt\")","v":false},{"$f":"AND('Match Score Sheet'!B66 = \"h\",'Match Score Sheet'!C66 = \"c\")","v":false},{"$f":"AND('Match Score Sheet'!B66 = \"h\",'Match Score Sheet'!C66 = \"p\")","v":false},{"$f":"AND('Match Score Sheet'!B66 = \"h\",'Match Score Sheet'!C66 = \"dg\")","v":false},0,0,0,0,0,0,0,null,null,null,{"$f":"AND('Match Score Sheet'!B66 = \"\",'Match Score Sheet'!C66 = \"fh-e\")","v":false},"",null,{"$f":"AND('Match Score Sheet'!B66 = \"\",'Match Score Sheet'!C66 = \"sh-e\")","v":false},"",null,null,{"$f":"AND('Match Score Sheet'!B66 = \"a\",'Match Score Sheet'!C66 = \"t\")","v":false},{"$f":"AND('Match Score Sheet'!B66 = \"a\",'Match Score Sheet'!C66 = \"pt\")","v":false},{"$f":"AND('Match Score Sheet'!B66 = \"a\",'Match Score Sheet'!C66 = \"c\")","v":false},{"$f":"AND('Match Score Sheet'!B66 = \"a\",'Match Score Sheet'!C66 = \"p\")","v":false},{"$f":"AND('Match Score Sheet'!B66 = \"a\",'Match Score Sheet'!C66 = \"dg\")","v":false},0,0,0,0,0,0,0,null,{"$f":"AND('Match Score Sheet'!B66 = \"\",'Match Score Sheet'!C66 = \"fh-e\")","v":false},"",{"$f":"AND('Match Score Sheet'!B66 = \"\",'Match Score Sheet'!C66 = \"sh-e\")","v":false},""]
[null,{"$f":"AND('Match Score Sheet'!B67 = \"h\",'Match Score Sheet'!C67 = \"t\")","v":false},{"$f":"AND('Match Score Sheet'!B67 = \"h\",'Match Score Sheet'!C67 = \"pt\")","v":false},{"$f":"AND('Match Score Sheet'!B67 = \"h\",'Match Score Sheet'!C67 = \"c\")","v":false},{"$f":"AND('Match Score Sheet'!B67 = \"h\",'Match Score Sheet'!C67 = \"p\")","v":false},{"$f":"AND('Match Score Sheet'!B67 = \"h\",'Match Score Sheet'!C67 = \"dg\")","v":false},0,0,0,0,0,0,0,null,null,null,{"$f":"AND('Match Score Sheet'!B67 = \"\",'Match Score Sheet'!C67 = \"fh-e\")","v":false},"",null,{"$f":"AND('Match Score Sheet'!B67 = \"\",'Match Score Sheet'!C67 = \"sh-e\")","v":false},"",null,null,{"$f":"AND('Match Score Sheet'!B67 = \"a\",'Match Score Sheet'!C67 = \"t\")","v":false},{"$f":"AND('Match Score Sheet'!B67 = \"a\",'Match Score Sheet'!C67 = \"pt\")","v":false},{"$f":"AND('Match Score Sheet'!B67 = \"a\",'Match Score Sheet'!C67 = \"c\")","v":false},{"$f":"AND('Match Score Sheet'!B67 = \"a\",'Match Score Sheet'!C67 = \"p\")","v":false},{"$f":"AND('Match Score Sheet'!B67 = \"a\",'Match Score Sheet'!C67 = \"dg\")","v":false},0,0,0,0,0,0,0,null,{"$f":"AND('Match Score Sheet'!B67 = \"\",'Match Score Sheet'!C67 = \"fh-e\")","v":false},"",{"$f":"AND('Match Score Sheet'!B67 = \"\",'Match Score Sheet'!C67 = \"sh-e\")","v":false},""]
[null,{"$f":"AND('Match Score Sheet'!B68 = \"h\",'Match Score Sheet'!C68 = \"t\")","v":false},{"$f":"AND('Match Score Sheet'!B68 = \"h\",'Match Score Sheet'!C68 = \"pt\")","v":false},{"$f":"AND('Match Score Sheet'!B68 = \"h\",'Match Score Sheet'!C68 = \"c\")","v":false},{"$f":"AND('Match Score Sheet'!B68 = \"h\",'Match Score Sheet'!C68 = \"p\")","v":false},{"$f":"AND('Match Score Sheet'!B68 = \"h\",'Match Score Sheet'!C68 = \"dg\")","v":false},0,0,0,0,0,0,0,null,null,null,{"$f":"AND('Match Score Sheet'!B68 = \"\",'Match Score Sheet'!C68 = \"fh-e\")","v":false},"",null,{"$f":"AND('Match Score Sheet'!B68 = \"\",'Match Score Sheet'!C68 = \"sh-e\")","v":false},"",null,null,{"$f":"AND('Match Score Sheet'!B68 = \"a\",'Match Score Sheet'!C68 = \"t\")","v":false},{"$f":"AND('Match Score Sheet'!B68 = \"a\",'Match Score Sheet'!C68 = \"pt\")","v":false},{"$f":"AND('Match Score Sheet'!B68 = \"a\",'Match Score Sheet'!C68 = \"c\")","v":false},{"$f":"AND('Match Score Sheet'!B68 = \"a\",'Match Score Sheet'!C68 = \"p\")","v":false},{"$f":"AND('Match Score Sheet'!B68 = \"a\",'Match Score Sheet'!C68 = \"dg\")","v":false},0,0,0,0,0,0,0,null,{"$f":"AND('Match Score Sheet'!B68 = \"\",'Match Score Sheet'!C68 = \"fh-e\")","v":false},"",{"$f":"AND('Match Score Sheet'!B68 = \"\",'Match Score Sheet'!C68 = \"sh-e\")","v":false},""]
[null,{"$f":"AND('Match Score Sheet'!B69 = \"h\",'Match Score Sheet'!C69 = \"t\")","v":false},{"$f":"AND('Match Score Sheet'!B69 = \"h\",'Match Score Sheet'!C69 = \"pt\")","v":false},{"$f":"AND('Match Score Sheet'!B69 = \"h\",'Match Score Sheet'!C69 = \"c\")","v":false},{"$f":"AND('Match Score Sheet'!B69 = \"h\",'Match Score Sheet'!C69 = \"p\")","v":false},{"$f":"AND('Match Score Sheet'!B69 = \"h\",'Match Score Sheet'!C69 = \"dg\")","v":false},0,0,0,0,0,0,0,null,null,null,{"$f":"AND('Match Score Sheet'!B69 = \"\",'Match Score Sheet'!C69 = \"fh-e\")","v":false},"",null,{"$f":"AND('Match Score Sheet'!B69 = \"\",'Match Score Sheet'!C69 = \"sh-e\")","v":false},"",null,null,{"$f":"AND('Match Score Sheet'!B69 = \"a\",'Match Score Sheet'!C69 = \"t\")","v":false},{"$f":"AND('Match Score Sheet'!B69 = \"a\",'Match Score Sheet'!C69 = \"pt\")","v":false},{"$f":"AND('Match Score Sheet'!B69 = \"a\",'Match Score Sheet'!C69 = \"c\")","v":false},{"$f":"AND('Match Score Sheet'!B69 = \"a\",'Match Score Sheet'!C69 = \"p\")","v":false},{"$f":"AND('Match Score Sheet'!B69 = \"a\",'Match Score Sheet'!C69 = \"dg\")","v":false},0,0,0,0,0,0,0,null,{"$f":"AND('Match Score Sheet'!B69 = \"\",'Match Score Sheet'!C69 = \"fh-e\")","v":false},"",{"$f":"AND('Match Score Sheet'!B69 = \"\",'Match Score Sheet'!C69 = \"sh-e\")","v":false},""]
[null,{"$f":"AND('Match Score Sheet'!B70 = \"h\",'Match Score Sheet'!C70 = \"t\")","v":false},{"$f":"AND('Match Score Sheet'!B70 = \"h\",'Match Score Sheet'!C70 = \"pt\")","v":false},{"$f":"AND('Match Score Sheet'!B70 = \"h\",'Match Score Sheet'!C70 = \"c\")","v":false},{"$f":"AND('Match Score Sheet'!B70 = \"h\",'Match Score Sheet'!C70 = \"p\")","v":false},{"$f":"AND('Match Score Sheet'!B70 = \"h\",'Match Score Sheet'!C70 = \"dg\")","v":false},0,0,0,0,0,0,0,null,null,null,{"$f":"AND('Match Score Sheet'!B70 = \"\",'Match Score Sheet'!C70 = \"fh-e\")","v":false},"",null,{"$f":"AND('Match Score Sheet'!B70 = \"\",'Match Score Sheet'!C70 = \"sh-e\")","v":false},"",null,null,{"$f":"AND('Match Score Sheet'!B70 = \"a\",'Match Score Sheet'!C70 = \"t\")","v":false},{"$f":"AND('Match Score Sheet'!B70 = \"a\",'Match Score Sheet'!C70 = \"pt\")","v":false},{"$f":"AND('Match Score Sheet'!B70 = \"a\",'Match Score Sheet'!C70 = \"c\")","v":false},{"$f":"AND('Match Score Sheet'!B70 = \"a\",'Match Score Sheet'!C70 = \"p\")","v":false},{"$f":"AND('Match Score Sheet'!B70 = \"a\",'Match Score Sheet'!C70 = \"dg\")","v":false},0,0,0,0,0,0,0,null,{"$f":"AND('Match Score Sheet'!B70 = \"\",'Match Score Sheet'!C70 = \"fh-e\")","v":false},"",{"$f":"AND('Match Score Sheet'!B70 = \"\",'Match Score Sheet'!C70 = \"sh-e\")","v":false},""]
[null,{"$f":"AND('Match Score Sheet'!B71 = \"h\",'Match Score Sheet'!C71 = \"t\")","v":false},{"$f":"AND('Match Score Sheet'!B71 = \"h\",'Match Score Sheet'!C71 = \"pt\")","v":false},{"$f":"AND('Match Score Sheet'!B71 = \"h\",'Match Score Sheet'!C71 = \"c\")","v":false},{"$f":"AND('Match Score Sheet'!B71 = \"h\",'Match Score Sheet'!C71 = \"p\")","v":false},{"$f":"AND('Match Score Sheet'!B71 = \"h\",'Match Score Sheet'!C71 = \"dg\")","v":false},0,0,0,0,0,0,0,null,null,null,{"$f":"AND('Match Score Sheet'!B71 = \"\",'Match Score Sheet'!C71 = \"fh-e\")","v":false},"",null,{"$f":"AND('Match Score Sheet'!B71 = \"\",'Match Score Sheet'!C71 = \"sh-e\")","v":false},"",null,null,{"$f":"AND('Match Score Sheet'!B71 = \"a\",'Match Score Sheet'!C71 = \"t\")","v":false},{"$f":"AND('Match Score Sheet'!B71 = \"a\",'Match Score Sheet'!C71 = \"pt\")","v":false},{"$f":"AND('Match Score Sheet'!B71 = \"a\",'Match Score Sheet'!C71 = \"c\")","v":false},{"$f":"AND('Match Score Sheet'!B71 = \"a\",'Match Score Sheet'!C71 = \"p\")","v":false},{"$f":"AND('Match Score Sheet'!B71 = \"a\",'Match Score Sheet'!C71 = \"dg\")","v":false},0,0,0,0,0,0,0,null,{"$f":"AND('Match Score Sheet'!B71 = \"\",'Match Score Sheet'!C71 = \"fh-e\")","v":false},"",{"$f":"AND('Match Score Sheet'!B71 = \"\",'Match Score Sheet'!C71 = \"sh-e\")","v":false},""]
[null,{"$f":"AND('Match Score Sheet'!B72 = \"h\",'Match Score Sheet'!C72 = \"t\")","v":false},{"$f":"AND('Match Score Sheet'!B72 = \"h\",'Match Score Sheet'!C72 = \"pt\")","v":false},{"$f":"AND('Match Score Sheet'!B72 = \"h\",'Match Score Sheet'!C72 = \"c\")","v":false},{"$f":"AND('Match Score Sheet'!B72 = \"h\",'Match Score Sheet'!C72 = \"p\")","v":false},{"$f":"AND('Match Score Sheet'!B72 = \"h\",'Match Score Sheet'!C72 = \"dg\")","v":false},0,0,0,0,0,0,0,null,null,null,{"$f":"AND('Match Score Sheet'!B72 = \"\",'Match Score Sheet'!C72 = \"fh-e\")","v":false},"",null,{"$f":"AND('Match Score Sheet'!B72 = \"\",'Match Score Sheet'!C72 = \"sh-e\")","v":false},"",null,null,{"$f":"AND('Match Score Sheet'!B72 = \"a\",'Match Score Sheet'!C72 = \"t\")","v":false},{"$f":"AND('Match Score Sheet'!B72 = \"a\",'Match Score Sheet'!C72 = \"pt\")","v":false},{"$f":"AND('Match Score Sheet'!B72 = \"a\",'Match Score Sheet'!C72 = \"c\")","v":false},{"$f":"AND('Match Score Sheet'!B72 = \"a\",'Match Score Sheet'!C72 = \"p\")","v":false},{"$f":"AND('Match Score Sheet'!B72 = \"a\",'Match Score Sheet'!C72 = \"dg\")","v":false},0,0,0,0,0,0,0,null,{"$f":"AND('Match Score Sheet'!B72 = \"\",'Match Score Sheet'!C72 = \"fh-e\")","v":false},"",{"$f":"AND('Match Score Sheet'!B72 = \"\",'Match Score Sheet'!C72 = \"sh-e\")","v":false},""]
[null,{"$f":"AND('Match Score Sheet'!B73 = \"h\",'Match Score Sheet'!C73 = \"t\")","v":false},{"$f":"AND('Match Score Sheet'!B73 = \"h\",'Match Score Sheet'!C73 = \"pt\")","v":false},{"$f":"AND('Match Score Sheet'!B73 = \"h\",'Match Score Sheet'!C73 = \"c\")","v":false},{"$f":"AND('Match Score Sheet'!B73 = \"h\",'Match Score Sheet'!C73 = \"p\")","v":false},{"$f":"AND('Match Score Sheet'!B73 = \"h\",'Match Score Sheet'!C73 = \"dg\")","v":false},0,0,0,0,0,0,0,null,null,null,{"$f":"AND('Match Score Sheet'!B73 = \"\",'Match Score Sheet'!C73 = \"fh-e\")","v":false},"",null,{"$f":"AND('Match Score Sheet'!B73 = \"\",'Match Score Sheet'!C73 = \"sh-e\")","v":false},"",null,null,{"$f":"AND('Match Score Sheet'!B73 = \"a\",'Match Score Sheet'!C73 = \"t\")","v":false},{"$f":"AND('Match Score Sheet'!B73 = \"a\",'Match Score Sheet'!C73 = \"pt\")","v":false},{"$f":"AND('Match Score Sheet'!B73 = \"a\",'Match Score Sheet'!C73 = \"c\")","v":false},{"$f":"AND('Match Score Sheet'!B73 = \"a\",'Match Score Sheet'!C73 = \"p\")","v":false},{"$f":"AND('Match Score Sheet'!B73 = \"a\",'Match Score Sheet'!C73 = \"dg\")","v":false},0,0,0,0,0,0,0,null,{"$f":"AND('Match Score Sheet'!B73 = \"\",'Match Score Sheet'!C73 = \"fh-e\")","v":false},"",{"$f":"AND('Match Score Sheet'!B73 = \"\",'Match Score Sheet'!C73 = \"sh-e\")","v":false},""]
[null,{"$f":"AND('Match Score Sheet'!B74 = \"h\",'Match Score Sheet'!C74 = \"t\")","v":false},{"$f":"AND('Match Score Sheet'!B74 = \"h\",'Match Score Sheet'!C74 = \"pt\")","v":false},{"$f":"AND('Match Score Sheet'!B74 = \"h\",'Match Score Sheet'!C74 = \"c\")","v":false},{"$f":"AND('Match Score Sheet'!B74 = \"h\",'Match Score Sheet'!C74 = \"p\")","v":false},{"$f":"AND('Match Score Sheet'!B74 = \"h\",'Match Score Sheet'!C74 = \"dg\")","v":false},0,0,0,0,0,0,0,null,null,null,{"$f":"AND('Match Score Sheet'!B74 = \"\",'Match Score Sheet'!C74 = \"fh-e\")","v":false},"",null,{"$f":"AND('Match Score Sheet'!B74 = \"\",'Match Score Sheet'!C74 = \"sh-e\")","v":false},"",null,null,{"$f":"AND('Match Score Sheet'!B74 = \"a\",'Match Score Sheet'!C74 = \"t\")","v":false},{"$f":"AND('Match Score Sheet'!B74 = \"a\",'Match Score Sheet'!C74 = \"pt\")","v":false},{"$f":"AND('Match Score Sheet'!B74 = \"a\",'Match Score Sheet'!C74 = \"c\")","v":false},{"$f":"AND('Match Score Sheet'!B74 = \"a\",'Match Score Sheet'!C74 = \"p\")","v":false},{"$f":"AND('Match Score Sheet'!B74 = \"a\",'Match Score Sheet'!C74 = \"dg\")","v":false},0,0,0,0,0,0,0,null,{"$f":"AND('Match Score Sheet'!B74 = \"\",'Match Score Sheet'!C74 = \"fh-e\")","v":false},"",{"$f":"AND('Match Score Sheet'!B74 = \"\",'Match Score Sheet'!C74 = \"sh-e\")","v":false},""]
[null,{"$f":"AND('Match Score Sheet'!B75 = \"h\",'Match Score Sheet'!C75 = \"t\")","v":false},{"$f":"AND('Match Score Sheet'!B75 = \"h\",'Match Score Sheet'!C75 = \"pt\")","v":false},{"$f":"AND('Match Score Sheet'!B75 = \"h\",'Match Score Sheet'!C75 = \"c\")","v":false},{"$f":"AND('Match Score Sheet'!B75 = \"h\",'Match Score Sheet'!C75 = \"p\")","v":false},{"$f":"AND('Match Score Sheet'!B75 = \"h\",'Match Score Sheet'!C75 = \"dg\")","v":false},0,0,0,0,0,0,0,null,null,null,{"$f":"AND('Match Score Sheet'!B75 = \"\",'Match Score Sheet'!C75 = \"fh-e\")","v":false},"",null,{"$f":"AND('Match Score Sheet'!B75 = \"\",'Match Score Sheet'!C75 = \"sh-e\")","v":false},"",null,null,{"$f":"AND('Match Score Sheet'!B75 = \"a\",'Match Score Sheet'!C75 = \"t\")","v":false},{"$f":"AND('Match Score Sheet'!B75 = \"a\",'Match Score Sheet'!C75 = \"pt\")","v":false},{"$f":"AND('Match Score Sheet'!B75 = \"a\",'Match Score Sheet'!C75 = \"c\")","v":false},{"$f":"AND('Match Score Sheet'!B75 = \"a\",'Match Score Sheet'!C75 = \"p\")","v":false},{"$f":"AND('Match Score Sheet'!B75 = \"a\",'Match Score Sheet'!C75 = \"dg\")","v":false},0,0,0,0,0,0,0,null,{"$f":"AND('Match Score Sheet'!B75 = \"\",'Match Score Sheet'!C75 = \"fh-e\")","v":false},"",{"$f":"AND('Match Score Sheet'!B75 = \"\",'Match Score Sheet'!C75 = \"sh-e\")","v":false},""]
[null,{"$f":"AND('Match Score Sheet'!B76 = \"h\",'Match Score Sheet'!C76 = \"t\")","v":false},{"$f":"AND('Match Score Sheet'!B76 = \"h\",'Match Score Sheet'!C76 = \"pt\")","v":false},{"$f":"AND('Match Score Sheet'!B76 = \"h\",'Match Score Sheet'!C76 = \"c\")","v":false},{"$f":"AND('Match Score Sheet'!B76 = \"h\",'Match Score Sheet'!C76 = \"p\")","v":false},{"$f":"AND('Match Score Sheet'!B76 = \"h\",'Match Score Sheet'!C76 = \"dg\")","v":false},0,0,0,0,0,0,0,null,null,null,{"$f":"AND('Match Score Sheet'!B76 = \"\",'Match Score Sheet'!C76 = \"fh-e\")","v":false},"",null,{"$f":"AND('Match Score Sheet'!B76 = \"\",'Match Score Sheet'!C76 = \"sh-e\")","v":false},"",null,null,{"$f":"AND('Match Score Sheet'!B76 = \"a\",'Match Score Sheet'!C76 = \"t\")","v":false},{"$f":"AND('Match Score Sheet'!B76 = \"a\",'Match Score Sheet'!C76 = \"pt\")","v":false},{"$f":"AND('Match Score Sheet'!B76 = \"a\",'Match Score Sheet'!C76 = \"c\")","v":false},{"$f":"AND('Match Score Sheet'!B76 = \"a\",'Match Score Sheet'!C76 = \"p\")","v":false},{"$f":"AND('Match Score Sheet'!B76 = \"a\",'Match Score Sheet'!C76 = \"dg\")","v":false},0,0,0,0,0,0,0,null,{"$f":"AND('Match Score Sheet'!B76 = \"\",'Match Score Sheet'!C76 = \"fh-e\")","v":false},"",{"$f":"AND('Match Score Sheet'!B76 = \"\",'Match Score Sheet'!C76 = \"sh-e\")","v":false},""]
[null,{"$f":"AND('Match Score Sheet'!B77 = \"h\",'Match Score Sheet'!C77 = \"t\")","v":false},{"$f":"AND('Match Score Sheet'!B77 = \"h\",'Match Score Sheet'!C77 = \"pt\")","v":false},{"$f":"AND('Match Score Sheet'!B77 = \"h\",'Match Score Sheet'!C77 = \"c\")","v":false},{"$f":"AND('Match Score Sheet'!B77 = \"h\",'Match Score Sheet'!C77 = \"p\")","v":false},{"$f":"AND('Match Score Sheet'!B77 = \"h\",'Match Score Sheet'!C77 = \"dg\")","v":false},0,0,0,0,0,0,0,null,null,null,{"$f":"AND('Match Score Sheet'!B77 = \"\",'Match Score Sheet'!C77 = \"fh-e\")","v":false},"",null,{"$f":"AND('Match Score Sheet'!B77 = \"\",'Match Score Sheet'!C77 = \"sh-e\")","v":false},"",null,null,{"$f":"AND('Match Score Sheet'!B77 = \"a\",'Match Score Sheet'!C77 = \"t\")","v":false},{"$f":"AND('Match Score Sheet'!B77 = \"a\",'Match Score Sheet'!C77 = \"pt\")","v":false},{"$f":"AND('Match Score Sheet'!B77 = \"a\",'Match Score Sheet'!C77 = \"c\")","v":false},{"$f":"AND('Match Score Sheet'!B77 = \"a\",'Match Score Sheet'!C77 = \"p\")","v":false},{"$f":"AND('Match Score Sheet'!B77 = \"a\",'Match Score Sheet'!C77 = \"dg\")","v":false},0,0,0,0,0,0,0,null,{"$f":"AND('Match Score Sheet'!B77 = \"\",'Match Score Sheet'!C77 = \"fh-e\")","v":false},"",{"$f":"AND('Match Score Sheet'!B77 = \"\",'Match Score Sheet'!C77 = \"sh-e\")","v":false},""]
[null,{"$f":"AND('Match Score Sheet'!B78 = \"h\",'Match Score Sheet'!C78 = \"t\")","v":false},{"$f":"AND('Match Score Sheet'!B78 = \"h\",'Match Score Sheet'!C78 = \"pt\")","v":false},{"$f":"AND('Match Score Sheet'!B78 = \"h\",'Match Score Sheet'!C78 = \"c\")","v":false},{"$f":"AND('Match Score Sheet'!B78 = \"h\",'Match Score Sheet'!C78 = \"p\")","v":false},{"$f":"AND('Match Score Sheet'!B78 = \"h\",'Match Score Sheet'!C78 = \"dg\")","v":false},0,0,0,0,0,0,0,null,null,null,{"$f":"AND('Match Score Sheet'!B78 = \"\",'Match Score Sheet'!C78 = \"fh-e\")","v":false},"",null,{"$f":"AND('Match Score Sheet'!B78 = \"\",'Match Score Sheet'!C78 = \"sh-e\")","v":false},"",null,null,{"$f":"AND('Match Score Sheet'!B78 = \"a\",'Match Score Sheet'!C78 = \"t\")","v":false},{"$f":"AND('Match Score Sheet'!B78 = \"a\",'Match Score Sheet'!C78 = \"pt\")","v":false},{"$f":"AND('Match Score Sheet'!B78 = \"a\",'Match Score Sheet'!C78 = \"c\")","v":false},{"$f":"AND('Match Score Sheet'!B78 = \"a\",'Match Score Sheet'!C78 = \"p\")","v":false},{"$f":"AND('Match Score Sheet'!B78 = \"a\",'Match Score Sheet'!C78 = \"dg\")","v":false},0,0,0,0,0,0,0,null,{"$f":"AND('Match Score Sheet'!B78 = \"\",'Match Score Sheet'!C78 = \"fh-e\")","v":false},"",{"$f":"AND('Match Score Sheet'!B78 = \"\",'Match Score Sheet'!C78 = \"sh-e\")","v":false},""]
[null,{"$f":"AND('Match Score Sheet'!B79 = \"h\",'Match Score Sheet'!C79 = \"t\")","v":false},{"$f":"AND('Match Score Sheet'!B79 = \"h\",'Match Score Sheet'!C79 = \"pt\")","v":false},{"$f":"AND('Match Score Sheet'!B79 = \"h\",'Match Score Sheet'!C79 = \"c\")","v":false},{"$f":"AND('Match Score Sheet'!B79 = \"h\",'Match Score Sheet'!C79 = \"p\")","v":false},{"$f":"AND('Match Score Sheet'!B79 = \"h\",'Match Score Sheet'!C79 = \"dg\")","v":false},0,0,0,0,0,0,0,null,null,null,{"$f":"AND('Match Score Sheet'!B79 = \"\",'Match Score Sheet'!C79 = \"fh-e\")","v":false},"",null,{"$f":"AND('Match Score Sheet'!B79 = \"\",'Match Score Sheet'!C79 = \"sh-e\")","v":false},"",null,null,{"$f":"AND('Match Score Sheet'!B79 = \"a\",'Match Score Sheet'!C79 = \"t\")","v":false},{"$f":"AND('Match Score Sheet'!B79 = \"a\",'Match Score Sheet'!C79 = \"pt\")","v":false},{"$f":"AND('Match Score Sheet'!B79 = \"a\",'Match Score Sheet'!C79 = \"c\")","v":false},{"$f":"AND('Match Score Sheet'!B79 = \"a\",'Match Score Sheet'!C79 = \"p\")","v":false},{"$f":"AND('Match Score Sheet'!B79 = \"a\",'Match Score Sheet'!C79 = \"dg\")","v":false},0,0,0,0,0,0,0,null,{"$f":"AND('Match Score Sheet'!B79 = \"\",'Match Score Sheet'!C79 = \"fh-e\")","v":false},"",{"$f":"AND('Match Score Sheet'!B79 = \"\",'Match Score Sheet'!C79 = \"sh-e\")","v":false},""]
[null,{"$f":"AND('Match Score Sheet'!B80 = \"h\",'Match Score Sheet'!C80 = \"t\")","v":false},{"$f":"AND('Match Score Sheet'!B80 = \"h\",'Match Score Sheet'!C80 = \"pt\")","v":false},{"$f":"AND('Match Score Sheet'!B80 = \"h\",'Match Score Sheet'!C80 = \"c\")","v":false},{"$f":"AND('Match Score Sheet'!B80 = \"h\",'Match Score Sheet'!C80 = \"p\")","v":false},{"$f":"AND('Match Score Sheet'!B80 = \"h\",'Match Score Sheet'!C80 = \"dg\")","v":false},0,0,0,0,0,0,0,null,null,null,{"$f":"AND('Match Score Sheet'!B80 = \"\",'Match Score Sheet'!C80 = \"fh-e\")","v":false},"",null,{"$f":"AND('Match Score Sheet'!B80 = \"\",'Match Score Sheet'!C80 = \"sh-e\")","v":false},"",null,null,{"$f":"AND('Match Score Sheet'!B80 = \"a\",'Match Score Sheet'!C80 = \"t\")","v":false},{"$f":"AND('Match Score Sheet'!B80 = \"a\",'Match Score Sheet'!C80 = \"pt\")","v":false},{"$f":"AND('Match Score Sheet'!B80 = \"a\",'Match Score Sheet'!C80 = \"c\")","v":false},{"$f":"AND('Match Score Sheet'!B80 = \"a\",'Match Score Sheet'!C80 = \"p\")","v":false},{"$f":"AND('Match Score Sheet'!B80 = \"a\",'Match Score Sheet'!C80 = \"dg\")","v":false},0,0,0,0,0,0,0,null,{"$f":"AND('Match Score Sheet'!B80 = \"\",'Match Score Sheet'!C80 = \"fh-e\")","v":false},"",{"$f":"AND('Match Score Sheet'!B80 = \"\",'Match Score Sheet'!C80 = \"sh-e\")","v":false},""]
[null,{"$f":"AND('Match Score Sheet'!B81 = \"h\",'Match Score Sheet'!C81 = \"t\")","v":false},{"$f":"AND('Match Score Sheet'!B81 = \"h\",'Match Score Sheet'!C81 = \"pt\")","v":false},{"$f":"AND('Match Score Sheet'!B81 = \"h\",'Match Score Sheet'!C81 = \"c\")","v":false},{"$f":"AND('Match Score Sheet'!B81 = \"h\",'Match Score Sheet'!C81 = \"p\")","v":false},{"$f":"AND('Match Score Sheet'!B81 = \"h\",'Match Score Sheet'!C81 = \"dg\")","v":false},0,0,0,0,0,0,0,null,null,null,{"$f":"AND('Match Score Sheet'!B81 = \"\",'Match Score Sheet'!C81 = \"fh-e\")","v":false},"",null,{"$f":"AND('Match Score Sheet'!B81 = \"\",'Match Score Sheet'!C81 = \"sh-e\")","v":false},"",null,null,{"$f":"AND('Match Score Sheet'!B81 = \"a\",'Match Score Sheet'!C81 = \"t\")","v":false},{"$f":"AND('Match Score Sheet'!B81 = \"a\",'Match Score Sheet'!C81 = \"pt\")","v":false},{"$f":"AND('Match Score Sheet'!B81 = \"a\",'Match Score Sheet'!C81 = \"c\")","v":false},{"$f":"AND('Match Score Sheet'!B81 = \"a\",'Match Score Sheet'!C81 = \"p\")","v":false},{"$f":"AND('Match Score Sheet'!B81 = \"a\",'Match Score Sheet'!C81 = \"dg\")","v":false},0,0,0,0,0,0,0,null,{"$f":"AND('Match Score Sheet'!B81 = \"\",'Match Score Sheet'!C81 = \"fh-e\")","v":false},"",{"$f":"AND('Match Score Sheet'!B81 = \"\",'Match Score Sheet'!C81 = \"sh-e\")","v":false},""]
[null,{"$f":"AND('Match Score Sheet'!B82 = \"h\",'Match Score Sheet'!C82 = \"t\")","v":false},{"$f":"AND('Match Score Sheet'!B82 = \"h\",'Match Score Sheet'!C82 = \"pt\")","v":false},{"$f":"AND('Match Score Sheet'!B82 = \"h\",'Match Score Sheet'!C82 = \"c\")","v":false},{"$f":"AND('Match Score Sheet'!B82 = \"h\",'Match Score Sheet'!C82 = \"p\")","v":false},{"$f":"AND('Match Score Sheet'!B82 = \"h\",'Match Score Sheet'!C82 = \"dg\")","v":false},0,0,0,0,0,0,0,null,null,null,{"$f":"AND('Match Score Sheet'!B82 = \"\",'Match Score Sheet'!C82 = \"fh-e\")","v":false},"",null,{"$f":"AND('Match Score Sheet'!B82 = \"\",'Match Score Sheet'!C82 = \"sh-e\")","v":false},"",null,null,{"$f":"AND('Match Score Sheet'!B82 = \"a\",'Match Score Sheet'!C82 = \"t\")","v":false},{"$f":"AND('Match Score Sheet'!B82 = \"a\",'Match Score Sheet'!C82 = \"pt\")","v":false},{"$f":"AND('Match Score Sheet'!B82 = \"a\",'Match Score Sheet'!C82 = \"c\")","v":false},{"$f":"AND('Match Score Sheet'!B82 = \"a\",'Match Score Sheet'!C82 = \"p\")","v":false},{"$f":"AND('Match Score Sheet'!B82 = \"a\",'Match Score Sheet'!C82 = \"dg\")","v":false},0,0,0,0,0,0,0,null,{"$f":"AND('Match Score Sheet'!B82 = \"\",'Match Score Sheet'!C82 = \"fh-e\")","v":false},"",{"$f":"AND('Match Score Sheet'!B82 = \"\",'Match Score Sheet'!C82 = \"sh-e\")","v":false},""]
[null,{"$f":"AND('Match Score Sheet'!B83 = \"h\",'Match Score Sheet'!C83 = \"t\")","v":false},{"$f":"AND('Match Score Sheet'!B83 = \"h\",'Match Score Sheet'!C83 = \"pt\")","v":false},{"$f":"AND('Match Score Sheet'!B83 = \"h\",'Match Score Sheet'!C83 = \"c\")","v":false},{"$f":"AND('Match Score Sheet'!B83 = \"h\",'Match Score Sheet'!C83 = \"p\")","v":false},{"$f":"AND('Match Score Sheet'!B83 = \"h\",'Match Score Sheet'!C83 = \"dg\")","v":false},0,0,0,0,0,0,0,null,null,null,{"$f":"AND('Match Score Sheet'!B83 = \"\",'Match Score Sheet'!C83 = \"fh-e\")","v":false},"",null,{"$f":"AND('Match Score Sheet'!B83 = \"\",'Match Score Sheet'!C83 = \"sh-e\")","v":false},"",null,null,{"$f":"AND('Match Score Sheet'!B83 = \"a\",'Match Score Sheet'!C83 = \"t\")","v":false},{"$f":"AND('Match Score Sheet'!B83 = \"a\",'Match Score Sheet'!C83 = \"pt\")","v":false},{"$f":"AND('Match Score Sheet'!B83 = \"a\",'Match Score Sheet'!C83 = \"c\")","v":false},{"$f":"AND('Match Score Sheet'!B83 = \"a\",'Match Score Sheet'!C83 = \"p\")","v":false},{"$f":"AND('Match Score Sheet'!B83 = \"a\",'Match Score Sheet'!C83 = \"dg\")","v":false},0,0,0,0,0,0,0,null,{"$f":"AND('Match Score Sheet'!B83 = \"\",'Match Score Sheet'!C83 = \"fh-e\")","v":false},"",{"$f":"AND('Match Score Sheet'!B83 = \"\",'Match Score Sheet'!C83 = \"sh-e\")","v":false},""]
[null,{"$f":"AND('Match Score Sheet'!B84 = \"h\",'Match Score Sheet'!C84 = \"t\")","v":false},{"$f":"AND('Match Score Sheet'!B84 = \"h\",'Match Score Sheet'!C84 = \"pt\")","v":false},{"$f":"AND('Match Score Sheet'!B84 = \"h\",'Match Score Sheet'!C84 = \"c\")","v":false},{"$f":"AND('Match Score Sheet'!B84 = \"h\",'Match Score Sheet'!C84 = \"p\")","v":false},{"$f":"AND('Match Score Sheet'!B84 = \"h\",'Match Score Sheet'!C84 = \"dg\")","v":false},0,0,0,0,0,0,0,null,null,null,{"$f":"AND('Match Score Sheet'!B84 = \"\",'Match Score Sheet'!C84 = \"fh-e\")","v":false},{"$f":"IF(Q68=TRUE,M68,\"\")","v":""},null,{"$f":"AND('Match Score Sheet'!B84 = \"\",'Match Score Sheet'!C84 = \"sh-e\")","v":false},"",null,null,{"$f":"AND('Match Score Sheet'!B84 = \"a\",'Match Score Sheet'!C84 = \"t\")","v":false},{"$f":"AND('Match Score Sheet'!B84 = \"a\",'Match Score Sheet'!C84 = \"pt\")","v":false},{"$f":"AND('Match Score Sheet'!B84 = \"a\",'Match Score Sheet'!C84 = \"c\")","v":false},{"$f":"AND('Match Score Sheet'!B84 = \"a\",'Match Score Sheet'!C84 = \"p\")","v":false},{"$f":"AND('Match Score Sheet'!B84 = \"a\",'Match Score Sheet'!C84 = \"dg\")","v":false},0,0,0,0,0,0,0,null,{"$f":"AND('Match Score Sheet'!B84 = \"\",'Match Score Sheet'!C84 = \"fh-e\")","v":false},{"$f":"IF(AK68=TRUE,AI68,\"\")","v":""},{"$f":"AND('Match Score Sheet'!B84 = \"\",'Match Score Sheet'!C84 = \"sh-e\")","v":false},""]
[null,{"$f":"AND('Match Score Sheet'!B85 = \"h\",'Match Score Sheet'!C85 = \"t\")","v":false},{"$f":"AND('Match Score Sheet'!B85 = \"h\",'Match Score Sheet'!C85 = \"pt\")","v":false},{"$f":"AND('Match Score Sheet'!B85 = \"h\",'Match Score Sheet'!C85 = \"c\")","v":false},{"$f":"AND('Match Score Sheet'!B85 = \"h\",'Match Score Sheet'!C85 = \"p\")","v":false},{"$f":"AND('Match Score Sheet'!B85 = \"h\",'Match Score Sheet'!C85 = \"dg\")","v":false},{"$f":"IF(B69 = TRUE,5,0)","v":0},{"$f":"IF(C69 = TRUE,7,0)","v":0},{"$f":"IF(D69 = TRUE,2,0)","v":0},{"$f":"IF(E69 = TRUE,3,0)","v":0},{"$f":"IF(F69 = TRUE,3,0)","v":0},{"$f":"SUM(G69:K69)","v":0},0,null,null,null,{"$f":"AND('Match Score Sheet'!B85 = \"\",'Match Score Sheet'!C85 = \"fh-e\")","v":false},"",null,{"$f":"AND('Match Score Sheet'!B85 = \"\",'Match Score Sheet'!C85 = \"sh-e\")","v":false},{"$f":"IF(T69=TRUE,M69,\"\")","v":""},null,null,{"$f":"AND('Match Score Sheet'!B85 = \"a\",'Match Score Sheet'!C85 = \"t\")","v":false},{"$f":"AND('Match Score Sheet'!B85 = \"a\",'Match Score Sheet'!C85 = \"pt\")","v":false},{"$f":"AND('Match Score Sheet'!B85 = \"a\",'Match Score Sheet'!C85 = \"c\")","v":false},{"$f":"AND('Match Score Sheet'!B85 = \"a\",'Match Score Sheet'!C85 = \"p\")","v":false},{"$f":"AND('Match Score Sheet'!B85 = \"a\",'Match Score Sheet'!C85 = \"dg\")","v":false},{"$f":"IF(X69 = TRUE,5,0)","v":0},{"$f":"IF(Y69 = TRUE,7,0)","v":0},{"$f":"IF(Z69 = TRUE,2,0)","v":0},{"$f":"IF(AA69 = TRUE,3,0)","v":0},{"$f":"IF(AB69 = TRUE,3,0)","v":0},{"$f":"SUM(AC69:AG69)","v":0},0,null,{"$f":"AND('Match Score Sheet'!B85 = \"\",'Match Score Sheet'!C85 = \"fh-e\")","v":false},"",{"$f":"AND('Match Score Sheet'!B85 = \"\",'Match Score Sheet'!C85 = \"sh-e\")","v":false},{"$f":"IF(AM69=TRUE,AI69,\"\")","v":""}]
[null,{"$f":"AND('Match Score Sheet'!B86 = \"h\",'Match Score Sheet'!C86 = \"t\")","v":false},{"$f":"AND('Match Score Sheet'!B86 = \"h\",'Match Score Sheet'!C86 = \"pt\")","v":false},{"$f":"AND('Match Score Sheet'!B86 = \"h\",'Match Score Sheet'!C86 = \"c\")","v":false},{"$f":"AND('Match Score Sheet'!B86 = \"h\",'Match Score Sheet'!C86 = \"p\")","v":false},{"$f":"AND('Match Score Sheet'!B86 = \"h\",'Match Score Sheet'!C86 = \"dg\")","v":false},0,0,0,0,0,0,0,null,null,null,{"$f":"AND('Match Score Sheet'!B86 = \"\",'Match Score Sheet'!C86 = \"fh-e\")","v":false},"",null,{"$f":"AND('Match Score Sheet'!B86 = \"\",'Match Score Sheet'!C86 = \"sh-e\")","v":false},"",null,null,{"$f":"AND('Match Score Sheet'!B86 = \"a\",'Match Score Sheet'!C86 = \"t\")","v":false},{"$f":"AND('Match Score Sheet'!B86 = \"a\",'Match Score Sheet'!C86 = \"pt\")","v":false},{"$f":"AND('Match Score Sheet'!B86 = \"a\",'Match Score Sheet'!C86 = \"c\")","v":false},{"$f":"AND('Match Score Sheet'!B86 = \"a\",'Match Score Sheet'!C86 = \"p\")","v":false},{"$f":"AND('Match Score Sheet'!B86 = \"a\",'Match Score Sheet'!C86 = \"dg\")","v":false},0,0,0,0,0,0,{"$f":"AI69+AH70","v":0},null,{"$f":"AND('Match Score Sheet'!B86 = \"\",'Match Score Sheet'!C86 = \"fh-e\")","v":false},"",{"$f":"AND('Match Score Sheet'!B86 = \"\",'Match Score Sheet'!C86 = \"sh-e\")","v":false},""]
[null,{"$f":"AND('Match Score Sheet'!B87 = \"h\",'Match Score Sheet'!C87 = \"t\")","v":false},{"$f":"AND('Match Score Sheet'!B87 = \"h\",'Match Score Sheet'!C87 = \"pt\")","v":false},{"$f":"AND('Match Score Sheet'!B87 = \"h\",'Match Score Sheet'!C87 = \"c\")","v":false},{"$f":"AND('Match Score Sheet'!B87 = \"h\",'Match Score Sheet'!C87 = \"p\")","v":false},{"$f":"AND('Match Score Sheet'!B87 = \"h\",'Match Score Sheet'!C87 = \"dg\")","v":false},0,0,0,0,0,0,{"$f":"M70+L71","v":0},null,null,null,{"$f":"AND('Match Score Sheet'!B87 = \"\",'Match Score Sheet'!C87 = \"fh-e\")","v":false},"",null,{"$f":"AND('Match Score Sheet'!B87 = \"\",'Match Score Sheet'!C87 = \"sh-e\")","v":false},"",null,null,{"$f":"AND('Match Score Sheet'!B87 = \"a\",'Match Score Sheet'!C87 = \"t\")","v":false},{"$f":"AND('Match Score Sheet'!B87 = \"a\",'Match Score Sheet'!C87 = \"pt\")","v":false},{"$f":"AND('Match Score Sheet'!B87 = \"a\",'Match Score Sheet'!C87 = \"c\")","v":false},{"$f":"AND('Match Score Sheet'!B87 = \"a\",'Match Score Sheet'!C87 = \"p\")","v":false},{"$f":"AND('Match Score Sheet'!B87 = \"a\",'Match Score Sheet'!C87 = \"dg\")","v":false},0,0,0,0,0,0,0,null,{"$f":"AND('Match Score Sheet'!B87 = \"\",'Match Score Sheet'!C87 = \"fh-e\")","v":false},"",{"$f":"AND('Match Score Sheet'!B87 = \"\",'Match Score Sheet'!C87 = \"sh-e\")","v":false},""]
[null,{"$f":"AND('Match Score Sheet'!B88 = \"h\",'Match Score Sheet'!C88 = \"t\")","v":false},{"$f":"AND('Match Score Sheet'!B88 = \"h\",'Match Score Sheet'!C88 = \"pt\")","v":false},{"$f":"AND('Match Score Sheet'!B88 = \"h\",'Match Score Sheet'!C88 = \"c\")","v":false},{"$f":"AND('Match Score Sheet'!B88 = \"h\",'Match Score Sheet'!C88 = \"p\")","v":false},{"$f":"AND('Match Score Sheet'!B88 = \"h\",'Match Score Sheet'!C88 = \"dg\")","v":false},0,0,0,0,0,0,0,null,null,null,{"$f":"AND('Match Score Sheet'!B88 = \"\",'Match Score Sheet'!C88 = \"fh-e\")","v":false},"",null,{"$f":"AND('Match Score Sheet'!B88 = \"\",'Match Score Sheet'!C88 = \"sh-e\")","v":false},"",null,null,{"$f":"AND('Match Score Sheet'!B88 = \"a\",'Match Score Sheet'!C88 = \"t\")","v":false},{"$f":"AND('Match Score Sheet'!B88 = \"a\",'Match Score Sheet'!C88 = \"pt\")","v":false},{"$f":"AND('Match Score Sheet'!B88 = \"a\",'Match Score Sheet'!C88 = \"c\")","v":false},{"$f":"AND('Match Score Sheet'!B88 = \"a\",'Match Score Sheet'!C88 = \"p\")","v":false},{"$f":"AND('Match Score Sheet'!B88 = \"a\",'Match Score Sheet'!C88 = \"dg\")","v":false},0,0,0,0,0,0,0,null,{"$f":"AND('Match Score Sheet'!B88 = \"\",'Match Score Sheet'!C88 = \"fh-e\")","v":false},"",{"$f":"AND('Match Score Sheet'!B88 = \"\",'Match Score Sheet'!C88 = \"sh-e\")","v":false},""]
[null,{"$f":"AND('Match Score Sheet'!B89 = \"h\",'Match Score Sheet'!C89 = \"t\")","v":false},{"$f":"AND('Match Score Sheet'!B89 = \"h\",'Match Score Sheet'!C89 = \"pt\")","v":false},{"$f":"AND('Match Score Sheet'!B89 = \"h\",'Match Score Sheet'!C89 = \"c\")","v":false},{"$f":"AND('Match Score Sheet'!B89 = \"h\",'Match Score Sheet'!C89 = \"p\")","v":false},{"$f":"AND('Match Score Sheet'!B89 = \"h\",'Match Score Sheet'!C89 = \"dg\")","v":false},0,0,0,0,0,0,0,null,null,null,{"$f":"AND('Match Score Sheet'!B89 = \"\",'Match Score Sheet'!C89 = \"fh-e\")","v":false},"",null,{"$f":"AND('Match Score Sheet'!B89 = \"\",'Match Score Sheet'!C89 = \"sh-e\")","v":false},"",null,null,{"$f":"AND('Match Score Sheet'!B89 = \"a\",'Match Score Sheet'!C89 = \"t\")","v":false},{"$f":"AND('Match Score Sheet'!B89 = \"a\",'Match Score Sheet'!C89 = \"pt\")","v":false},{"$f":"AND('Match Score Sheet'!B89 = \"a\",'Match Score Sheet'!C89 = \"c\")","v":false},{"$f":"AND('Match Score Sheet'!B89 = \"a\",'Match Score Sheet'!C89 = \"p\")","v":false},{"$f":"AND('Match Score Sheet'!B89 = \"a\",'Match Score Sheet'!C89 = \"dg\")","v":false},0,0,0,0,0,0,0,null,{"$f":"AND('Match Score Sheet'!B89 = \"\",'Match Score Sheet'!C89 = \"fh-e\")","v":false},"",{"$f":"AND('Match Score Sheet'!B89 = \"\",'Match Score Sheet'!C89 = \"sh-e\")","v":false},""]
[null,{"$f":"AND('Match Score Sheet'!B90 = \"h\",'Match Score Sheet'!C90 = \"t\")","v":false},{"$f":"AND('Match Score Sheet'!B90 = \"h\",'Match Score Sheet'!C90 = \"pt\")","v":false},{"$f":"AND('Match Score Sheet'!B90 = \"h\",'Match Score Sheet'!C90 = \"c\")","v":false},{"$f":"AND('Match Score Sheet'!B90 = \"h\",'Match Score Sheet'!C90 = \"p\")","v":false},{"$f":"AND('Match Score Sheet'!B90 = \"h\",'Match Score Sheet'!C90 = \"dg\")","v":false},0,0,0,0,0,0,0,null,null,null,{"$f":"AND('Match Score Sheet'!B90 = \"\",'Match Score Sheet'!C90 = \"fh-e\")","v":false},"",null,{"$f":"AND('Match Score Sheet'!B90 = \"\",'Match Score Sheet'!C90 = \"sh-e\")","v":false},"",null,null,{"$f":"AND('Match Score Sheet'!B90 = \"a\",'Match Score Sheet'!C90 = \"t\")","v":false},{"$f":"AND('Match Score Sheet'!B90 = \"a\",'Match Score Sheet'!C90 = \"pt\")","v":false},{"$f":"AND('Match Score Sheet'!B90 = \"a\",'Match Score Sheet'!C90 = \"c\")","v":false},{"$f":"AND('Match Score Sheet'!B90 = \"a\",'Match Score Sheet'!C90 = \"p\")","v":false},{"$f":"AND('Match Score Sheet'!B90 = \"a\",'Match Score Sheet'!C90 = \"dg\")","v":false},0,0,0,0,0,0,0,null,{"$f":"AND('Match Score Sheet'!B90 = \"\",'Match Score Sheet'!C90 = \"fh-e\")","v":false},"",{"$f":"AND('Match Score Sheet'!B90 = \"\",'Match Score Sheet'!C90 = \"sh-e\")","v":false},""]
[null,{"$f":"AND('Match Score Sheet'!B91 = \"h\",'Match Score Sheet'!C91 = \"t\")","v":false},{"$f":"AND('Match Score Sheet'!B91 = \"h\",'Match Score Sheet'!C91 = \"pt\")","v":false},{"$f":"AND('Match Score Sheet'!B91 = \"h\",'Match Score Sheet'!C91 = \"c\")","v":false},{"$f":"AND('Match Score Sheet'!B91 = \"h\",'Match Score Sheet'!C91 = \"p\")","v":false},{"$f":"AND('Match Score Sheet'!B91 = \"h\",'Match Score Sheet'!C91 = \"dg\")","v":false},0,0,0,0,0,0,0,null,null,null,{"$f":"AND('Match Score Sheet'!B91 = \"\",'Match Score Sheet'!C91 = \"fh-e\")","v":false},"",null,{"$f":"AND('Match Score Sheet'!B91 = \"\",'Match Score Sheet'!C91 = \"sh-e\")","v":false},"",null,null,{"$f":"AND('Match Score Sheet'!B91 = \"a\",'Match Score Sheet'!C91 = \"t\")","v":false},{"$f":"AND('Match Score Sheet'!B91 = \"a\",'Match Score Sheet'!C91 = \"pt\")","v":false},{"$f":"AND('Match Score Sheet'!B91 = \"a\",'Match Score Sheet'!C91 = \"c\")","v":false},{"$f":"AND('Match Score Sheet'!B91 = \"a\",'Match Score Sheet'!C91 = \"p\")","v":false},{"$f":"AND('Match Score Sheet'!B91 = \"a\",'Match Score Sheet'!C91 = \"dg\")","v":false},0,0,0,0,0,0,0,null,{"$f":"AND('Match Score Sheet'!B91 = \"\",'Match Score Sheet'!C91 = \"fh-e\")","v":false},"",{"$f":"AND('Match Score Sheet'!B91 = \"\",'Match Score Sheet'!C91 = \"sh-e\")","v":false},""]
[null,{"$f":"AND('Match Score Sheet'!B92 = \"h\",'Match Score Sheet'!C92 = \"t\")","v":false},{"$f":"AND('Match Score Sheet'!B92 = \"h\",'Match Score Sheet'!C92 = \"pt\")","v":false},{"$f":"AND('Match Score Sheet'!B92 = \"h\",'Match Score Sheet'!C92 = \"c\")","v":false},{"$f":"AND('Match Score Sheet'!B92 = \"h\",'Match Score Sheet'!C92 = \"p\")","v":false},{"$f":"AND('Match Score Sheet'!B92 = \"h\",'Match Score Sheet'!C92 = \"dg\")","v":false},0,0,0,0,0,0,0,null,null,null,{"$f":"AND('Match Score Sheet'!B92 = \"\",'Match Score Sheet'!C92 = \"fh-e\")","v":false},"",null,{"$f":"AND('Match Score Sheet'!B92 = \"\",'Match Score Sheet'!C92 = \"sh-e\")","v":false},"",null,null,{"$f":"AND('Match Score Sheet'!B92 = \"a\",'Match Score Sheet'!C92 = \"t\")","v":false},{"$f":"AND('Match Score Sheet'!B92 = \"a\",'Match Score Sheet'!C92 = \"pt\")","v":false},{"$f":"AND('Match Score Sheet'!B92 = \"a\",'Match Score Sheet'!C92 = \"c\")","v":false},{"$f":"AND('Match Score Sheet'!B92 = \"a\",'Match Score Sheet'!C92 = \"p\")","v":false},{"$f":"AND('Match Score Sheet'!B92 = \"a\",'Match Score Sheet'!C92 = \"dg\")","v":false},0,0,0,0,0,0,0,null,{"$f":"AND('Match Score Sheet'!B92 = \"\",'Match Score Sheet'!C92 = \"fh-e\")","v":false},"",{"$f":"AND('Match Score Sheet'!B92 = \"\",'Match Score Sheet'!C92 = \"sh-e\")","v":false},""]
[null,{"$f":"AND('Match Score Sheet'!B93 = \"h\",'Match Score Sheet'!C93 = \"t\")","v":false},{"$f":"AND('Match Score Sheet'!B93 = \"h\",'Match Score Sheet'!C93 = \"pt\")","v":false},{"$f":"AND('Match Score Sheet'!B93 = \"h\",'Match Score Sheet'!C93 = \"c\")","v":false},{"$f":"AND('Match Score Sheet'!B93 = \"h\",'Match Score Sheet'!C93 = \"p\")","v":false},{"$f":"AND('Match Score Sheet'!B93 = \"h\",'Match Score Sheet'!C93 = \"dg\")","v":false},0,0,0,0,0,0,0,null,null,null,{"$f":"AND('Match Score Sheet'!B93 = \"\",'Match Score Sheet'!C93 = \"fh-e\")","v":false},"",null,{"$f":"AND('Match Score Sheet'!B93 = \"\",'Match Score Sheet'!C93 = \"sh-e\")","v":false},"",null,null,{"$f":"AND('Match Score Sheet'!B93 = \"a\",'Match Score Sheet'!C93 = \"t\")","v":false},{"$f":"AND('Match Score Sheet'!B93 = \"a\",'Match Score Sheet'!C93 = \"pt\")","v":false},{"$f":"AND('Match Score Sheet'!B93 = \"a\",'Match Score Sheet'!C93 = \"c\")","v":false},{"$f":"AND('Match Score Sheet'!B93 = \"a\",'Match Score Sheet'!C93 = \"p\")","v":false},{"$f":"AND('Match Score Sheet'!B93 = \"a\",'Match Score Sheet'!C93 = \"dg\")","v":false},0,0,0,0,0,0,0,null,{"$f":"AND('Match Score Sheet'!B93 = \"\",'Match Score Sheet'!C93 = \"fh-e\")","v":false},"",{"$f":"AND('Match Score Sheet'!B93 = \"\",'Match Score Sheet'!C93 = \"sh-e\")","v":false},""]
[null,{"$f":"AND('Match Score Sheet'!B94 = \"h\",'Match Score Sheet'!C94 = \"t\")","v":false},{"$f":"AND('Match Score Sheet'!B94 = \"h\",'Match Score Sheet'!C94 = \"pt\")","v":false},{"$f":"AND('Match Score Sheet'!B94 = \"h\",'Match Score Sheet'!C94 = \"c\")","v":false},{"$f":"AND('Match Score Sheet'!B94 = \"h\",'Match Score Sheet'!C94 = \"p\")","v":false},{"$f":"AND('Match Score Sheet'!B94 = \"h\",'Match Score Sheet'!C94 = \"dg\")","v":false},0,0,0,0,0,0,0,null,null,null,{"$f":"AND('Match Score Sheet'!B94 = \"\",'Match Score Sheet'!C94 = \"fh-e\")","v":false},"",null,{"$f":"AND('Match Score Sheet'!B94 = \"\",'Match Score Sheet'!C94 = \"sh-e\")","v":false},"",null,null,{"$f":"AND('Match Score Sheet'!B94 = \"a\",'Match Score Sheet'!C94 = \"t\")","v":false},{"$f":"AND('Match Score Sheet'!B94 = \"a\",'Match Score Sheet'!C94 = \"pt\")","v":false},{"$f":"AND('Match Score Sheet'!B94 = \"a\",'Match Score Sheet'!C94 = \"c\")","v":false},{"$f":"AND('Match Score Sheet'!B94 = \"a\",'Match Score Sheet'!C94 = \"p\")","v":false},{"$f":"AND('Match Score Sheet'!B94 = \"a\",'Match Score Sheet'!C94 = \"dg\")","v":false},0,0,0,0,0,0,0,null,{"$f":"AND('Match Score Sheet'!B94 = \"\",'Match Score Sheet'!C94 = \"fh-e\")","v":false},"",{"$f":"AND('Match Score Sheet'!B94 = \"\",'Match Score Sheet'!C94 = \"sh-e\")","v":false},""]
[null,{"$f":"AND('Match Score Sheet'!B95 = \"h\",'Match Score Sheet'!C95 = \"t\")","v":false},{"$f":"AND('Match Score Sheet'!B95 = \"h\",'Match Score Sheet'!C95 = \"pt\")","v":false},{"$f":"AND('Match Score Sheet'!B95 = \"h\",'Match Score Sheet'!C95 = \"c\")","v":false},{"$f":"AND('Match Score Sheet'!B95 = \"h\",'Match Score Sheet'!C95 = \"p\")","v":false},{"$f":"AND('Match Score Sheet'!B95 = \"h\",'Match Score Sheet'!C95 = \"dg\")","v":false},0,0,0,0,0,0,0,null,null,null,{"$f":"AND('Match Score Sheet'!B95 = \"\",'Match Score Sheet'!C95 = \"fh-e\")","v":false},"",null,{"$f":"AND('Match Score Sheet'!B95 = \"\",'Match Score Sheet'!C95 = \"sh-e\")","v":false},"",null,null,{"$f":"AND('Match Score Sheet'!B95 = \"a\",'Match Score Sheet'!C95 = \"t\")","v":false},{"$f":"AND('Match Score Sheet'!B95 = \"a\",'Match Score Sheet'!C95 = \"pt\")","v":false},{"$f":"AND('Match Score Sheet'!B95 = \"a\",'Match Score Sheet'!C95 = \"c\")","v":false},{"$f":"AND('Match Score Sheet'!B95 = \"a\",'Match Score Sheet'!C95 = \"p\")","v":false},{"$f":"AND('Match Score Sheet'!B95 = \"a\",'Match Score Sheet'!C95 = \"dg\")","v":false},0,0,0,0,0,0,0,null,{"$f":"AND('Match Score Sheet'!B95 = \"\",'Match Score Sheet'!C95 = \"fh-e\")","v":false},"",{"$f":"AND('Match Score Sheet'!B95 = \"\",'Match Score Sheet'!C95 = \"sh-e\")","v":false},""]
[null,{"$f":"AND('Match Score Sheet'!B96 = \"h\",'Match Score Sheet'!C96 = \"t\")","v":false},{"$f":"AND('Match Score Sheet'!B96 = \"h\",'Match Score Sheet'!C96 = \"pt\")","v":false},{"$f":"AND('Match Score Sheet'!B96 = \"h\",'Match Score Sheet'!C96 = \"c\")","v":false},{"$f":"AND('Match Score Sheet'!B96 = \"h\",'Match Score Sheet'!C96 = \"p\")","v":false},{"$f":"AND('Match Score Sheet'!B96 = \"h\",'Match Score Sheet'!C96 = \"dg\")","v":false},0,0,0,0,0,0,0,null,null,null,{"$f":"AND('Match Score Sheet'!B96 = \"\",'Match Score Sheet'!C96 = \"fh-e\")","v":false},"",null,{"$f":"AND('Match Score Sheet'!B96 = \"\",'Match Score Sheet'!C96 = \"sh-e\")","v":false},"",null,null,{"$f":"AND('Match Score Sheet'!B96 = \"a\",'Match Score Sheet'!C96 = \"t\")","v":false},{"$f":"AND('Match Score Sheet'!B96 = \"a\",'Match Score Sheet'!C96 = \"pt\")","v":false},{"$f":"AND('Match Score Sheet'!B96 = \"a\",'Match Score Sheet'!C96 = \"c\")","v":false},{"$f":"AND('Match Score Sheet'!B96 = \"a\",'Match Score Sheet'!C96 = \"p\")","v":false},{"$f":"AND('Match Score Sheet'!B96 = \"a\",'Match Score Sheet'!C96 = \"dg\")","v":false},0,0,0,0,0,0,0,null,{"$f":"AND('Match Score Sheet'!B96 = \"\",'Match Score Sheet'!C96 = \"fh-e\")","v":false},"",{"$f":"AND('Match Score Sheet'!B96 = \"\",'Match Score Sheet'!C96 = \"sh-e\")","v":false},""]
[null,{"$f":"AND('Match Score Sheet'!B97 = \"h\",'Match Score Sheet'!C97 = \"t\")","v":false},{"$f":"AND('Match Score Sheet'!B97 = \"h\",'Match Score Sheet'!C97 = \"pt\")","v":false},{"$f":"AND('Match Score Sheet'!B97 = \"h\",'Match Score Sheet'!C97 = \"c\")","v":false},{"$f":"AND('Match Score Sheet'!B97 = \"h\",'Match Score Sheet'!C97 = \"p\")","v":false},{"$f":"AND('Match Score Sheet'!B97 = \"h\",'Match Score Sheet'!C97 = \"dg\")","v":false},0,0,0,0,0,0,0,null,null,null,{"$f":"AND('Match Score Sheet'!B97 = \"\",'Match Score Sheet'!C97 = \"fh-e\")","v":false},"",null,{"$f":"AND('Match Score Sheet'!B97 = \"\",'Match Score Sheet'!C97 = \"sh-e\")","v":false},"",null,null,{"$f":"AND('Match Score Sheet'!B97 = \"a\",'Match Score Sheet'!C97 = \"t\")","v":false},{"$f":"AND('Match Score Sheet'!B97 = \"a\",'Match Score Sheet'!C97 = \"pt\")","v":false},{"$f":"AND('Match Score Sheet'!B97 = \"a\",'Match Score Sheet'!C97 = \"c\")","v":false},{"$f":"AND('Match Score Sheet'!B97 = \"a\",'Match Score Sheet'!C97 = \"p\")","v":false},{"$f":"AND('Match Score Sheet'!B97 = \"a\",'Match Score Sheet'!C97 = \"dg\")","v":false},0,0,0,0,0,0,0,null,{"$f":"AND('Match Score Sheet'!B97 = \"\",'Match Score Sheet'!C97 = \"fh-e\")","v":false},"",{"$f":"AND('Match Score Sheet'!B97 = \"\",'Match Score Sheet'!C97 = \"sh-e\")","v":false},""]
[null,{"$f":"AND('Match Score Sheet'!B98 = \"h\",'Match Score Sheet'!C98 = \"t\")","v":false},{"$f":"AND('Match Score Sheet'!B98 = \"h\",'Match Score Sheet'!C98 = \"pt\")","v":false},{"$f":"AND('Match Score Sheet'!B98 = \"h\",'Match Score Sheet'!C98 = \"c\")","v":false},{"$f":"AND('Match Score Sheet'!B98 = \"h\",'Match Score Sheet'!C98 = \"p\")","v":false},{"$f":"AND('Match Score Sheet'!B98 = \"h\",'Match Score Sheet'!C98 = \"dg\")","v":false},0,0,0,0,0,0,0,null,null,null,{"$f":"AND('Match Score Sheet'!B98 = \"\",'Match Score Sheet'!C98 = \"fh-e\")","v":false},"",null,{"$f":"AND('Match Score Sheet'!B98 = \"\",'Match Score Sheet'!C98 = \"sh-e\")","v":false},"",null,null,{"$f":"AND('Match Score Sheet'!B98 = \"a\",'Match Score Sheet'!C98 = \"t\")","v":false},{"$f":"AND('Match Score Sheet'!B98 = \"a\",'Match Score Sheet'!C98 = \"pt\")","v":false},{"$f":"AND('Match Score Sheet'!B98 = \"a\",'Match Score Sheet'!C98 = \"c\")","v":false},{"$f":"AND('Match Score Sheet'!B98 = \"a\",'Match Score Sheet'!C98 = \"p\")","v":false},{"$f":"AND('Match Score Sheet'!B98 = \"a\",'Match Score Sheet'!C98 = \"dg\")","v":false},0,0,0,0,0,0,0,null,{"$f":"AND('Match Score Sheet'!B98 = \"\",'Match Score Sheet'!C98 = \"fh-e\")","v":false},"",{"$f":"AND('Match Score Sheet'!B98 = \"\",'Match Score Sheet'!C98 = \"sh-e\")","v":false},""]
[null,{"$f":"AND('Match Score Sheet'!B99 = \"h\",'Match Score Sheet'!C99 = \"t\")","v":false},{"$f":"AND('Match Score Sheet'!B99 = \"h\",'Match Score Sheet'!C99 = \"pt\")","v":false},{"$f":"AND('Match Score Sheet'!B99 = \"h\",'Match Score Sheet'!C99 = \"c\")","v":false},{"$f":"AND('Match Score Sheet'!B99 = \"h\",'Match Score Sheet'!C99 = \"p\")","v":false},{"$f":"AND('Match Score Sheet'!B99 = \"h\",'Match Score Sheet'!C99 = \"dg\")","v":false},0,0,0,0,0,0,0,null,null,null,{"$f":"AND('Match Score Sheet'!B99 = \"\",'Match Score Sheet'!C99 = \"fh-e\")","v":false},"",null,{"$f":"AND('Match Score Sheet'!B99 = \"\",'Match Score Sheet'!C99 = \"sh-e\")","v":false},"",null,null,{"$f":"AND('Match Score Sheet'!B99 = \"a\",'Match Score Sheet'!C99 = \"t\")","v":false},{"$f":"AND('Match Score Sheet'!B99 = \"a\",'Match Score Sheet'!C99 = \"pt\")","v":false},{"$f":"AND('Match Score Sheet'!B99 = \"a\",'Match Score Sheet'!C99 = \"c\")","v":false},{"$f":"AND('Match Score Sheet'!B99 = \"a\",'Match Score Sheet'!C99 = \"p\")","v":false},{"$f":"AND('Match Score Sheet'!B99 = \"a\",'Match Score Sheet'!C99 = \"dg\")","v":false},0,0,0,0,0,0,0,null,{"$f":"AND('Match Score Sheet'!B99 = \"\",'Match Score Sheet'!C99 = \"fh-e\")","v":false},"",{"$f":"AND('Match Score Sheet'!B99 = \"\",'Match Score Sheet'!C99 = \"sh-e\")","v":false},""]
[null,{"$f":"AND('Match Score Sheet'!B100 = \"h\",'Match Score Sheet'!C100 = \"t\")","v":false},{"$f":"AND('Match Score Sheet'!B100 = \"h\",'Match Score Sheet'!C100 = \"pt\")","v":false},{"$f":"AND('Match Score Sheet'!B100 = \"h\",'Match Score Sheet'!C100 = \"c\")","v":false},{"$f":"AND('Match Score Sheet'!B100 = \"h\",'Match Score Sheet'!C100 = \"p\")","v":false},{"$f":"AND('Match Score Sheet'!B100 = \"h\",'Match Score Sheet'!C100 = \"dg\")","v":false},0,0,0,0,0,0,0,null,null,null,{"$f":"AND('Match Score Sheet'!B100 = \"\",'Match Score Sheet'!C100 = \"fh-e\")","v":false},"",null,{"$f":"AND('Match Score Sheet'!B100 = \"\",'Match Score Sheet'!C100 = \"sh-e\")","v":false},"",null,null,{"$f":"AND('Match Score Sheet'!B100 = \"a\",'Match Score Sheet'!C100 = \"t\")","v":false},{"$f":"AND('Match Score Sheet'!B100 = \"a\",'Match Score Sheet'!C100 = \"pt\")","v":false},{"$f":"AND('Match Score Sheet'!B100 = \"a\",'Match Score Sheet'!C100 = \"c\")","v":false},{"$f":"AND('Match Score Sheet'!B100 = \"a\",'Match Score Sheet'!C100 = \"p\")","v":false},{"$f":"AND('Match Score Sheet'!B100 = \"a\",'Match Score Sheet'!C100 = \"dg\")","v":false},0,0,0,0,0,0,0,null,{"$f":"AND('Match Score Sheet'!B100 = \"\",'Match Score Sheet'!C100 = \"fh-e\")","v":false},"",{"$f":"AND('Match Score Sheet'!B100 = \"\",'Match Score Sheet'!C100 = \"sh-e\")","v":false},""]
[]
[null,{"$f":"COUNTIF(B4:B84,TRUE)","v":0},{"$f":"COUNTIF(C4:C84,TRUE)","v":0},{"$f":"COUNTIF(D4:D84,TRUE)","v":0},{"$f":"COUNTIF(E4:E84,TRUE)","v":0},{"$f":"COUNTIF(F4:F84,TRUE)","v":0},null,null,null,null,null,"Final Score",{"$f":"M84","v":0},null,null,"Halftime Score",null,{"$f":"MAX(R4:R84)","v":0},null,null,null,null,null,{"$f":"COUNTIF(X4:X84,TRUE)","v":0},{"$f":"COUNTIF(Y4:Y84,TRUE)","v":0},{"$f":"COUNTIF(Z4:Z84,TRUE)","v":0},{"$f":"COUNTIF(AA4:AA84,TRUE)","v":0},{"$f":"COUNTIF(AB4:AB84,TRUE)","v":0},null,null,null,null,null,"Final Score",{"$f":"AI84","v":0},"Halftime Score",null,{"$f":"MAX(AL4:AL84)","v":0}]

{"sheet":"Player Scoring Sheet","index":3,"n_rows":31,"n_cols":16,"rows_kept":31,"cut":false,"hidden":false,"merged":[[0,3,0,7],[0,11,0,15]]}
[null,null,"Home Team Final Score",{"$f":"(D31*5)+(E31*2)+(F31*3)+(G31*3)+(H31*7)","v":0},null,null,null,null,null,null,"Away Team Final Score",{"$f":"(L31*5)+(M31*2)+(N31*3)+(O31*3)+(P31*7)","v":0}]
[null,null,{"$f":"'Team Sheets'!C2","v":0},"T","C","P","DG","PT",null,null,{"$f":"'Team Sheets'!F2","v":0},"T","C","P","DG","PT"]
[null,{"$f":"'Team Sheets'!B3","v":1},{"$f":"IF('Team Sheets'!C3=\"\",\"\",'Team Sheets'!C3)","v":""},{"$f":"COUNTIFS('Match Score Sheet'!$B$20:$B$100,\"H\",'Match Score Sheet'!$C$20:$C$100,$D$2,'Match Score Sheet'!$D$20:$D$100,B3)","v":0},{"$f":"COUNTIFS('Match Score Sheet'!$B$20:$B$100,\"H\",'Match Score Sheet'!$C$20:$C$100,$E$2,'Match Score Sheet'!$D$20:$D$100,B3)","v":0},{"$f":"COUNTIFS('Match Score Sheet'!$B$20:$B$100,\"H\",'Match Score Sheet'!$C$20:$C$100,$F$2,'Match Score Sheet'!$D$20:$D$100,B3)","v":0},{"$f":"COUNTIFS('Match Score Sheet'!$B$20:$B$100,\"H\",'Match Score Sheet'!$C$20:$C$100,$G$2,'Match Score Sheet'!$D$20:$D$100,B3)","v":0},{"$f":"COUNTIFS('Match Score Sheet'!$B$20:$B$100,\"H\",'Match Score Sheet'!$C$20:$C$100,$H$2)","v":0},null,{"$f":"'Team Sheets'!E3","v":1},{"$f":"IF('Team Sheets'!F3=\"\",\"\",'Team Sheets'!F3)","v":""},{"$f":"COUNTIFS('Match Score Sheet'!$B$20:$B$100,\"A\",'Match Score Sheet'!$C$20:$C$100,$L$2,'Match Score Sheet'!$D$20:$D$100,J3)","v":0},{"$f":"COUNTIFS('Match Score Sheet'!$B$20:$B$100,\"a\",'Match Score Sheet'!$C$20:$C$100,$M$2,'Match Score Sheet'!$D$20:$D$100,J3)","v":0},{"$f":"COUNTIFS('Match Score Sheet'!$B$20:$B$100,\"a\",'Match Score Sheet'!$C$20:$C$100,$N$2,'Match Score Sheet'!$D$20:$D$100,J3)","v":0},{"$f":"COUNTIFS('Match Score Sheet'!$B$20:$B$100,\"a\",'Match Score Sheet'!$C$20:$C$100,$O$2,'Match Score Sheet'!$D$20:$D$100,J3)","v":0},{"$f":"COUNTIFS('Match Score Sheet'!$B$20:$B$100,\"a\",'Match Score Sheet'!$C$20:$C$100,$P$2)","v":0}]
[null,{"$f":"'Team Sheets'!B4","v":2},{"$f":"IF('Team Sheets'!C4=\"\",\"\",'Team Sheets'!C4)","v":""},{"$f":"COUNTIFS('Match Score Sheet'!$B$20:$B$100,\"H\",'Match Score Sheet'!$C$20:$C$100,$D$2,'Match Score Sheet'!$D$20:$D$100,B4)","v":0},{"$f":"COUNTIFS('Match Score Sheet'!$B$20:$B$100,\"H\",'Match Score Sheet'!$C$20:$C$100,$E$2,'Match Score Sheet'!$D$20:$D$100,B4)","v":0},{"$f":"COUNTIFS('Match Score Sheet'!$B$20:$B$100,\"H\",'Match Score Sheet'!$C$20:$C$100,$F$2,'Match Score Sheet'!$D$20:$D$100,B4)","v":0},{"$f":"COUNTIFS('Match Score Sheet'!$B$20:$B$100,\"H\",'Match Score Sheet'!$C$20:$C$100,$G$2,'Match Score Sheet'!$D$20:$D$100,B4)","v":0},null,null,{"$f":"'Team Sheets'!E4","v":2},{"$f":"IF('Team Sheets'!F4=\"\",\"\",'Team Sheets'!F4)","v":""},{"$f":"COUNTIFS('Match Score Sheet'!$B$20:$B$100,\"A\",'Match Score Sheet'!$C$20:$C$100,$L$2,'Match Score Sheet'!$D$20:$D$100,J4)","v":0},{"$f":"COUNTIFS('Match Score Sheet'!$B$20:$B$100,\"a\",'Match Score Sheet'!$C$20:$C$100,$M$2,'Match Score Sheet'!$D$20:$D$100,J4)","v":0},{"$f":"COUNTIFS('Match Score Sheet'!$B$20:$B$100,\"a\",'Match Score Sheet'!$C$20:$C$100,$N$2,'Match Score Sheet'!$D$20:$D$100,J4)","v":0},{"$f":"COUNTIFS('Match Score Sheet'!$B$20:$B$100,\"a\",'Match Score Sheet'!$C$20:$C$100,$O$2,'Match Score Sheet'!$D$20:$D$100,J4)","v":0}]
[null,{"$f":"'Team Sheets'!B5","v":3},{"$f":"IF('Team Sheets'!C5=\"\",\"\",'Team Sheets'!C5)","v":""},{"$f":"COUNTIFS('Match Score Sheet'!$B$20:$B$100,\"H\",'Match Score Sheet'!$C$20:$C$100,$D$2,'Match Score Sheet'!$D$20:$D$100,B5)","v":0},{"$f":"COUNTIFS('Match Score Sheet'!$B$20:$B$100,\"H\",'Match Score Sheet'!$C$20:$C$100,$E$2,'Match Score Sheet'!$D$20:$D$100,B5)","v":0},{"$f":"COUNTIFS('Match Score Sheet'!$B$20:$B$100,\"H\",'Match Score Sheet'!$C$20:$C$100,$F$2,'Match Score Sheet'!$D$20:$D$100,B5)","v":0},{"$f":"COUNTIFS('Match Score Sheet'!$B$20:$B$100,\"H\",'Match Score Sheet'!$C$20:$C$100,$G$2,'Match Score Sheet'!$D$20:$D$100,B5)","v":0},null,null,{"$f":"'Team Sheets'!E5","v":3},{"$f":"IF('Team Sheets'!F5=\"\",\"\",'Team Sheets'!F5)","v":""},{"$f":"COUNTIFS('Match Score Sheet'!$B$20:$B$100,\"A\",'Match Score Sheet'!$C$20:$C$100,$L$2,'Match Score Sheet'!$D$20:$D$100,J5)","v":0},{"$f":"COUNTIFS('Match Score Sheet'!$B$20:$B$100,\"a\",'Match Score Sheet'!$C$20:$C$100,$M$2,'Match Score Sheet'!$D$20:$D$100,J5)","v":0},{"$f":"COUNTIFS('Match Score Sheet'!$B$20:$B$100,\"a\",'Match Score Sheet'!$C$20:$C$100,$N$2,'Match Score Sheet'!$D$20:$D$100,J5)","v":0},{"$f":"COUNTIFS('Match Score Sheet'!$B$20:$B$100,\"a\",'Match Score Sheet'!$C$20:$C$100,$O$2,'Match Score Sheet'!$D$20:$D$100,J5)","v":0}]
[null,{"$f":"'Team Sheets'!B6","v":4},{"$f":"IF('Team Sheets'!C6=\"\",\"\",'Team Sheets'!C6)","v":""},{"$f":"COUNTIFS('Match Score Sheet'!$B$20:$B$100,\"H\",'Match Score Sheet'!$C$20:$C$100,$D$2,'Match Score Sheet'!$D$20:$D$100,B6)","v":0},{"$f":"COUNTIFS('Match Score Sheet'!$B$20:$B$100,\"H\",'Match Score Sheet'!$C$20:$C$100,$E$2,'Match Score Sheet'!$D$20:$D$100,B6)","v":0},{"$f":"COUNTIFS('Match Score Sheet'!$B$20:$B$100,\"H\",'Match Score Sheet'!$C$20:$C$100,$F$2,'Match Score Sheet'!$D$20:$D$100,B6)","v":0},{"$f":"COUNTIFS('Match Score Sheet'!$B$20:$B$100,\"H\",'Match Score Sheet'!$C$20:$C$100,$G$2,'Match Score Sheet'!$D$20:$D$100,B6)","v":0},null,null,{"$f":"'Team Sheets'!E6","v":4},{"$f":"IF('Team Sheets'!F6=\"\",\"\",'Team Sheets'!F6)","v":""},{"$f":"COUNTIFS('Match Score Sheet'!$B$20:$B$100,\"A\",'Match Score Sheet'!$C$20:$C$100,$L$2,'Match Score Sheet'!$D$20:$D$100,J6)","v":0},{"$f":"COUNTIFS('Match Score Sheet'!$B$20:$B$100,\"a\",'Match Score Sheet'!$C$20:$C$100,$M$2,'Match Score Sheet'!$D$20:$D$100,J6)","v":0},{"$f":"COUNTIFS('Match Score Sheet'!$B$20:$B$100,\"a\",'Match Score Sheet'!$C$20:$C$100,$N$2,'Match Score Sheet'!$D$20:$D$100,J6)","v":0},{"$f":"COUNTIFS('Match Score Sheet'!$B$20:$B$100,\"a\",'Match Score Sheet'!$C$20:$C$100,$O$2,'Match Score Sheet'!$D$20:$D$100,J6)","v":0}]
[null,{"$f":"'Team Sheets'!B7","v":5},{"$f":"IF('Team Sheets'!C7=\"\",\"\",'Team Sheets'!C7)","v":""},{"$f":"COUNTIFS('Match Score Sheet'!$B$20:$B$100,\"H\",'Match Score Sheet'!$C$20:$C$100,$D$2,'Match Score Sheet'!$D$20:$D$100,B7)","v":0},{"$f":"COUNTIFS('Match Score Sheet'!$B$20:$B$100,\"H\",'Match Score Sheet'!$C$20:$C$100,$E$2,'Match Score Sheet'!$D$20:$D$100,B7)","v":0},{"$f":"COUNTIFS('Match Score Sheet'!$B$20:$B$100,\"H\",'Match Score Sheet'!$C$20:$C$100,$F$2,'Match Score Sheet'!$D$20:$D$100,B7)","v":0},{"$f":"COUNTIFS('Match Score Sheet'!$B$20:$B$100,\"H\",'Match Score Sheet'!$C$20:$C$100,$G$2,'Match Score Sheet'!$D$20:$D$100,B7)","v":0},null,null,{"$f":"'Team Sheets'!E7","v":5},{"$f":"IF('Team Sheets'!F7=\"\",\"\",'Team Sheets'!F7)","v":""},{"$f":"COUNTIFS('Match Score Sheet'!$B$20:$B$100,\"A\",'Match Score Sheet'!$C$20:$C$100,$L$2,'Match Score Sheet'!$D$20:$D$100,J7)","v":0},{"$f":"COUNTIFS('Match Score Sheet'!$B$20:$B$100,\"a\",'Match Score Sheet'!$C$20:$C$100,$M$2,'Match Score Sheet'!$D$20:$D$100,J7)","v":0},{"$f":"COUNTIFS('Match Score Sheet'!$B$20:$B$100,\"a\",'Match Score Sheet'!$C$20:$C$100,$N$2,'Match Score Sheet'!$D$20:$D$100,J7)","v":0},{"$f":"COUNTIFS('Match Score Sheet'!$B$20:$B$100,\"a\",'Match Score Sheet'!$C$20:$C$100,$O$2,'Match Score Sheet'!$D$20:$D$100,J7)","v":0}]
[null,{"$f":"'Team Sheets'!B8","v":6},{"$f":"IF('Team Sheets'!C8=\"\",\"\",'Team Sheets'!C8)","v":""},{"$f":"COUNTIFS('Match Score Sheet'!$B$20:$B$100,\"H\",'Match Score Sheet'!$C$20:$C$100,$D$2,'Match Score Sheet'!$D$20:$D$100,B8)","v":0},{"$f":"COUNTIFS('Match Score Sheet'!$B$20:$B$100,\"H\",'Match Score Sheet'!$C$20:$C$100,$E$2,'Match Score Sheet'!$D$20:$D$100,B8)","v":0},{"$f":"COUNTIFS('Match Score Sheet'!$B$20:$B$100,\"H\",'Match Score Sheet'!$C$20:$C$100,$F$2,'Match Score Sheet'!$D$20:$D$100,B8)","v":0},{"$f":"COUNTIFS('Match Score Sheet'!$B$20:$B$100,\"H\",'Match Score Sheet'!$C$20:$C$100,$G$2,'Match Score Sheet'!$D$20:$D$100,B8)","v":0},null,null,{"$f":"'Team Sheets'!E8","v":6},{"$f":"IF('Team Sheets'!F8=\"\",\"\",'Team Sheets'!F8)","v":""},{"$f":"COUNTIFS('Match Score Sheet'!$B$20:$B$100,\"A\",'Match Score Sheet'!$C$20:$C$100,$L$2,'Match Score Sheet'!$D$20:$D$100,J8)","v":0},{"$f":"COUNTIFS('Match Score Sheet'!$B$20:$B$100,\"a\",'Match Score Sheet'!$C$20:$C$100,$M$2,'Match Score Sheet'!$D$20:$D$100,J8)","v":0},{"$f":"COUNTIFS('Match Score Sheet'!$B$20:$B$100,\"a\",'Match Score Sheet'!$C$20:$C$100,$N$2,'Match Score Sheet'!$D$20:$D$100,J8)","v":0},{"$f":"COUNTIFS('Match Score Sheet'!$B$20:$B$100,\"a\",'Match Score Sheet'!$C$20:$C$100,$O$2,'Match Score Sheet'!$D$20:$D$100,J8)","v":0}]
[null,{"$f":"'Team Sheets'!B9","v":7},{"$f":"IF('Team Sheets'!C9=\"\",\"\",'Team Sheets'!C9)","v":""},{"$f":"COUNTIFS('Match Score Sheet'!$B$20:$B$100,\"H\",'Match Score Sheet'!$C$20:$C$100,$D$2,'Match Score Sheet'!$D$20:$D$100,B9)","v":0},{"$f":"COUNTIFS('Match Score Sheet'!$B$20:$B$100,\"H\",'Match Score Sheet'!$C$20:$C$100,$E$2,'Match Score Sheet'!$D$20:$D$100,B9)","v":0},{"$f":"COUNTIFS('Match Score Sheet'!$B$20:$B$100,\"H\",'Match Score Sheet'!$C$20:$C$100,$F$2,'Match Score Sheet'!$D$20:$D$100,B9)","v":0},{"$f":"COUNTIFS('Match Score Sheet'!$B$20:$B$100,\"H\",'Match Score Sheet'!$C$20:$C$100,$G$2,'Match Score Sheet'!$D$20:$D$100,B9)","v":0},null,null,{"$f":"'Team Sheets'!E9","v":7},{"$f":"IF('Team Sheets'!F9=\"\",\"\",'Team Sheets'!F9)","v":""},{"$f":"COUNTIFS('Match Score Sheet'!$B$20:$B$100,\"A\",'Match Score Sheet'!$C$20:$C$100,$L$2,'Match Score Sheet'!$D$20:$D$100,J9)","v":0},{"$f":"COUNTIFS('Match Score Sheet'!$B$20:$B$100,\"a\",'Match Score Sheet'!$C$20:$C$100,$M$2,'Match Score Sheet'!$D$20:$D$100,J9)","v":0},{"$f":"COUNTIFS('Match Score Sheet'!$B$20:$B$100,\"a\",'Match Score Sheet'!$C$20:$C$100,$N$2,'Match Score Sheet'!$D$20:$D$100,J9)","v":0},{"$f":"COUNTIFS('Match Score Sheet'!$B$20:$B$100,\"a\",'Match Score Sheet'!$C$20:$C$100,$O$2,'Match Score Sheet'!$D$20:$D$100,J9)","v":0}]
[null,{"$f":"'Team Sheets'!B10","v":8},{"$f":"IF('Team Sheets'!C10=\"\",\"\",'Team Sheets'!C10)","v":""},{"$f":"COUNTIFS('Match Score Sheet'!$B$20:$B$100,\"H\",'Match Score Sheet'!$C$20:$C$100,$D$2,'Match Score Sheet'!$D$20:$D$100,B10)","v":0},{"$f":"COUNTIFS('Match Score Sheet'!$B$20:$B$100,\"H\",'Match Score Sheet'!$C$20:$C$100,$E$2,'Match Score Sheet'!$D$20:$D$100,B10)","v":0},{"$f":"COUNTIFS('Match Score Sheet'!$B$20:$B$100,\"H\",'Match Score Sheet'!$C$20:$C$100,$F$2,'Match Score Sheet'!$D$20:$D$100,B10)","v":0},{"$f":"COUNTIFS('Match Score Sheet'!$B$20:$B$100,\"H\",'Match Score Sheet'!$C$20:$C$100,$G$2,'Match Score Sheet'!$D$20:$D$100,B10)","v":0},null,null,{"$f":"'Team Sheets'!E10","v":8},{"$f":"IF('Team Sheets'!F10=\"\",\"\",'Team Sheets'!F10)","v":""},{"$f":"COUNTIFS('Match Score Sheet'!$B$20:$B$100,\"A\",'Match Score Sheet'!$C$20:$C$100,$L$2,'Match Score Sheet'!$D$20:$D$100,J10)","v":0},{"$f":"COUNTIFS('Match Score Sheet'!$B$20:$B$100,\"a\",'Match Score Sheet'!$C$20:$C$100,$M$2,'Match Score Sheet'!$D$20:$D$100,J10)","v":0},{"$f":"COUNTIFS('Match Score Sheet'!$B$20:$B$100,\"a\",'Match Score Sheet'!$C$20:$C$100,$N$2,'Match Score Sheet'!$D$20:$D$100,J10)","v":0},{"$f":"COUNTIFS('Match Score Sheet'!$B$20:$B$100,\"a\",'Match Score Sheet'!$C$20:$C$100,$O$2,'Match Score Sheet'!$D$20:$D$100,J10)","v":0}]
[null,{"$f":"'Team Sheets'!B11","v":9},{"$f":"IF('Team Sheets'!C11=\"\",\"\",'Team Sheets'!C11)","v":""},{"$f":"COUNTIFS('Match Score Sheet'!$B$20:$B$100,\"H\",'Match Score Sheet'!$C$20:$C$100,$D$2,'Match Score Sheet'!$D$20:$D$100,B11)","v":0},{"$f":"COUNTIFS('Match Score Sheet'!$B$20:$B$100,\"H\",'Match Score Sheet'!$C$20:$C$100,$E$2,'Match Score Sheet'!$D$20:$D$100,B11)","v":0},{"$f":"COUNTIFS('Match Score Sheet'!$B$20:$B$100,\"H\",'Match Score Sheet'!$C$20:$C$100,$F$2,'Match Score Sheet'!$D$20:$D$100,B11)","v":0},{"$f":"COUNTIFS('Match Score Sheet'!$B$20:$B$100,\"H\",'Match Score Sheet'!$C$20:$C$100,$G$2,'Match Score Sheet'!$D$20:$D$100,B11)","v":0},null,null,{"$f":"'Team Sheets'!E11","v":9},{"$f":"IF('Team Sheets'!F11=\"\",\"\",'Team Sheets'!F11)","v":""},{"$f":"COUNTIFS('Match Score Sheet'!$B$20:$B$100,\"A\",'Match Score Sheet'!$C$20:$C$100,$L$2,'Match Score Sheet'!$D$20:$D$100,J11)","v":0},{"$f":"COUNTIFS('Match Score Sheet'!$B$20:$B$100,\"a\",'Match Score Sheet'!$C$20:$C$100,$M$2,'Match Score Sheet'!$D$20:$D$100,J11)","v":0},{"$f":"COUNTIFS('Match Score Sheet'!$B$20:$B$100,\"a\",'Match Score Sheet'!$C$20:$C$100,$N$2,'Match Score Sheet'!$D$20:$D$100,J11)","v":0},{"$f":"COUNTIFS('Match Score Sheet'!$B$20:$B$100,\"a\",'Match Score Sheet'!$C$20:$C$100,$O$2,'Match Score Sheet'!$D$20:$D$100,J11)","v":0}]
[null,{"$f":"'Team Sheets'!B12","v":10},{"$f":"IF('Team Sheets'!C12=\"\",\"\",'Team Sheets'!C12)","v":""},{"$f":"COUNTIFS('Match Score Sheet'!$B$20:$B$100,\"H\",'Match Score Sheet'!$C$20:$C$100,$D$2,'Match Score Sheet'!$D$20:$D$100,B12)","v":0},{"$f":"COUNTIFS('Match Score Sheet'!$B$20:$B$100,\"H\",'Match Score Sheet'!$C$20:$C$100,$E$2,'Match Score Sheet'!$D$20:$D$100,B12)","v":0},{"$f":"COUNTIFS('Match Score Sheet'!$B$20:$B$100,\"H\",'Match Score Sheet'!$C$20:$C$100,$F$2,'Match Score Sheet'!$D$20:$D$100,B12)","v":0},{"$f":"COUNTIFS('Match Score Sheet'!$B$20:$B$100,\"H\",'Match Score Sheet'!$C$20:$C$100,$G$2,'Match Score Sheet'!$D$20:$D$100,B12)","v":0},null,null,{"$f":"'Team Sheets'!E12","v":10},{"$f":"IF('Team Sheets'!F12=\"\",\"\",'Team Sheets'!F12)","v":""},{"$f":"COUNTIFS('Match Score Sheet'!$B$20:$B$100,\"A\",'Match Score Sheet'!$C$20:$C$100,$L$2,'Match Score Sheet'!$D$20:$D$100,J12)","v":0},{"$f":"COUNTIFS('Match Score Sheet'!$B$20:$B$100,\"a\",'Match Score Sheet'!$C$20:$C$100,$M$2,'Match Score Sheet'!$D$20:$D$100,J12)","v":0},{"$f":"COUNTIFS('Match Score Sheet'!$B$20:$B$100,\"a\",'Match Score Sheet'!$C$20:$C$100,$N$2,'Match Score Sheet'!$D$20:$D$100,J12)","v":0},{"$f":"COUNTIFS('Match Score Sheet'!$B$20:$B$100,\"a\",'Match Score Sheet'!$C$20:$C$100,$O$2,'Match Score Sheet'!$D$20:$D$100,J12)","v":0}]
[null,{"$f":"'Team Sheets'!B13","v":11},{"$f":"IF('Team Sheets'!C13=\"\",\"\",'Team Sheets'!C13)","v":""},{"$f":"COUNTIFS('Match Score Sheet'!$B$20:$B$100,\"H\",'Match Score Sheet'!$C$20:$C$100,$D$2,'Match Score Sheet'!$D$20:$D$100,B13)","v":0},{"$f":"COUNTIFS('Match Score Sheet'!$B$20:$B$100,\"H\",'Match Score Sheet'!$C$20:$C$100,$E$2,'Match Score Sheet'!$D$20:$D$100,B13)","v":0},{"$f":"COUNTIFS('Match Score Sheet'!$B$20:$B$100,\"H\",'Match Score Sheet'!$C$20:$C$100,$F$2,'Match Score Sheet'!$D$20:$D$100,B13)","v":0},{"$f":"COUNTIFS('Match Score Sheet'!$B$20:$B$100,\"H\",'Match Score Sheet'!$C$20:$C$100,$G$2,'Match Score Sheet'!$D$20:$D$100,B13)","v":0},null,null,{"$f":"'Team Sheets'!E13","v":11},{"$f":"IF('Team Sheets'!F13=\"\",\"\",'Team Sheets'!F13)","v":""},{"$f":"COUNTIFS('Match Score Sheet'!$B$20:$B$100,\"A\",'Match Score Sheet'!$C$20:$C$100,$L$2,'Match Score Sheet'!$D$20:$D$100,J13)","v":0},{"$f":"COUNTIFS('Match Score Sheet'!$B$20:$B$100,\"a\",'Match Score Sheet'!$C$20:$C$100,$M$2,'Match Score Sheet'!$D$20:$D$100,J13)","v":0},{"$f":"COUNTIFS('Match Score Sheet'!$B$20:$B$100,\"a\",'Match Score Sheet'!$C$20:$C$100,$N$2,'Match Score Sheet'!$D$20:$D$100,J13)","v":0},{"$f":"COUNTIFS('Match Score Sheet'!$B$20:$B$100,\"a\",'Match Score Sheet'!$C$20:$C$100,$O$2,'Match Score Sheet'!$D$20:$D$100,J13)","v":0}]
[null,{"$f":"'Team Sheets'!B14","v":12},{"$f":"IF('Team Sheets'!C14=\"\",\"\",'Team Sheets'!C14)","v":""},{"$f":"COUNTIFS('Match Score Sheet'!$B$20:$B$100,\"H\",'Match Score Sheet'!$C$20:$C$100,$D$2,'Match Score Sheet'!$D$20:$D$100,B14)","v":0},{"$f":"COUNTIFS('Match Score Sheet'!$B$20:$B$100,\"H\",'Match Score Sheet'!$C$20:$C$100,$E$2,'Match Score Sheet'!$D$20:$D$100,B14)","v":0},{"$f":"COUNTIFS('Match Score Sheet'!$B$20:$B$100,\"H\",'Match Score Sheet'!$C$20:$C$100,$F$2,'Match Score Sheet'!$D$20:$D$100,B14)","v":0},{"$f":"COUNTIFS('Match Score Sheet'!$B$20:$B$100,\"H\",'Match Score Sheet'!$C$20:$C$100,$G$2,'Match Score Sheet'!$D$20:$D$100,B14)","v":0},null,null,{"$f":"'Team Sheets'!E14","v":12},{"$f":"IF('Team Sheets'!F14=\"\",\"\",'Team Sheets'!F14)","v":""},{"$f":"COUNTIFS('Match Score Sheet'!$B$20:$B$100,\"A\",'Match Score Sheet'!$C$20:$C$100,$L$2,'Match Score Sheet'!$D$20:$D$100,J14)","v":0},{"$f":"COUNTIFS('Match Score Sheet'!$B$20:$B$100,\"a\",'Match Score Sheet'!$C$20:$C$100,$M$2,'Match Score Sheet'!$D$20:$D$100,J14)","v":0},{"$f":"COUNTIFS('Match Score Sheet'!$B$20:$B$100,\"a\",'Match Score Sheet'!$C$20:$C$100,$N$2,'Match Score Sheet'!$D$20:$D$100,J14)","v":0},{"$f":"COUNTIFS('Match Score Sheet'!$B$20:$B$100,\"a\",'Match Score Sheet'!$C$20:$C$100,$O$2,'Match Score Sheet'!$D$20:$D$100,J14)","v":0}]
[null,{"$f":"'Team Sheets'!B15","v":13},{"$f":"IF('Team Sheets'!C15=\"\",\"\",'Team Sheets'!C15)","v":""},{"$f":"COUNTIFS('Match Score Sheet'!$B$20:$B$100,\"H\",'Match Score Sheet'!$C$20:$C$100,$D$2,'Match Score Sheet'!$D$20:$D$100,B15)","v":0},{"$f":"COUNTIFS('Match Score Sheet'!$B$20:$B$100,\"H\",'Match Score Sheet'!$C$20:$C$100,$E$2,'Match Score Sheet'!$D$20:$D$100,B15)","v":0},{"$f":"COUNTIFS('Match Score Sheet'!$B$20:$B$100,\"H\",'Match Score Sheet'!$C$20:$C$100,$F$2,'Match Score Sheet'!$D$20:$D$100,B15)","v":0},{"$f":"COUNTIFS('Match Score Sheet'!$B$20:$B$100,\"H\",'Match Score Sheet'!$C$20:$C$100,$G$2,'Match Score Sheet'!$D$20:$D$100,B15)","v":0},null,null,{"$f":"'Team Sheets'!E15","v":13},{"$f":"IF('Team Sheets'!F15=\"\",\"\",'Team Sheets'!F15)","v":""},{"$f":"COUNTIFS('Match Score Sheet'!$B$20:$B$100,\"A\",'Match Score Sheet'!$C$20:$C$100,$L$2,'Match Score Sheet'!$D$20:$D$100,J15)","v":0},{"$f":"COUNTIFS('Match Score Sheet'!$B$20:$B$100,\"a\",'Match Score Sheet'!$C$20:$C$100,$M$2,'Match Score Sheet'!$D$20:$D$100,J15)","v":0},{"$f":"COUNTIFS('Match Score Sheet'!$B$20:$B$100,\"a\",'Match Score Sheet'!$C$20:$C$100,$N$2,'Match Score Sheet'!$D$20:$D$100,J15)","v":0},{"$f":"COUNTIFS('Match Score Sheet'!$B$20:$B$100,\"a\",'Match Score Sheet'!$C$20:$C$100,$O$2,'Match Score Sheet'!$D$20:$D$100,J15)","v":0}]
[null,{"$f":"'Team Sheets'!B16","v":14},{"$f":"IF('Team Sheets'!C16=\"\",\"\",'Team Sheets'!C16)","v":""},{"$f":"COUNTIFS('Match Score Sheet'!$B$20:$B$100,\"H\",'Match Score Sheet'!$C$20:$C$100,$D$2,'Match Score Sheet'!$D$20:$D$100,B16)","v":0},{"$f":"COUNTIFS('Match Score Sheet'!$B$20:$B$100,\"H\",'Match Score Sheet'!$C$20:$C$100,$E$2,'Match Score Sheet'!$D$20:$D$100,B16)","v":0},{"$f":"COUNTIFS('Match Score Sheet'!$B$20:$B$100,\"H\",'Match Score Sheet'!$C$20:$C$100,$F$2,'Match Score Sheet'!$D$20:$D$100,B16)","v":0},{"$f":"COUNTIFS('Match Score Sheet'!$B$20:$B$100,\"H\",'Match Score Sheet'!$C$20:$C$100,$G$2,'Match Score Sheet'!$D$20:$D$100,B16)","v":0},null,null,{"$f":"'Team Sheets'!E16","v":14},{"$f":"IF('Team Sheets'!F16=\"\",\"\",'Team Sheets'!F16)","v":""},{"$f":"COUNTIFS('Match Score Sheet'!$B$20:$B$100,\"A\",'Match Score Sheet'!$C$20:$C$100,$L$2,'Match Score Sheet'!$D$20:$D$100,J16)","v":0},{"$f":"COUNTIFS('Match Score Sheet'!$B$20:$B$100,\"a\",'Match Score Sheet'!$C$20:$C$100,$M$2,'Match Score Sheet'!$D$20:$D$100,J16)","v":0},{"$f":"COUNTIFS('Match Score Sheet'!$B$20:$B$100,\"a\",'Match Score Sheet'!$C$20:$C$100,$N$2,'Match Score Sheet'!$D$20:$D$100,J16)","v":0},{"$f":"COUNTIFS('Match Score Sheet'!$B$20:$B$100,\"a\",'Match Score Sheet'!$C$20:$C$100,$O$2,'Match Score Sheet'!$D$20:$D$100,J16)","v":0}]
[null,{"$f":"'Team Sheets'!B17","v":15},{"$f":"IF('Team Sheets'!C17=\"\",\"\",'Team Sheets'!C17)","v":""},{"$f":"COUNTIFS('Match Score Sheet'!$B$20:$B$100,\"H\",'Match Score Sheet'!$C$20:$C$100,$D$2,'Match Score Sheet'!$D$20:$D$100,B17)","v":0},{"$f":"COUNTIFS('Match Score Sheet'!$B$20:$B$100,\"H\",'Match Score Sheet'!$C$20:$C$100,$E$2,'Match Score Sheet'!$D$20:$D$100,B17)","v":0},{"$f":"COUNTIFS('Match Score Sheet'!$B$20:$B$100,\"H\",'Match Score Sheet'!$C$20:$C$100,$F$2,'Match Score Sheet'!$D$20:$D$100,B17)","v":0},{"$f":"COUNTIFS('Match Score Sheet'!$B$20:$B$100,\"H\",'Match Score Sheet'!$C$20:$C$100,$G$2,'Match Score Sheet'!$D$20:$D$100,B17)","v":0},null,null,{"$f":"'Team Sheets'!E17","v":15},{"$f":"IF('Team Sheets'!F17=\"\",\"\",'Team Sheets'!F17)","v":""},{"$f":"COUNTIFS('Match Score Sheet'!$B$20:$B$100,\"A\",'Match Score Sheet'!$C$20:$C$100,$L$2,'Match Score Sheet'!$D$20:$D$100,J17)","v":0},{"$f":"COUNTIFS('Match Score Sheet'!$B$20:$B$100,\"a\",'Match Score Sheet'!$C$20:$C$100,$M$2,'Match Score Sheet'!$D$20:$D$100,J17)","v":0},{"$f":"COUNTIFS('Match Score Sheet'!$B$20:$B$100,\"a\",'Match Score Sheet'!$C$20:$C$100,$N$2,'Match Score Sheet'!$D$20:$D$100,J17)","v":0},{"$f":"COUNTIFS('Match Score Sheet'!$B$20:$B$100,\"a\",'Match Score Sheet'!$C$20:$C$100,$O$2,'Match Score Sheet'!$D$20:$D$100,J17)","v":0}]
[null,{"$f":"'Team Sheets'!B18","v":16},{"$f":"IF('Team Sheets'!C18=\"\",\"\",'Team Sheets'!C18)","v":""},{"$f":"COUNTIFS('Match Score Sheet'!$B$20:$B$100,\"H\",'Match Score Sheet'!$C$20:$C$100,$D$2,'Match Score Sheet'!$D$20:$D$100,B18)","v":0},{"$f":"COUNTIFS('Match Score Sheet'!$B$20:$B$100,\"H\",'Match Score Sheet'!$C$20:$C$100,$E$2,'Match Score Sheet'!$D$20:$D$100,B18)","v":0},{"$f":"COUNTIFS('Match Score Sheet'!$B$20:$B$100,\"H\",'Match Score Sheet'!$C$20:$C$100,$F$2,'Match Score Sheet'!$D$20:$D$100,B18)","v":0},{"$f":"COUNTIFS('Match Score Sheet'!$B$20:$B$100,\"H\",'Match Score Sheet'!$C$20:$C$100,$G$2,'Match Score Sheet'!$D$20:$D$100,B18)","v":0},null,null,{"$f":"'Team Sheets'!E18","v":16},{"$f":"IF('Team Sheets'!F18=\"\",\"\",'Team Sheets'!F18)","v":""},{"$f":"COUNTIFS('Match Score Sheet'!$B$20:$B$100,\"A\",'Match Score Sheet'!$C$20:$C$100,$L$2,'Match Score Sheet'!$D$20:$D$100,J18)","v":0},{"$f":"COUNTIFS('Match Score Sheet'!$B$20:$B$100,\"a\",'Match Score Sheet'!$C$20:$C$100,$M$2,'Match Score Sheet'!$D$20:$D$100,J18)","v":0},{"$f":"COUNTIFS('Match Score Sheet'!$B$20:$B$100,\"a\",'Match Score Sheet'!$C$20:$C$100,$N$2,'Match Score Sheet'!$D$20:$D$100,J18)","v":0},{"$f":"COUNTIFS('Match Score Sheet'!$B$20:$B$100,\"a\",'Match Score Sheet'!$C$20:$C$100,$O$2,'Match Score Sheet'!$D$20:$D$100,J18)","v":0}]
[null,{"$f":"'Team Sheets'!B19","v":17},{"$f":"IF('Team Sheets'!C19=\"\",\"\",'Team Sheets'!C19)","v":""},{"$f":"COUNTIFS('Match Score Sheet'!$B$20:$B$100,\"H\",'Match Score Sheet'!$C$20:$C$100,$D$2,'Match Score Sheet'!$D$20:$D$100,B19)","v":0},{"$f":"COUNTIFS('Match Score Sheet'!$B$20:$B$100,\"H\",'Match Score Sheet'!$C$20:$C$100,$E$2,'Match Score Sheet'!$D$20:$D$100,B19)","v":0},{"$f":"COUNTIFS('Match Score Sheet'!$B$20:$B$100,\"H\",'Match Score Sheet'!$C$20:$C$100,$F$2,'Match Score Sheet'!$D$20:$D$100,B19)","v":0},{"$f":"COUNTIFS('Match Score Sheet'!$B$20:$B$100,\"H\",'Match Score Sheet'!$C$20:$C$100,$G$2,'Match Score Sheet'!$D$20:$D$100,B19)","v":0},null,null,{"$f":"'Team Sheets'!E19","v":17},{"$f":"IF('Team Sheets'!F19=\"\",\"\",'Team Sheets'!F19)","v":""},{"$f":"COUNTIFS('Match Score Sheet'!$B$20:$B$100,\"A\",'Match Score Sheet'!$C$20:$C$100,$L$2,'Match Score Sheet'!$D$20:$D$100,J19)","v":0},{"$f":"COUNTIFS('Match Score Sheet'!$B$20:$B$100,\"a\",'Match Score Sheet'!$C$20:$C$100,$M$2,'Match Score Sheet'!$D$20:$D$100,J19)","v":0},{"$f":"COUNTIFS('Match Score Sheet'!$B$20:$B$100,\"a\",'Match Score Sheet'!$C$20:$C$100,$N$2,'Match Score Sheet'!$D$20:$D$100,J19)","v":0},{"$f":"COUNTIFS('Match Score Sheet'!$B$20:$B$100,\"a\",'Match Score Sheet'!$C$20:$C$100,$O$2,'Match Score Sheet'!$D$20:$D$100,J19)","v":0}]
[null,{"$f":"'Team Sheets'!B20","v":18},{"$f":"IF('Team Sheets'!C20=\"\",\"\",'Team Sheets'!C20)","v":""},{"$f":"COUNTIFS('Match Score Sheet'!$B$20:$B$100,\"H\",'Match Score Sheet'!$C$20:$C$100,$D$2,'Match Score Sheet'!$D$20:$D$100,B20)","v":0},{"$f":"COUNTIFS('Match Score Sheet'!$B$20:$B$100,\"H\",'Match Score Sheet'!$C$20:$C$100,$E$2,'Match Score Sheet'!$D$20:$D$100,B20)","v":0},{"$f":"COUNTIFS('Match Score Sheet'!$B$20:$B$100,\"H\",'Match Score Sheet'!$C$20:$C$100,$F$2,'Match Score Sheet'!$D$20:$D$100,B20)","v":0},{"$f":"COUNTIFS('Match Score Sheet'!$B$20:$B$100,\"H\",'Match Score Sheet'!$C$20:$C$100,$G$2,'Match Score Sheet'!$D$20:$D$100,B20)","v":0},null,null,{"$f":"'Team Sheets'!E20","v":18},{"$f":"IF('Team Sheets'!F20=\"\",\"\",'Team Sheets'!F20)","v":""},{"$f":"COUNTIFS('Match Score Sheet'!$B$20:$B$100,\"A\",'Match Score Sheet'!$C$20:$C$100,$L$2,'Match Score Sheet'!$D$20:$D$100,J20)","v":0},{"$f":"COUNTIFS('Match Score Sheet'!$B$20:$B$100,\"a\",'Match Score Sheet'!$C$20:$C$100,$M$2,'Match Score Sheet'!$D$20:$D$100,J20)","v":0},{"$f":"COUNTIFS('Match Score Sheet'!$B$20:$B$100,\"a\",'Match Score Sheet'!$C$20:$C$100,$N$2,'Match Score Sheet'!$D$20:$D$100,J20)","v":0},{"$f":"COUNTIFS('Match Score Sheet'!$B$20:$B$100,\"a\",'Match Score Sheet'!$C$20:$C$100,$O$2,'Match Score Sheet'!$D$20:$D$100,J20)","v":0}]
[null,{"$f":"'Team Sheets'!B21","v":19},{"$f":"IF('Team Sheets'!C21=\"\",\"\",'Team Sheets'!C21)","v":""},{"$f":"COUNTIFS('Match Score Sheet'!$B$20:$B$100,\"H\",'Match Score Sheet'!$C$20:$C$100,$D$2,'Match Score Sheet'!$D$20:$D$100,B21)","v":0},{"$f":"COUNTIFS('Match Score Sheet'!$B$20:$B$100,\"H\",'Match Score Sheet'!$C$20:$C$100,$E$2,'Match Score Sheet'!$D$20:$D$100,B21)","v":0},{"$f":"COUNTIFS('Match Score Sheet'!$B$20:$B$100,\"H\",'Match Score Sheet'!$C$20:$C$100,$F$2,'Match Score Sheet'!$D$20:$D$100,B21)","v":0},{"$f":"COUNTIFS('Match Score Sheet'!$B$20:$B$100,\"H\",'Match Score Sheet'!$C$20:$C$100,$G$2,'Match Score Sheet'!$D$20:$D$100,B21)","v":0},null,null,{"$f":"'Team Sheets'!E21","v":19},{"$f":"IF('Team Sheets'!F21=\"\",\"\",'Team Sheets'!F21)","v":""},{"$f":"COUNTIFS('Match Score Sheet'!$B$20:$B$100,\"A\",'Match Score Sheet'!$C$20:$C$100,$L$2,'Match Score Sheet'!$D$20:$D$100,J21)","v":0},{"$f":"COUNTIFS('Match Score Sheet'!$B$20:$B$100,\"a\",'Match Score Sheet'!$C$20:$C$100,$M$2,'Match Score Sheet'!$D$20:$D$100,J21)","v":0},{"$f":"COUNTIFS('Match Score Sheet'!$B$20:$B$100,\"a\",'Match Score Sheet'!$C$20:$C$100,$N$2,'Match Score Sheet'!$D$20:$D$100,J21)","v":0},{"$f":"COUNTIFS('Match Score Sheet'!$B$20:$B$100,\"a\",'Match Score Sheet'!$C$20:$C$100,$O$2,'Match Score Sheet'!$D$20:$D$100,J21)","v":0}]
[null,{"$f":"'Team Sheets'!B22","v":20},{"$f":"IF('Team Sheets'!C22=\"\",\"\",'Team Sheets'!C22)","v":""},{"$f":"COUNTIFS('Match Score Sheet'!$B$20:$B$100,\"H\",'Match Score Sheet'!$C$20:$C$100,$D$2,'Match Score Sheet'!$D$20:$D$100,B22)","v":0},{"$f":"COUNTIFS('Match Score Sheet'!$B$20:$B$100,\"H\",'Match Score Sheet'!$C$20:$C$100,$E$2,'Match Score Sheet'!$D$20:$D$100,B22)","v":0},{"$f":"COUNTIFS('Match Score Sheet'!$B$20:$B$100,\"H\",'Match Score Sheet'!$C$20:$C$100,$F$2,'Match Score Sheet'!$D$20:$D$100,B22)","v":0},{"$f":"COUNTIFS('Match Score Sheet'!$B$20:$B$100,\"H\",'Match Score Sheet'!$C$20:$C$100,$G$2,'Match Score Sheet'!$D$20:$D$100,B22)","v":0},null,null,{"$f":"'Team Sheets'!E22","v":20},{"$f":"IF('Team Sheets'!F22=\"\",\"\",'Team Sheets'!F22)","v":""},{"$f":"COUNTIFS('Match Score Sheet'!$B$20:$B$100,\"A\",'Match Score Sheet'!$C$20:$C$100,$L$2,'Match Score Sheet'!$D$20:$D$100,J22)","v":0},{"$f":"COUNTIFS('Match Score Sheet'!$B$20:$B$100,\"a\",'Match Score Sheet'!$C$20:$C$100,$M$2,'Match Score Sheet'!$D$20:$D$100,J22)","v":0},{"$f":"COUNTIFS('Match Score Sheet'!$B$20:$B$100,\"a\",'Match Score Sheet'!$C$20:$C$100,$N$2,'Match Score Sheet'!$D$20:$D$100,J22)","v":0},{"$f":"COUNTIFS('Match Score Sheet'!$B$20:$B$100,\"a\",'Match Score Sheet'!$C$20:$C$100,$O$2,'Match Score Sheet'!$D$20:$D$100,J22)","v":0}]
[null,{"$f":"'Team Sheets'!B23","v":21},{"$f":"IF('Team Sheets'!C23=\"\",\"\",'Team Sheets'!C23)","v":""},{"$f":"COUNTIFS('Match Score Sheet'!$B$20:$B$100,\"H\",'Match Score Sheet'!$C$20:$C$100,$D$2,'Match Score Sheet'!$D$20:$D$100,B23)","v":0},{"$f":"COUNTIFS('Match Score Sheet'!$B$20:$B$100,\"H\",'Match Score Sheet'!$C$20:$C$100,$E$2,'Match Score Sheet'!$D$20:$D$100,B23)","v":0},{"$f":"COUNTIFS('Match Score Sheet'!$B$20:$B$100,\"H\",'Match Score Sheet'!$C$20:$C$100,$F$2,'Match Score Sheet'!$D$20:$D$100,B23)","v":0},{"$f":"COUNTIFS('Match Score Sheet'!$B$20:$B$100,\"H\",'Match Score Sheet'!$C$20:$C$100,$G$2,'Match Score Sheet'!$D$20:$D$100,B23)","v":0},null,null,{"$f":"'Team Sheets'!E23","v":21},{"$f":"IF('Team Sheets'!F23=\"\",\"\",'Team Sheets'!F23)","v":""},{"$f":"COUNTIFS('Match Score Sheet'!$B$20:$B$100,\"A\",'Match Score Sheet'!$C$20:$C$100,$L$2,'Match Score Sheet'!$D$20:$D$100,J23)","v":0},{"$f":"COUNTIFS('Match Score Sheet'!$B$20:$B$100,\"a\",'Match Score Sheet'!$C$20:$C$100,$M$2,'Match Score Sheet'!$D$20:$D$100,J23)","v":0},{"$f":"COUNTIFS('Match Score Sheet'!$B$20:$B$100,\"a\",'Match Score Sheet'!$C$20:$C$100,$N$2,'Match Score Sheet'!$D$20:$D$100,J23)","v":0},{"$f":"COUNTIFS('Match Score Sheet'!$B$20:$B$100,\"a\",'Match Score Sheet'!$C$20:$C$100,$O$2,'Match Score Sheet'!$D$20:$D$100,J23)","v":0}]
[null,{"$f":"'Team Sheets'!B24","v":22},{"$f":"IF('Team Sheets'!C24=\"\",\"\",'Team Sheets'!C24)","v":""},{"$f":"COUNTIFS('Match Score Sheet'!$B$20:$B$100,\"H\",'Match Score Sheet'!$C$20:$C$100,$D$2,'Match Score Sheet'!$D$20:$D$100,B24)","v":0},{"$f":"COUNTIFS('Match Score Sheet'!$B$20:$B$100,\"H\",'Match Score Sheet'!$C$20:$C$100,$E$2,'Match Score Sheet'!$D$20:$D$100,B24)","v":0},{"$f":"COUNTIFS('Match Score Sheet'!$B$20:$B$100,\"H\",'Match Score Sheet'!$C$20:$C$100,$F$2,'Match Score Sheet'!$D$20:$D$100,B24)","v":0},{"$f":"COUNTIFS('Match Score Sheet'!$B$20:$B$100,\"H\",'Match Score Sheet'!$C$20:$C$100,$G$2,'Match Score Sheet'!$D$20:$D$100,B24)","v":0},null,null,{"$f":"'Team Sheets'!E24","v":22},{"$f":"IF('Team Sheets'!F24=\"\",\"\",'Team Sheets'!F24)","v":""},{"$f":"COUNTIFS('Match Score Sheet'!$B$20:$B$100,\"A\",'Match Score Sheet'!$C$20:$C$100,$L$2,'Match Score Sheet'!$D$20:$D$100,J24)","v":0},{"$f":"COUNTIFS('Match Score Sheet'!$B$20:$B$100,\"a\",'Match Score Sheet'!$C$20:$C$100,$M$2,'Match Score Sheet'!$D$20:$D$100,J24)","v":0},{"$f":"COUNTIFS('Match Score Sheet'!$B$20:$B$100,\"a\",'Match Score Sheet'!$C$20:$C$100,$N$2,'Match Score Sheet'!$D$20:$D$100,J24)","v":0},{"$f":"COUNTIFS('Match Score Sheet'!$B$20:$B$100,\"a\",'Match Score Sheet'!$C$20:$C$100,$O$2,'Match Score Sheet'!$D$20:$D$100,J24)","v":0}]
[null,{"$f":"'Team Sheets'!B25","v":23},{"$f":"IF('Team Sheets'!C25=\"\",\"\",'Team Sheets'!C25)","v":""},{"$f":"COUNTIFS('Match Score Sheet'!$B$20:$B$100,\"H\",'Match Score Sheet'!$C$20:$C$100,$D$2,'Match Score Sheet'!$D$20:$D$100,B25)","v":0},{"$f":"COUNTIFS('Match Score Sheet'!$B$20:$B$100,\"H\",'Match Score Sheet'!$C$20:$C$100,$E$2,'Match Score Sheet'!$D$20:$D$100,B25)","v":0},{"$f":"COUNTIFS('Match Score Sheet'!$B$20:$B$100,\"H\",'Match Score Sheet'!$C$20:$C$100,$F$2,'Match Score Sheet'!$D$20:$D$100,B25)","v":0},{"$f":"COUNTIFS('Match Score Sheet'!$B$20:$B$100,\"H\",'Match Score Sheet'!$C$20:$C$100,$G$2,'Match Score Sheet'!$D$20:$D$100,B25)","v":0},null,null,{"$f":"'Team Sheets'!E25","v":23},{"$f":"IF('Team Sheets'!F25=\"\",\"\",'Team Sheets'!F25)","v":""},{"$f":"COUNTIFS('Match Score Sheet'!$B$20:$B$100,\"A\",'Match Score Sheet'!$C$20:$C$100,$L$2,'Match Score Sheet'!$D$20:$D$100,J25)","v":0},{"$f":"COUNTIFS('Match Score Sheet'!$B$20:$B$100,\"a\",'Match Score Sheet'!$C$20:$C$100,$M$2,'Match Score Sheet'!$D$20:$D$100,J25)","v":0},{"$f":"COUNTIFS('Match Score Sheet'!$B$20:$B$100,\"a\",'Match Score Sheet'!$C$20:$C$100,$N$2,'Match Score Sheet'!$D$20:$D$100,J25)","v":0},{"$f":"COUNTIFS('Match Score Sheet'!$B$20:$B$100,\"a\",'Match Score Sheet'!$C$20:$C$100,$O$2,'Match Score Sheet'!$D$20:$D$100,J25)","v":0}]
[null,{"$f":"'Team Sheets'!B26","v":24},{"$f":"IF('Team Sheets'!C26=\"\",\"\",'Team Sheets'!C26)","v":""},{"$f":"COUNTIFS('Match Score Sheet'!$B$20:$B$100,\"H\",'Match Score Sheet'!$C$20:$C$100,$D$2,'Match Score Sheet'!$D$20:$D$100,B26)","v":0},{"$f":"COUNTIFS('Match Score Sheet'!$B$20:$B$100,\"H\",'Match Score Sheet'!$C$20:$C$100,$E$2,'Match Score Sheet'!$D$20:$D$100,B26)","v":0},{"$f":"COUNTIFS('Match Score Sheet'!$B$20:$B$100,\"H\",'Match Score Sheet'!$C$20:$C$100,$F$2,'Match Score Sheet'!$D$20:$D$100,B26)","v":0},{"$f":"COUNTIFS('Match Score Sheet'!$B$20:$B$100,\"H\",'Match Score Sheet'!$C$20:$C$100,$G$2,'Match Score Sheet'!$D$20:$D$100,B26)","v":0},null,null,{"$f":"'Team Sheets'!E26","v":24},{"$f":"IF('Team Sheets'!F26=\"\",\"\",'Team Sheets'!F26)","v":""},{"$f":"COUNTIFS('Match Score Sheet'!$B$20:$B$100,\"A\",'Match Score Sheet'!$C$20:$C$100,$L$2,'Match Score Sheet'!$D$20:$D$100,J26)","v":0},{"$f":"COUNTIFS('Match Score Sheet'!$B$20:$B$100,\"a\",'Match Score Sheet'!$C$20:$C$100,$M$2,'Match Score Sheet'!$D$20:$D$100,J26)","v":0},{"$f":"COUNTIFS('Match Score Sheet'!$B$20:$B$100,\"a\",'Match Score Sheet'!$C$20:$C$100,$N$2,'Match Score Sheet'!$D$20:$D$100,J26)","v":0},{"$f":"COUNTIFS('Match Score Sheet'!$B$20:$B$100,\"a\",'Match Score Sheet'!$C$20:$C$100,$O$2,'Match Score Sheet'!$D$20:$D$100,J26)","v":0}]
[null,{"$f":"'Team Sheets'!B27","v":25},{"$f":"IF('Team Sheets'!C27=\"\",\"\",'Team Sheets'!C27)","v":""},{"$f":"COUNTIFS('Match Score Sheet'!$B$20:$B$100,\"H\",'Match Score Sheet'!$C$20:$C$100,$D$2,'Match Score Sheet'!$D$20:$D$100,B27)","v":0},{"$f":"COUNTIFS('Match Score Sheet'!$B$20:$B$100,\"H\",'Match Score Sheet'!$C$20:$C$100,$E$2,'Match Score Sheet'!$D$20:$D$100,B27)","v":0},{"$f":"COUNTIFS('Match Score Sheet'!$B$20:$B$100,\"H\",'Match Score Sheet'!$C$20:$C$100,$F$2,'Match Score Sheet'!$D$20:$D$100,B27)","v":0},{"$f":"COUNTIFS('Match Score Sheet'!$B$20:$B$100,\"H\",'Match Score Sheet'!$C$20:$C$100,$G$2,'Match Score Sheet'!$D$20:$D$100,B27)","v":0},null,null,{"$f":"'Team Sheets'!E27","v":25},{"$f":"IF('Team Sheets'!F27=\"\",\"\",'Team Sheets'!F27)","v":""},{"$f":"COUNTIFS('Match Score Sheet'!$B$20:$B$100,\"A\",'Match Score Sheet'!$C$20:$C$100,$L$2,'Match Score Sheet'!$D$20:$D$100,J27)","v":0},{"$f":"COUNTIFS('Match Score Sheet'!$B$20:$B$100,\"a\",'Match Score Sheet'!$C$20:$C$100,$M$2,'Match Score Sheet'!$D$20:$D$100,J27)","v":0},{"$f":"COUNTIFS('Match Score Sheet'!$B$20:$B$100,\"a\",'Match Score Sheet'!$C$20:$C$100,$N$2,'Match Score Sheet'!$D$20:$D$100,J27)","v":0},{"$f":"COUNTIFS('Match Score Sheet'!$B$20:$B$100,\"a\",'Match Score Sheet'!$C$20:$C$100,$O$2,'Match Score Sheet'!$D$20:$D$100,J27)","v":0}]
[null,{"$f":"'Team Sheets'!B28","v":26},{"$f":"IF('Team Sheets'!C28=\"\",\"\",'Team Sheets'!C28)","v":""},{"$f":"COUNTIFS('Match Score Sheet'!$B$20:$B$100,\"H\",'Match Score Sheet'!$C$20:$C$100,$D$2,'Match Score Sheet'!$D$20:$D$100,B28)","v":0},{"$f":"COUNTIFS('Match Score Sheet'!$B$20:$B$100,\"H\",'Match Score Sheet'!$C$20:$C$100,$E$2,'Match Score Sheet'!$D$20:$D$100,B28)","v":0},{"$f":"COUNTIFS('Match Score Sheet'!$B$20:$B$100,\"H\",'Match Score Sheet'!$C$20:$C$100,$F$2,'Match Score Sheet'!$D$20:$D$100,B28)","v":0},{"$f":"COUNTIFS('Match Score Sheet'!$B$20:$B$100,\"H\",'Match Score Sheet'!$C$20:$C$100,$G$2,'Match Score Sheet'!$D$20:$D$100,B28)","v":0},null,null,{"$f":"'Team Sheets'!E28","v":26},{"$f":"IF('Team Sheets'!F28=\"\",\"\",'Team Sheets'!F28)","v":""},{"$f":"COUNTIFS('Match Score Sheet'!$B$20:$B$100,\"A\",'Match Score Sheet'!$C$20:$C$100,$L$2,'Match Score Sheet'!$D$20:$D$100,J28)","v":0},{"$f":"COUNTIFS('Match Score Sheet'!$B$20:$B$100,\"a\",'Match Score Sheet'!$C$20:$C$100,$M$2,'Match Score Sheet'!$D$20:$D$100,J28)","v":0},{"$f":"COUNTIFS('Match Score Sheet'!$B$20:$B$100,\"a\",'Match Score Sheet'!$C$20:$C$100,$N$2,'Match Score Sheet'!$D$20:$D$100,J28)","v":0},{"$f":"COUNTIFS('Match Score Sheet'!$B$20:$B$100,\"a\",'Match Score Sheet'!$C$20:$C$100,$O$2,'Match Score Sheet'!$D$20:$D$100,J28)","v":0}]
[null,{"$f":"'Team Sheets'!B29","v":27},{"$f":"IF('Team Sheets'!C29=\"\",\"\",'Team Sheets'!C29)","v":""},{"$f":"COUNTIFS('Match Score Sheet'!$B$20:$B$100,\"H\",'Match Score Sheet'!$C$20:$C$100,$D$2,'Match Score Sheet'!$D$20:$D$100,B29)","v":0},{"$f":"COUNTIFS('Match Score Sheet'!$B$20:$B$100,\"H\",'Match Score Sheet'!$C$20:$C$100,$E$2,'Match Score Sheet'!$D$20:$D$100,B29)","v":0},{"$f":"COUNTIFS('Match Score Sheet'!$B$20:$B$100,\"H\",'Match Score Sheet'!$C$20:$C$100,$F$2,'Match Score Sheet'!$D$20:$D$100,B29)","v":0},{"$f":"COUNTIFS('Match Score Sheet'!$B$20:$B$100,\"H\",'Match Score Sheet'!$C$20:$C$100,$G$2,'Match Score Sheet'!$D$20:$D$100,B29)","v":0},null,null,{"$f":"'Team Sheets'!E29","v":27},{"$f":"IF('Team Sheets'!F29=\"\",\"\",'Team Sheets'!F29)","v":""},{"$f":"COUNTIFS('Match Score Sheet'!$B$20:$B$100,\"A\",'Match Score Sheet'!$C$20:$C$100,$L$2,'Match Score Sheet'!$D$20:$D$100,J29)","v":0},{"$f":"COUNTIFS('Match Score Sheet'!$B$20:$B$100,\"a\",'Match Score Sheet'!$C$20:$C$100,$M$2,'Match Score Sheet'!$D$20:$D$100,J29)","v":0},{"$f":"COUNTIFS('Match Score Sheet'!$B$20:$B$100,\"a\",'Match Score Sheet'!$C$20:$C$100,$N$2,'Match Score Sheet'!$D$20:$D$100,J29)","v":0},{"$f":"COUNTIFS('Match Score Sheet'!$B$20:$B$100,\"a\",'Match Score Sheet'!$C$20:$C$100,$O$2,'Match Score Sheet'!$D$20:$D$100,J29)","v":0}]
[null,{"$f":"'Team Sheets'!B30","v":28},{"$f":"IF('Team Sheets'!C30=\"\",\"\",'Team Sheets'!C30)","v":""},{"$f":"COUNTIFS('Match Score Sheet'!$B$20:$B$100,\"H\",'Match Score Sheet'!$C$20:$C$100,$D$2,'Match Score Sheet'!$D$20:$D$100,B30)","v":0},{"$f":"COUNTIFS('Match Score Sheet'!$B$20:$B$100,\"H\",'Match Score Sheet'!$C$20:$C$100,$E$2,'Match Score Sheet'!$D$20:$D$100,B30)","v":0},{"$f":"COUNTIFS('Match Score Sheet'!$B$20:$B$100,\"H\",'Match Score Sheet'!$C$20:$C$100,$F$2,'Match Score Sheet'!$D$20:$D$100,B30)","v":0},{"$f":"COUNTIFS('Match Score Sheet'!$B$20:$B$100,\"H\",'Match Score Sheet'!$C$20:$C$100,$G$2,'Match Score Sheet'!$D$20:$D$100,B30)","v":0},null,null,{"$f":"'Team Sheets'!E30","v":28},{"$f":"IF('Team Sheets'!F30=\"\",\"\",'Team Sheets'!F30)","v":""},{"$f":"COUNTIFS('Match Score Sheet'!$B$20:$B$100,\"A\",'Match Score Sheet'!$C$20:$C$100,$L$2,'Match Score Sheet'!$D$20:$D$100,J30)","v":0},{"$f":"COUNTIFS('Match Score Sheet'!$B$20:$B$100,\"a\",'Match Score Sheet'!$C$20:$C$100,$M$2,'Match Score Sheet'!$D$20:$D$100,J30)","v":0},{"$f":"COUNTIFS('Match Score Sheet'!$B$20:$B$100,\"a\",'Match Score Sheet'!$C$20:$C$100,$N$2,'Match Score Sheet'!$D$20:$D$100,J30)","v":0},{"$f":"COUNTIFS('Match Score Sheet'!$B$20:$B$100,\"a\",'Match Score Sheet'!$C$20:$C$100,$O$2,'Match Score Sheet'!$D$20:$D$100,J30)","v":0}]
[null,null,null,{"$f":"SUM(D3:D30)","v":0},{"$f":"SUM(E3:E30)","v":0},0,0,0,null,null,null,{"$f":"SUM(L3:L30)","v":0},0,0,0,0]

{"sheet":"Notes","index":4,"n_rows":21,"n_cols":3,"rows_kept":21,"cut":false,"hidden":false,"merged":[[0,0,0,2],[1,0,1,2],[2,0,2,2],[3,0,10,0],[11,0,20,0]]}
["             Notes on how to fill in Score Sheet"]
["EVENT NOTES"]
["Please keep track of the following events"]
["Scoring","T","Try"]
[null,"PT","Penalty Try - No conversion required"]
[null,"C","Conversion"]
[null,"MC","Missed Conversion"]
[null,"P","Penalty"]
[null,"MP","Missed Penalty"]
[null,"DG","Drop Goal"]
[null,"MDG","Missed Drop Goal"]
["Halfs","FH-S","First Half - START"]
[null,"FH-E","First Half - END"]
[null,"SH-S","Second Half - START"]
[null,"SH-E","Second Half - END"]
[null,"ET FH-S","Extra Time 1st Half - START"]
[null,"ET FH-E","Extra Time 1st Half - END"]
[null,"ET SH-S","Extra Time 2nd Half - START"]
[null,"ET SH-E","Extra Time 2nd Half - END"]
[null,"SD - S","Sudden Death - START"]
[null,"SD - E","Sudden Death - END"]

{"sheet":"Codes","index":5,"n_rows":17,"n_cols":3,"rows_kept":17,"cut":false,"hidden":true,"merged":[]}
["T","H","Currie Cup Premier Division"]
["PT","A","Currie Cup 1st Division"]
["C",null,"SA Cup"]
["MC",null,"U19 SA Rugby Championship"]
["P",null,"U20 SA Rugby Championship"]
["MP",null,"U21 SA Rugby Championship"]
["DG",null,"Women SA Rugby Premier Division"]
["MDG",null,"Women SA Rugby First Division"]
["FH-E",null,"Gold Cup"]
["SH-S"]
["SH-E"]
["ET FH-S"]
["ET FH-E"]
["ET SH-S"]
["ET SH-E"]
["SD-S"]
["SD-E"]